Body Name,Date Paid,Transaction Number,Amount,Supplier Name,Supplier Type,Expense Area,Cost Centre Description,Expense Type
Cambridgeshire County Council,22-Jul-19,51301022898,"-36,185.68",WSP UK LTD T/A WSP INTEGRATED BUILDING SERVICES,TRADE SUPPLIER,MID - St Neots Northern Footway and Cycle Bridge,St Neots Northern Footway and Cycle Bridge,Construction - External Professional Fees
Cambridgeshire County Council,29-Jul-19,51300985470,"-31,689.10",WHIPPET COACHES LIMITED,TRADE SUPPLIER,Passenger Transport other,Tendered Bus Costs,Support - subsidised bus routes
Cambridgeshire County Council,03-Jul-19,51301021416,"-29,172.35",G & S HUTCHINSON LTD,COMPANY,Authority-wide Miscellaneous,Miscellaneous - Other,Unallocated Budget
Cambridgeshire County Council,24-Jul-19,53300019853,"-11,498.95",HMRC - PAYE,OTHER PUBLIC BODIES,Financing items,Additional Pension Contribution,Pay
Cambridgeshire County Council,03-Jul-19,51301021701,"-9,673.86",ALERE LIMITED,TRADE SUPPLIER,NHS - PH Sexual Health & Health Checks,NHS Health Checks - Prescribed Cardio Vascular Health Check,Professional Fees and Hired Services
Cambridgeshire County Council,09-Jul-19,51301021602,"-7,542.67",RED BALLOON LEARNER CENTRE CAMBRIDGE,EDUCATION,SEN Placements,Placements - Education,Educational Materials
Cambridgeshire County Council,09-Jul-19,51301021689,"-7,396.36",CAPITA BUSINESS SERVICES LTD,OTHER PUBLIC BODIES,Digital Systems,IT & Digital,Computer software - annual licence agreement
Cambridgeshire County Council,22-Jul-19,51301021579,"-6,500.00",CAMBIAN CHILDCARE LTD T/A CAMBIAN HEREFORD SCHOOL,CARE ESTABLISHMENT,SEN Placements,Placements - Education,Educational Materials
Cambridgeshire County Council,08-Jul-19,51301029639,"-5,552.44",GRAHAM FACILITIES MANAGEMENT LTD,COMPANY,BM - Corporate Offices,Building Maintenance,Building Structural Maintenance - Reactive
Cambridgeshire County Council,05-Jul-19,51301021570,"-5,245.60",RADIS COMMUNITY CARE,CARE ESTABLISHMENT,OP - East Cambs Extra Care,Baird Lodge,Domiciliary Care
Cambridgeshire County Council,12-Jul-19,51301028857,"-4,655.00",Accomplish Group Support Limited,CARE ESTABLISHMENT,LD - Hunts Locality,LD - Huntigndonshire  - Special Needs,Rehabilitation And Respite Care
Cambridgeshire County Council,12-Jul-19,51301028858,"-4,655.00",Accomplish Group Support Limited,CARE ESTABLISHMENT,LD - Hunts Locality,LD - Huntigndonshire  - Special Needs,Rehabilitation And Respite Care
Cambridgeshire County Council,12-Jul-19,51301020158,"-4,655.00",Accomplish Group Support Limited,CARE ESTABLISHMENT,LD - Hunts Locality,LD - Huntigndonshire  - Special Needs,Rehabilitation And Respite Care
Cambridgeshire County Council,12-Jul-19,51301028849,"-4,655.00",Accomplish Group Support Limited,CARE ESTABLISHMENT,LD - Hunts Locality,LD - Huntigndonshire  - Special Needs,Rehabilitation And Respite Care
Cambridgeshire County Council,12-Jul-19,51301020153,"-4,655.00",Accomplish Group Support Limited,CARE ESTABLISHMENT,LD - Hunts Locality,LD - Huntigndonshire  - Special Needs,Rehabilitation And Respite Care
Cambridgeshire County Council,12-Jul-19,51301036585,"-4,655.00",Accomplish Group Support Limited,CARE ESTABLISHMENT,LD - Hunts Locality,LD - Huntigndonshire  - Special Needs,Rehabilitation And Respite Care
Cambridgeshire County Council,12-Jul-19,51301036577,"-4,655.00",Accomplish Group Support Limited,CARE ESTABLISHMENT,LD - Hunts Locality,LD - Huntigndonshire  - Special Needs,Rehabilitation And Respite Care
Cambridgeshire County Council,12-Jul-19,51301036581,"-4,655.00",Accomplish Group Support Limited,CARE ESTABLISHMENT,LD - Hunts Locality,LD - Huntigndonshire  - Special Needs,Rehabilitation And Respite Care
Cambridgeshire County Council,12-Jul-19,51301020161,"-4,655.00",Accomplish Group Support Limited,CARE ESTABLISHMENT,LD - Hunts Locality,LD - Huntigndonshire  - Special Needs,Rehabilitation And Respite Care
Cambridgeshire County Council,12-Jul-19,51301020164,"-4,655.00",Accomplish Group Support Limited,CARE ESTABLISHMENT,LD - Hunts Locality,LD - Huntigndonshire  - Special Needs,Rehabilitation And Respite Care
Cambridgeshire County Council,12-Jul-19,51301020166,"-4,655.00",Accomplish Group Support Limited,CARE ESTABLISHMENT,LD - Hunts Locality,LD - Huntigndonshire  - Special Needs,Rehabilitation And Respite Care
Cambridgeshire County Council,12-Jul-19,51301028861,"-4,655.00",Accomplish Group Support Limited,CARE ESTABLISHMENT,LD - Hunts Locality,LD - Huntigndonshire  - Special Needs,Rehabilitation And Respite Care
Cambridgeshire County Council,12-Jul-19,51301036580,"-4,655.00",Accomplish Group Support Limited,CARE ESTABLISHMENT,LD - Hunts Locality,LD - Huntigndonshire  - Special Needs,Rehabilitation And Respite Care
Cambridgeshire County Council,12-Jul-19,51301020152,"-4,655.00",Accomplish Group Support Limited,CARE ESTABLISHMENT,LD - Hunts Locality,LD - Huntigndonshire  - Special Needs,Rehabilitation And Respite Care
Cambridgeshire County Council,12-Jul-19,51301028855,"-4,655.00",Accomplish Group Support Limited,CARE ESTABLISHMENT,LD - Hunts Locality,LD - Huntigndonshire  - Special Needs,Rehabilitation And Respite Care
Cambridgeshire County Council,12-Jul-19,51301020165,"-4,655.00",Accomplish Group Support Limited,CARE ESTABLISHMENT,LD - Hunts Locality,LD - Huntigndonshire  - Care,Rehabilitation And Respite Care
Cambridgeshire County Council,12-Jul-19,51301020147,"-4,655.00",Accomplish Group Support Limited,CARE ESTABLISHMENT,LD - Hunts Locality,LD - Huntigndonshire  - Care,Rehabilitation And Respite Care
Cambridgeshire County Council,12-Jul-19,51301020148,"-4,655.00",Accomplish Group Support Limited,CARE ESTABLISHMENT,LD - Hunts Locality,LD - Huntigndonshire  - Care,Rehabilitation And Respite Care
Cambridgeshire County Council,12-Jul-19,51301028853,"-4,655.00",Accomplish Group Support Limited,CARE ESTABLISHMENT,LD - Hunts Locality,LD - Huntigndonshire  - Care,Rehabilitation And Respite Care
Cambridgeshire County Council,12-Jul-19,51301028852,"-4,655.00",Accomplish Group Support Limited,CARE ESTABLISHMENT,LD - Hunts Locality,LD - Huntigndonshire  - Care,Rehabilitation And Respite Care
Cambridgeshire County Council,12-Jul-19,51301028850,"-4,655.00",Accomplish Group Support Limited,CARE ESTABLISHMENT,LD - Hunts Locality,LD - Huntigndonshire  - Care,Rehabilitation And Respite Care
Cambridgeshire County Council,12-Jul-19,51301036587,"-4,655.00",Accomplish Group Support Limited,CARE ESTABLISHMENT,LD - Hunts Locality,LD - Huntigndonshire  - Care,Rehabilitation And Respite Care
Cambridgeshire County Council,12-Jul-19,51301036591,"-4,655.00",Accomplish Group Support Limited,CARE ESTABLISHMENT,LD - Hunts Locality,LD - Huntigndonshire  - Care,Rehabilitation And Respite Care
Cambridgeshire County Council,12-Jul-19,51301028847,"-4,655.00",Accomplish Group Support Limited,CARE ESTABLISHMENT,LD - Hunts Locality,LD - Huntigndonshire  - Care,Rehabilitation And Respite Care
Cambridgeshire County Council,12-Jul-19,51301036578,"-4,655.00",Accomplish Group Support Limited,CARE ESTABLISHMENT,LD - Hunts Locality,LD - Huntigndonshire  - Care,Rehabilitation And Respite Care
Cambridgeshire County Council,12-Jul-19,51301036582,"-4,655.00",Accomplish Group Support Limited,CARE ESTABLISHMENT,LD - Hunts Locality,LD - Huntigndonshire  - Care,Rehabilitation And Respite Care
Cambridgeshire County Council,12-Jul-19,51301036576,"-4,655.00",Accomplish Group Support Limited,CARE ESTABLISHMENT,LD - Hunts Locality,LD - Huntigndonshire  - Care,Rehabilitation And Respite Care
Cambridgeshire County Council,23-Jul-19,51301062534,"-4,655.00",Accomplish Group Support Limited,CARE ESTABLISHMENT,LD - Hunts Locality,LD - Huntigndonshire  - Special Needs,Rehabilitation And Respite Care
Cambridgeshire County Council,23-Jul-19,51301062531,"-4,655.00",Accomplish Group Support Limited,CARE ESTABLISHMENT,LD - Hunts Locality,LD - Huntigndonshire  - Special Needs,Rehabilitation And Respite Care
Cambridgeshire County Council,23-Jul-19,51301062538,"-4,655.00",Accomplish Group Support Limited,CARE ESTABLISHMENT,LD - Hunts Locality,LD - Huntigndonshire  - Special Needs,Rehabilitation And Respite Care
Cambridgeshire County Council,23-Jul-19,51301062555,"-4,655.00",Accomplish Group Support Limited,CARE ESTABLISHMENT,LD - Hunts Locality,LD - Huntigndonshire  - Special Needs,Rehabilitation And Respite Care
Cambridgeshire County Council,23-Jul-19,51301062554,"-4,655.00",Accomplish Group Support Limited,CARE ESTABLISHMENT,LD - Hunts Locality,LD - Huntigndonshire  - Special Needs,Rehabilitation And Respite Care
Cambridgeshire County Council,23-Jul-19,51301062522,"-4,655.00",Accomplish Group Support Limited,CARE ESTABLISHMENT,LD - Hunts Locality,LD - Huntigndonshire  - Special Needs,Rehabilitation And Respite Care
Cambridgeshire County Council,23-Jul-19,51301062542,"-4,655.00",Accomplish Group Support Limited,CARE ESTABLISHMENT,LD - Hunts Locality,LD - Huntigndonshire  - Special Needs,Rehabilitation And Respite Care
Cambridgeshire County Council,23-Jul-19,51301062545,"-4,655.00",Accomplish Group Support Limited,CARE ESTABLISHMENT,LD - Hunts Locality,LD - Huntigndonshire  - Care,Rehabilitation And Respite Care
Cambridgeshire County Council,23-Jul-19,51301062533,"-4,655.00",Accomplish Group Support Limited,CARE ESTABLISHMENT,LD - Hunts Locality,LD - Huntigndonshire  - Care,Rehabilitation And Respite Care
Cambridgeshire County Council,05-Jul-19,51301021414,"-4,004.29",RADIS COMMUNITY CARE,CARE ESTABLISHMENT,Authority-wide Miscellaneous,Miscellaneous - Other,Unallocated Budget
Cambridgeshire County Council,18-Jul-19,51301021273,"-3,993.55",VIX TECHNOLOGY UK LIMITED,COMPANY,Highways - RTPI,Highways - RTPI,Construction - External Professional Fees
Cambridgeshire County Council,01-Jul-19,51301021563,"-3,885.00",EAQ,EDUCATION,Out of School Tuition,Out of School Provision - Education and Settings,Agency Placements - In County
Cambridgeshire County Council,02-Jul-19,51301021352,"-3,596.12",WCL UK LTD,TRADE SUPPLIER,ICT Service,ICT Service Sales,Materials for resale
Cambridgeshire County Council,25-Jul-19,51301021603,"-3,350.79",THE NATIONAL FOSTERING AGENCY,CARE ESTABLISHMENT,LAC Placements,Placements - Social Care,Agency Placements - In County
Cambridgeshire County Council,12-Jul-19,51301036588,"-3,325.00",Accomplish Group Support Limited,CARE ESTABLISHMENT,LD - Hunts Locality,LD - Huntigndonshire  - Care,Rehabilitation And Respite Care
Cambridgeshire County Council,12-Jul-19,51301028845,"-3,325.00",Accomplish Group Support Limited,CARE ESTABLISHMENT,LD - Hunts Locality,LD - Huntigndonshire  - Special Needs,Rehabilitation And Respite Care
Cambridgeshire County Council,12-Jul-19,51301020162,"-3,325.00",Accomplish Group Support Limited,CARE ESTABLISHMENT,LD - Hunts Locality,LD - Huntigndonshire  - Special Needs,Rehabilitation And Respite Care
Cambridgeshire County Council,23-Jul-19,51301062530,"-3,325.00",Accomplish Group Support Limited,CARE ESTABLISHMENT,LD - Hunts Locality,LD - Huntigndonshire  - Special Needs,Rehabilitation And Respite Care
Cambridgeshire County Council,15-Jul-19,51301010949,"-3,306.36",MILTON KEYNES COUNCIL,OTHER PUBLIC BODIES,Safeguarding East & South Cambs and Cambridge,C&F Safeguarding ESCC - Interpreters,Professional Fees and Hired Services
Cambridgeshire County Council,29-Jul-19,51301065934,"-3,300.00",SECURITY GATES AND DOORS,PARTNERSHIP,County Farms,County Farms,County Farms Maintenance unplanned
Cambridgeshire County Council,23-Jul-19,51301021599,"-3,096.80",CAERUS CARE LTD,CARE ESTABLISHMENT,LD - Fenland Locality,LD - Fenland  - Care,Residential Care - Property Voids
Cambridgeshire County Council,29-Jul-19,51301065924,"-2,790.00",SECURITY GATES AND DOORS,PARTNERSHIP,County Farms,County Farms,County Farms Maintenance unplanned
Cambridgeshire County Council,05-Jul-19,51301021585,"-2,563.94",RADIS COMMUNITY CARE,CARE ESTABLISHMENT,OP - East Cambs Extra Care,Ness Court,Joint Partnership Funding
Cambridgeshire County Council,01-Jul-19,51301021356,"-2,448.00",FRESH START IN EDUCATION,CARE ESTABLISHMENT,Out of School Tuition,Out of School Provision - Education and Settings,Agency Placements - In County
Cambridgeshire County Council,29-Jul-19,51301021597,"-2,444.44",MEDWAY COUNCIL,OTHER PUBLIC BODIES,LAC Placements,Placements - independent fostering,Agency Placements - Out of  County
Cambridgeshire County Council,25-Jul-19,51301021596,"-2,421.00",INTEGRATED SERVICES PROGRAMME (ISP),CARE ESTABLISHMENT,Fostering,FCP allowances,Adoption Allowances
Cambridgeshire County Council,23-Jul-19,51301021594,"-2,400.44",CAERUS CARE LTD,CARE ESTABLISHMENT,LD - Fenland Locality,LD - Fenland  - Care,Residential Care - Property Voids
Cambridgeshire County Council,11-Jul-19,51301026885,"-2,337.29",DIMENSIONS (UK) LTD,CARE ESTABLISHMENT,LD - South Locality,LD - South Cambs - Special Needs,Supported Living
Cambridgeshire County Council,11-Jul-19,51301026898,"-2,337.29",DIMENSIONS (UK) LTD,CARE ESTABLISHMENT,LD - South Locality,LD - South Cambs - Special Needs,Supported Living
Cambridgeshire County Council,11-Jul-19,51301035550,"-2,337.29",DIMENSIONS (UK) LTD,CARE ESTABLISHMENT,LD - South Locality,LD - South Cambs - Special Needs,Supported Living
Cambridgeshire County Council,11-Jul-19,51301026890,"-2,337.29",DIMENSIONS (UK) LTD,CARE ESTABLISHMENT,LD - South Locality,LD - South Cambs - Special Needs,Supported Living
Cambridgeshire County Council,11-Jul-19,51301026892,"-2,337.29",DIMENSIONS (UK) LTD,CARE ESTABLISHMENT,LD - South Locality,LD - South Cambs - Special Needs,Supported Living
Cambridgeshire County Council,11-Jul-19,51301035557,"-2,337.29",DIMENSIONS (UK) LTD,CARE ESTABLISHMENT,LD - South Locality,LD - South Cambs - Special Needs,Supported Living
Cambridgeshire County Council,11-Jul-19,51301035554,"-2,337.29",DIMENSIONS (UK) LTD,CARE ESTABLISHMENT,LD - South Locality,LD - South Cambs - Special Needs,Supported Living
Cambridgeshire County Council,11-Jul-19,51301035555,"-2,337.29",DIMENSIONS (UK) LTD,CARE ESTABLISHMENT,LD - South Locality,LD - South Cambs - Special Needs,Supported Living
Cambridgeshire County Council,11-Jul-19,51301035549,"-2,337.29",DIMENSIONS (UK) LTD,CARE ESTABLISHMENT,LD - South Locality,LD - South Cambs - Special Needs,Supported Living
Cambridgeshire County Council,11-Jul-19,51301018206,"-2,337.29",DIMENSIONS (UK) LTD,CARE ESTABLISHMENT,LD - South Locality,LD - South Cambs - Special Needs,Supported Living
Cambridgeshire County Council,11-Jul-19,51301018208,"-2,337.29",DIMENSIONS (UK) LTD,CARE ESTABLISHMENT,LD - South Locality,LD - South Cambs - Special Needs,Supported Living
Cambridgeshire County Council,11-Jul-19,51301035560,"-2,337.29",DIMENSIONS (UK) LTD,CARE ESTABLISHMENT,LD - South Locality,LD - South Cambs - Special Needs,Supported Living
Cambridgeshire County Council,11-Jul-19,51301018207,"-2,337.29",DIMENSIONS (UK) LTD,CARE ESTABLISHMENT,LD - City Locality,LD - City - Special Needs,Supported Living
Cambridgeshire County Council,11-Jul-19,51301035552,"-2,337.29",DIMENSIONS (UK) LTD,CARE ESTABLISHMENT,LD - City Locality,LD - City - Special Needs,Supported Living
Cambridgeshire County Council,11-Jul-19,51301018200,"-2,337.29",DIMENSIONS (UK) LTD,CARE ESTABLISHMENT,LD - City Locality,LD - City - Special Needs,Supported Living
Cambridgeshire County Council,11-Jul-19,51301026897,"-2,337.29",DIMENSIONS (UK) LTD,CARE ESTABLISHMENT,LD - City Locality,LD - City - Special Needs,Supported Living
Cambridgeshire County Council,11-Jul-19,51301018209,"-2,337.29",DIMENSIONS (UK) LTD,CARE ESTABLISHMENT,LD - City Locality,LD - City - Special Needs,Supported Living
Cambridgeshire County Council,11-Jul-19,51301018211,"-2,337.29",DIMENSIONS (UK) LTD,CARE ESTABLISHMENT,LD - City Locality,LD - City - Special Needs,Supported Living
Cambridgeshire County Council,11-Jul-19,51301026881,"-2,337.29",DIMENSIONS (UK) LTD,CARE ESTABLISHMENT,LD - City Locality,LD - City - Special Needs,Supported Living
Cambridgeshire County Council,11-Jul-19,51301035544,"-2,337.29",DIMENSIONS (UK) LTD,CARE ESTABLISHMENT,LD - City Locality,LD - City - Special Needs,Supported Living
Cambridgeshire County Council,11-Jul-19,51301018205,"-2,337.29",DIMENSIONS (UK) LTD,CARE ESTABLISHMENT,LD - City Locality,LD - City - Special Needs,Supported Living
Cambridgeshire County Council,11-Jul-19,51301026884,"-2,337.29",DIMENSIONS (UK) LTD,CARE ESTABLISHMENT,LD - City Locality,LD - City - Special Needs,Supported Living
Cambridgeshire County Council,11-Jul-19,51301018196,"-2,337.29",DIMENSIONS (UK) LTD,CARE ESTABLISHMENT,LD - City Locality,LD - City - Special Needs,Supported Living
Cambridgeshire County Council,11-Jul-19,51301026895,"-2,337.29",DIMENSIONS (UK) LTD,CARE ESTABLISHMENT,LD - City Locality,LD - City - Special Needs,Supported Living
Cambridgeshire County Council,23-Jul-19,51301056424,"-2,337.29",DIMENSIONS (UK) LTD,CARE ESTABLISHMENT,LD - South Locality,LD - South Cambs - Special Needs,Supported Living
Cambridgeshire County Council,23-Jul-19,51301056421,"-2,337.29",DIMENSIONS (UK) LTD,CARE ESTABLISHMENT,LD - South Locality,LD - South Cambs - Special Needs,Supported Living
Cambridgeshire County Council,23-Jul-19,51301056416,"-2,337.29",DIMENSIONS (UK) LTD,CARE ESTABLISHMENT,LD - South Locality,LD - South Cambs - Special Needs,Supported Living
Cambridgeshire County Council,23-Jul-19,51301056425,"-2,337.29",DIMENSIONS (UK) LTD,CARE ESTABLISHMENT,LD - South Locality,LD - South Cambs - Special Needs,Supported Living
Cambridgeshire County Council,23-Jul-19,51301056422,"-2,337.29",DIMENSIONS (UK) LTD,CARE ESTABLISHMENT,LD - South Locality,LD - South Cambs - Special Needs,Supported Living
Cambridgeshire County Council,23-Jul-19,51301056409,"-2,337.29",DIMENSIONS (UK) LTD,CARE ESTABLISHMENT,LD - South Locality,LD - South Cambs - Special Needs,Supported Living
Cambridgeshire County Council,23-Jul-19,51301056411,"-2,337.29",DIMENSIONS (UK) LTD,CARE ESTABLISHMENT,LD - City Locality,LD - City - Special Needs,Supported Living
Cambridgeshire County Council,23-Jul-19,51301056412,"-2,337.29",DIMENSIONS (UK) LTD,CARE ESTABLISHMENT,LD - City Locality,LD - City - Special Needs,Supported Living
Cambridgeshire County Council,26-Jul-19,51301072498,"-2,337.29",DIMENSIONS (UK) LTD,CARE ESTABLISHMENT,LD - South Locality,LD - South Cambs - Special Needs,Supported Living
Cambridgeshire County Council,26-Jul-19,51301072486,"-2,337.29",DIMENSIONS (UK) LTD,CARE ESTABLISHMENT,LD - South Locality,LD - South Cambs - Special Needs,Supported Living
Cambridgeshire County Council,26-Jul-19,51301072490,"-2,337.29",DIMENSIONS (UK) LTD,CARE ESTABLISHMENT,LD - South Locality,LD - South Cambs - Special Needs,Supported Living
Cambridgeshire County Council,26-Jul-19,51301072496,"-2,337.29",DIMENSIONS (UK) LTD,CARE ESTABLISHMENT,LD - South Locality,LD - South Cambs - Special Needs,Supported Living
Cambridgeshire County Council,26-Jul-19,51301072491,"-2,337.29",DIMENSIONS (UK) LTD,CARE ESTABLISHMENT,LD - City Locality,LD - City - Special Needs,Supported Living
Cambridgeshire County Council,26-Jul-19,51301072501,"-2,337.29",DIMENSIONS (UK) LTD,CARE ESTABLISHMENT,LD - City Locality,LD - City - Special Needs,Supported Living
Cambridgeshire County Council,26-Jul-19,51301072493,"-2,337.29",DIMENSIONS (UK) LTD,CARE ESTABLISHMENT,LD - City Locality,LD - City - Special Needs,Supported Living
Cambridgeshire County Council,26-Jul-19,51301072485,"-2,337.29",DIMENSIONS (UK) LTD,CARE ESTABLISHMENT,LD - City Locality,LD - City - Special Needs,Supported Living
Cambridgeshire County Council,12-Jul-19,51301037958,"-2,326.08",IMTECH AQUA MAINTENANCE LTD,COMPANY,BM - Corporate Offices,Building Maintenance,Building Structural Maintenance - Reactive
Cambridgeshire County Council,30-Jul-19,51301030021,"-2,278.50",Lincolns Care Ltd,CARE ESTABLISHMENT,LAC Placements,Placements - supported accommodation,Agency Placements - In County
Cambridgeshire County Council,04-Jul-19,51301021501,"-2,205.42",R G CARTER CAMBRIDGE LTD,COMPANY,Burwell Primary,Burwell Primary,"New Construction, Conversion and Renovation"
Cambridgeshire County Council,26-Jul-19,51301070229,"-1,872.29",VOYAGE,CARE ESTABLISHMENT,LD - City Locality,LD - City - Special Needs,Supported Living
Cambridgeshire County Council,26-Jul-19,51301070227,"-1,872.29",VOYAGE,CARE ESTABLISHMENT,LD - City Locality,LD - City - Special Needs,Supported Living
Cambridgeshire County Council,05-Jul-19,51301021366,"-1,749.00",Geometric Results International Limited,TRADE SUPPLIER,Digital Systems,Project Mosaic,Professional Fees and Hired Services
Cambridgeshire County Council,15-Jul-19,51301013291,"-1,738.50",Action For Children Services Ltd,EDUCATION,Community Support Service,Community Support Service ECF,Grants to Voluntary Bodies
Cambridgeshire County Council,09-Jul-19,51301022739,"-1,728.00",NATIONAL TEACHING & ADVISORY SERVICE FOR LOOKED AFTER CHILDREN (NT & AS),OTHER PUBLIC BODIES,Out of School Tuition,Out of School Provision - Education and Settings,Independent School Placements
Cambridgeshire County Council,08-Jul-19,51301021288,"-1,716.00",DART TAXIS (MARCH),TRADE SUPPLIER,Authority-wide Miscellaneous,Miscellaneous - Other,Unallocated Budget
Cambridgeshire County Council,23-Jul-19,51301034891,"-1,711.36",AFFINITY TRUST,CARE ESTABLISHMENT,LD - Fenland Locality,LD - Fenland  - Care,Supported Living
Cambridgeshire County Council,23-Jul-19,51301054918,"-1,711.36",AFFINITY TRUST,CARE ESTABLISHMENT,LD - Fenland Locality,LD - Fenland  - Care,Supported Living
Cambridgeshire County Council,23-Jul-19,51301017430,"-1,711.36",AFFINITY TRUST,CARE ESTABLISHMENT,LD - Fenland Locality,LD - Fenland  - Care,Supported Living
Cambridgeshire County Council,23-Jul-19,51301054920,"-1,711.36",AFFINITY TRUST,CARE ESTABLISHMENT,LD - Fenland Locality,LD - Fenland  - Care,Supported Living
Cambridgeshire County Council,23-Jul-19,51301017433,"-1,711.36",AFFINITY TRUST,CARE ESTABLISHMENT,LD - Fenland Locality,LD - Fenland  - Care,Supported Living
Cambridgeshire County Council,23-Jul-19,51301034879,"-1,711.36",AFFINITY TRUST,CARE ESTABLISHMENT,LD - Fenland Locality,LD - Fenland  - Care,Supported Living
Cambridgeshire County Council,23-Jul-19,51301026146,"-1,711.36",AFFINITY TRUST,CARE ESTABLISHMENT,LD - Fenland Locality,LD - Fenland  - Care,Supported Living
Cambridgeshire County Council,23-Jul-19,51301054916,"-1,711.36",AFFINITY TRUST,CARE ESTABLISHMENT,LD - Fenland Locality,LD - Fenland  - Care,Supported Living
Cambridgeshire County Council,23-Jul-19,51301026176,"-1,711.36",AFFINITY TRUST,CARE ESTABLISHMENT,LD - Fenland Locality,LD - Fenland  - Care,Supported Living
Cambridgeshire County Council,23-Jul-19,51301054925,"-1,711.36",AFFINITY TRUST,CARE ESTABLISHMENT,LD - Fenland Locality,LD - Fenland  - Care,Supported Living
Cambridgeshire County Council,23-Jul-19,51301034895,"-1,711.36",AFFINITY TRUST,CARE ESTABLISHMENT,LD - Fenland Locality,LD - Fenland  - Care,Supported Living
Cambridgeshire County Council,23-Jul-19,51301026174,"-1,711.36",AFFINITY TRUST,CARE ESTABLISHMENT,LD - Fenland Locality,LD - Fenland  - Care,Supported Living
Cambridgeshire County Council,23-Jul-19,51301017406,"-1,711.36",AFFINITY TRUST,CARE ESTABLISHMENT,LD - Fenland Locality,LD - Fenland  - Care,Supported Living
Cambridgeshire County Council,23-Jul-19,51301026175,"-1,711.36",AFFINITY TRUST,CARE ESTABLISHMENT,LD - Fenland Locality,LD - Fenland  - Care,Supported Living
Cambridgeshire County Council,23-Jul-19,51301054933,"-1,711.36",AFFINITY TRUST,CARE ESTABLISHMENT,LD - Fenland Locality,LD - Fenland  - Care,Supported Living
Cambridgeshire County Council,23-Jul-19,51301026170,"-1,711.36",AFFINITY TRUST,CARE ESTABLISHMENT,LD - Fenland Locality,LD - Fenland  - Care,Supported Living
Cambridgeshire County Council,23-Jul-19,51301054927,"-1,711.36",AFFINITY TRUST,CARE ESTABLISHMENT,LD - Fenland Locality,LD - Fenland  - Care,Supported Living
Cambridgeshire County Council,23-Jul-19,51301034889,"-1,711.36",AFFINITY TRUST,CARE ESTABLISHMENT,LD - Fenland Locality,LD - Fenland  - Care,Supported Living
Cambridgeshire County Council,23-Jul-19,51301034890,"-1,711.36",AFFINITY TRUST,CARE ESTABLISHMENT,LD - Fenland Locality,LD - Fenland  - Care,Supported Living
Cambridgeshire County Council,23-Jul-19,51301026167,"-1,711.36",AFFINITY TRUST,CARE ESTABLISHMENT,LD - Fenland Locality,LD - Fenland  - Care,Supported Living
Cambridgeshire County Council,23-Jul-19,51301017409,"-1,711.36",AFFINITY TRUST,CARE ESTABLISHMENT,LD - Fenland Locality,LD - Fenland  - Care,Supported Living
Cambridgeshire County Council,23-Jul-19,51301034880,"-1,711.36",AFFINITY TRUST,CARE ESTABLISHMENT,LD - Fenland Locality,LD - Fenland  - Care,Supported Living
Cambridgeshire County Council,23-Jul-19,51301017432,"-1,711.36",AFFINITY TRUST,CARE ESTABLISHMENT,LD - Fenland Locality,LD - Fenland  - Care,Supported Living
Cambridgeshire County Council,23-Jul-19,51301054917,"-1,711.36",AFFINITY TRUST,CARE ESTABLISHMENT,LD - Fenland Locality,LD - Fenland  - Care,Supported Living
Cambridgeshire County Council,23-Jul-19,51301026151,"-1,711.36",AFFINITY TRUST,CARE ESTABLISHMENT,LD - Fenland Locality,LD - Fenland  - Care,Supported Living
Cambridgeshire County Council,23-Jul-19,51301026168,"-1,711.36",AFFINITY TRUST,CARE ESTABLISHMENT,LD - Fenland Locality,LD - Fenland  - Care,Supported Living
Cambridgeshire County Council,23-Jul-19,51301054909,"-1,711.36",AFFINITY TRUST,CARE ESTABLISHMENT,LD - Fenland Locality,LD - Fenland  - Care,Supported Living
Cambridgeshire County Council,23-Jul-19,51301017429,"-1,711.36",AFFINITY TRUST,CARE ESTABLISHMENT,LD - Fenland Locality,LD - Fenland  - Special Needs,Supported Living
Cambridgeshire County Council,23-Jul-19,51301054906,"-1,711.36",AFFINITY TRUST,CARE ESTABLISHMENT,LD - Fenland Locality,LD - Fenland  - Special Needs,Supported Living
Cambridgeshire County Council,23-Jul-19,51301017416,"-1,711.36",AFFINITY TRUST,CARE ESTABLISHMENT,LD - Fenland Locality,LD - Fenland  - Special Needs,Supported Living
Cambridgeshire County Council,23-Jul-19,51301034875,"-1,711.36",AFFINITY TRUST,CARE ESTABLISHMENT,LD - Fenland Locality,LD - Fenland  - Special Needs,Supported Living
Cambridgeshire County Council,23-Jul-19,51301017419,"-1,711.36",AFFINITY TRUST,CARE ESTABLISHMENT,LD - Fenland Locality,LD - Fenland  - Special Needs,Supported Living
Cambridgeshire County Council,23-Jul-19,51301034876,"-1,711.36",AFFINITY TRUST,CARE ESTABLISHMENT,LD - Fenland Locality,LD - Fenland  - Special Needs,Supported Living
Cambridgeshire County Council,23-Jul-19,51301017424,"-1,711.36",AFFINITY TRUST,CARE ESTABLISHMENT,LD - Fenland Locality,LD - Fenland  - Special Needs,Supported Living
Cambridgeshire County Council,23-Jul-19,51301017434,"-1,711.36",AFFINITY TRUST,CARE ESTABLISHMENT,LD - Fenland Locality,LD - Fenland  - Special Needs,Supported Living
Cambridgeshire County Council,23-Jul-19,51301054901,"-1,711.36",AFFINITY TRUST,CARE ESTABLISHMENT,LD - Fenland Locality,LD - Fenland  - Special Needs,Supported Living
Cambridgeshire County Council,23-Jul-19,51301054940,"-1,711.36",AFFINITY TRUST,CARE ESTABLISHMENT,LD - Fenland Locality,LD - Fenland  - Special Needs,Supported Living
Cambridgeshire County Council,23-Jul-19,51301017428,"-1,711.36",AFFINITY TRUST,CARE ESTABLISHMENT,LD - Fenland Locality,LD - Fenland  - Special Needs,Supported Living
Cambridgeshire County Council,23-Jul-19,51301034877,"-1,711.36",AFFINITY TRUST,CARE ESTABLISHMENT,LD - Fenland Locality,LD - Fenland  - Special Needs,Supported Living
Cambridgeshire County Council,23-Jul-19,51301017418,"-1,711.36",AFFINITY TRUST,CARE ESTABLISHMENT,LD - Fenland Locality,LD - Fenland  - Special Needs,Supported Living
Cambridgeshire County Council,23-Jul-19,51301017414,"-1,711.36",AFFINITY TRUST,CARE ESTABLISHMENT,LD - Fenland Locality,LD - Fenland  - Special Needs,Supported Living
Cambridgeshire County Council,23-Jul-19,51301026166,"-1,711.36",AFFINITY TRUST,CARE ESTABLISHMENT,LD - Fenland Locality,LD - Fenland  - Special Needs,Supported Living
Cambridgeshire County Council,23-Jul-19,51301054912,"-1,711.36",AFFINITY TRUST,CARE ESTABLISHMENT,LD - Fenland Locality,LD - Fenland  - Special Needs,Supported Living
Cambridgeshire County Council,23-Jul-19,51301026149,"-1,711.36",AFFINITY TRUST,CARE ESTABLISHMENT,LD - Fenland Locality,LD - Fenland  - Special Needs,Supported Living
Cambridgeshire County Council,23-Jul-19,51301026164,"-1,711.36",AFFINITY TRUST,CARE ESTABLISHMENT,LD - Fenland Locality,LD - Fenland  - Special Needs,Supported Living
Cambridgeshire County Council,23-Jul-19,51301034881,"-1,711.36",AFFINITY TRUST,CARE ESTABLISHMENT,LD - Fenland Locality,LD - Fenland  - Special Needs,Supported Living
Cambridgeshire County Council,23-Jul-19,51301034872,"-1,711.36",AFFINITY TRUST,CARE ESTABLISHMENT,LD - Fenland Locality,LD - Fenland  - Special Needs,Supported Living
Cambridgeshire County Council,23-Jul-19,51301026165,"-1,711.36",AFFINITY TRUST,CARE ESTABLISHMENT,LD - Fenland Locality,LD - Fenland  - Special Needs,Supported Living
Cambridgeshire County Council,23-Jul-19,51301026148,"-1,711.36",AFFINITY TRUST,CARE ESTABLISHMENT,LD - Fenland Locality,LD - Fenland  - Special Needs,Supported Living
Cambridgeshire County Council,23-Jul-19,51301034882,"-1,711.36",AFFINITY TRUST,CARE ESTABLISHMENT,LD - Fenland Locality,LD - Fenland  - Special Needs,Supported Living
Cambridgeshire County Council,23-Jul-19,51301034885,"-1,711.36",AFFINITY TRUST,CARE ESTABLISHMENT,LD - Fenland Locality,LD - Fenland  - Special Needs,Supported Living
Cambridgeshire County Council,23-Jul-19,51301054914,"-1,711.36",AFFINITY TRUST,CARE ESTABLISHMENT,LD - Fenland Locality,LD - Fenland  - Special Needs,Supported Living
Cambridgeshire County Council,23-Jul-19,51301017407,"-1,711.36",AFFINITY TRUST,CARE ESTABLISHMENT,LD - Fenland Locality,LD - Fenland  - Special Needs,Supported Living
Cambridgeshire County Council,23-Jul-19,51301017415,"-1,711.36",AFFINITY TRUST,CARE ESTABLISHMENT,LD - Fenland Locality,LD - Fenland  - Special Needs,Supported Living
Cambridgeshire County Council,23-Jul-19,51301017420,"-1,711.36",AFFINITY TRUST,CARE ESTABLISHMENT,LD - Fenland Locality,LD - Fenland  - Special Needs,Supported Living
Cambridgeshire County Council,23-Jul-19,51301034896,"-1,711.36",AFFINITY TRUST,CARE ESTABLISHMENT,LD - Fenland Locality,LD - Fenland  - Special Needs,Supported Living
Cambridgeshire County Council,23-Jul-19,51301026154,"-1,711.36",AFFINITY TRUST,CARE ESTABLISHMENT,LD - Fenland Locality,LD - Fenland  - Special Needs,Supported Living
Cambridgeshire County Council,23-Jul-19,51301026159,"-1,711.36",AFFINITY TRUST,CARE ESTABLISHMENT,LD - Fenland Locality,LD - Fenland  - Special Needs,Supported Living
Cambridgeshire County Council,23-Jul-19,51301034902,"-1,711.36",AFFINITY TRUST,CARE ESTABLISHMENT,LD - Fenland Locality,LD - Fenland  - Special Needs,Supported Living
Cambridgeshire County Council,23-Jul-19,51301054910,"-1,711.36",AFFINITY TRUST,CARE ESTABLISHMENT,LD - Fenland Locality,LD - Fenland  - Special Needs,Supported Living
Cambridgeshire County Council,23-Jul-19,51301034894,"-1,711.36",AFFINITY TRUST,CARE ESTABLISHMENT,LD - Fenland Locality,LD - Fenland  - Special Needs,Supported Living
Cambridgeshire County Council,23-Jul-19,51301054904,"-1,711.36",AFFINITY TRUST,CARE ESTABLISHMENT,LD - Fenland Locality,LD - Fenland  - Special Needs,Supported Living
Cambridgeshire County Council,23-Jul-19,51301026172,"-1,711.36",AFFINITY TRUST,CARE ESTABLISHMENT,LD - Fenland Locality,LD - Fenland  - Special Needs,Supported Living
Cambridgeshire County Council,23-Jul-19,51301054938,"-1,711.36",AFFINITY TRUST,CARE ESTABLISHMENT,LD - Fenland Locality,LD - Fenland  - Special Needs,Supported Living
Cambridgeshire County Council,23-Jul-19,51301049523,"-1,668.30",73 HIGH ROAD,CARE ESTABLISHMENT,LD - Fenland Locality,LD - Fenland  - Care,Supported Living
Cambridgeshire County Council,23-Jul-19,51301049500,"-1,668.30",73 HIGH ROAD,CARE ESTABLISHMENT,LD - Fenland Locality,LD - Fenland  - Care,Supported Living
Cambridgeshire County Council,23-Jul-19,51301049496,"-1,668.30",73 HIGH ROAD,CARE ESTABLISHMENT,LD - Hunts Locality,LD - Huntigndonshire  - Special Needs,Supported Living
Cambridgeshire County Council,23-Jul-19,51301015861,"-1,668.30",73 HIGH ROAD,CARE ESTABLISHMENT,LD - Hunts Locality,LD - Huntigndonshire  - Special Needs,Supported Living
Cambridgeshire County Council,23-Jul-19,51301049520,"-1,668.30",73 HIGH ROAD,CARE ESTABLISHMENT,LD - Hunts Locality,LD - Huntigndonshire  - Special Needs,Supported Living
Cambridgeshire County Council,23-Jul-19,51301015832,"-1,668.30",73 HIGH ROAD,CARE ESTABLISHMENT,LD - Hunts Locality,LD - Huntigndonshire  - Special Needs,Supported Living
Cambridgeshire County Council,23-Jul-19,51301015860,"-1,668.30",73 HIGH ROAD,CARE ESTABLISHMENT,LD - Hunts Locality,LD - Huntigndonshire  - Special Needs,Supported Living
Cambridgeshire County Council,23-Jul-19,51301015847,"-1,668.30",73 HIGH ROAD,CARE ESTABLISHMENT,LD - Hunts Locality,LD - Huntigndonshire  - Special Needs,Supported Living
Cambridgeshire County Council,23-Jul-19,51301015864,"-1,668.30",73 HIGH ROAD,CARE ESTABLISHMENT,LD - Hunts Locality,LD - Huntigndonshire  - Special Needs,Supported Living
Cambridgeshire County Council,23-Jul-19,51301015830,"-1,668.30",73 HIGH ROAD,CARE ESTABLISHMENT,LD - Hunts Locality,LD - Huntigndonshire  - Special Needs,Supported Living
Cambridgeshire County Council,23-Jul-19,51301049509,"-1,668.30",73 HIGH ROAD,CARE ESTABLISHMENT,LD - Hunts Locality,LD - Huntigndonshire  - Special Needs,Supported Living
Cambridgeshire County Council,23-Jul-19,51301049498,"-1,668.30",73 HIGH ROAD,CARE ESTABLISHMENT,LD - Hunts Locality,LD - Huntigndonshire  - Special Needs,Supported Living
Cambridgeshire County Council,23-Jul-19,51301049515,"-1,668.30",73 HIGH ROAD,CARE ESTABLISHMENT,LD - Hunts Locality,LD - Huntigndonshire  - Special Needs,Supported Living
Cambridgeshire County Council,23-Jul-19,51301049473,"-1,668.30",73 HIGH ROAD,CARE ESTABLISHMENT,LD - Hunts Locality,LD - Huntigndonshire  - Special Needs,Supported Living
Cambridgeshire County Council,23-Jul-19,51301049516,"-1,668.30",73 HIGH ROAD,CARE ESTABLISHMENT,LD - Hunts Locality,LD - Huntigndonshire  - Special Needs,Supported Living
Cambridgeshire County Council,23-Jul-19,51301049495,"-1,668.30",73 HIGH ROAD,CARE ESTABLISHMENT,LD - Hunts Locality,LD - Huntigndonshire  - Special Needs,Supported Living
Cambridgeshire County Council,23-Jul-19,51301049499,"-1,668.30",73 HIGH ROAD,CARE ESTABLISHMENT,LD - Fenland Locality,LD - Fenland  - Care,Supported Living
Cambridgeshire County Council,23-Jul-19,51301049483,"-1,668.30",73 HIGH ROAD,CARE ESTABLISHMENT,LD - Fenland Locality,LD - Fenland  - Care,Supported Living
Cambridgeshire County Council,23-Jul-19,51301015840,"-1,668.30",73 HIGH ROAD,CARE ESTABLISHMENT,LD - Hunts Locality,LD - Huntigndonshire  - Special Needs,Supported Living
Cambridgeshire County Council,23-Jul-19,51301049490,"-1,668.30",73 HIGH ROAD,CARE ESTABLISHMENT,LD - Hunts Locality,LD - Huntigndonshire  - Special Needs,Supported Living
Cambridgeshire County Council,23-Jul-19,51301049497,"-1,668.30",73 HIGH ROAD,CARE ESTABLISHMENT,LD - Hunts Locality,LD - Huntigndonshire  - Special Needs,Supported Living
Cambridgeshire County Council,23-Jul-19,51301049512,"-1,668.30",73 HIGH ROAD,CARE ESTABLISHMENT,LD - Hunts Locality,LD - Huntigndonshire  - Special Needs,Supported Living
Cambridgeshire County Council,23-Jul-19,51301049484,"-1,668.30",73 HIGH ROAD,CARE ESTABLISHMENT,LD - Fenland Locality,LD - Fenland  - Care,Supported Living
Cambridgeshire County Council,23-Jul-19,51301049478,"-1,668.30",73 HIGH ROAD,CARE ESTABLISHMENT,LD - Fenland Locality,LD - Fenland  - Care,Supported Living
Cambridgeshire County Council,23-Jul-19,51301049492,"-1,668.30",73 HIGH ROAD,CARE ESTABLISHMENT,LD - Hunts Locality,LD - Huntigndonshire  - Special Needs,Supported Living
Cambridgeshire County Council,23-Jul-19,51301049475,"-1,668.30",73 HIGH ROAD,CARE ESTABLISHMENT,LD - Fenland Locality,LD - Fenland  - Care,Supported Living
Cambridgeshire County Council,26-Jul-19,51301070228,"-1,604.82",VOYAGE,CARE ESTABLISHMENT,LD - City Locality,LD - City - Special Needs,Supported Living
Cambridgeshire County Council,02-Jul-19,51301021616,"-1,560.60",ADAMS CABS,TRADE SUPPLIER,Home to School Transport - Special,Home to School Transport Special - Central Costs,Social Care Transport
Cambridgeshire County Council,05-Jul-19,51301021592,"-1,507.73",RADIS COMMUNITY CARE,CARE ESTABLISHMENT,OP - East Cambs Extra Care,Baird Lodge,Joint Partnership Funding
Cambridgeshire County Council,05-Jul-19,51301021589,"-1,507.73",RADIS COMMUNITY CARE,CARE ESTABLISHMENT,OP - East Cambs Extra Care,Baird Lodge,Joint Partnership Funding
Cambridgeshire County Council,23-Jul-19,51301063792,"-1,485.00",BETTER HEALTHCARE SERVICES LTD,CARE ESTABLISHMENT,OPMH - Hunts & Fens,Older People Mental Health Hunts,Domiciliary Care
Cambridgeshire County Council,23-Jul-19,51301063879,"-1,485.00",BETTER HEALTHCARE SERVICES LTD,CARE ESTABLISHMENT,OPMH - Hunts & Fens,Older People Mental Health Hunts,Domiciliary Care
Cambridgeshire County Council,23-Jul-19,51301063861,"-1,485.00",BETTER HEALTHCARE SERVICES LTD,CARE ESTABLISHMENT,OPMH - Hunts & Fens,Older People Mental Health Hunts,Domiciliary Care
Cambridgeshire County Council,23-Jul-19,51301063826,"-1,485.00",BETTER HEALTHCARE SERVICES LTD,CARE ESTABLISHMENT,OPMH - Hunts & Fens,Older People Mental Health Hunts,Domiciliary Care
Cambridgeshire County Council,23-Jul-19,51301063802,"-1,485.00",BETTER HEALTHCARE SERVICES LTD,CARE ESTABLISHMENT,OPMH - Hunts & Fens,Older People Mental Health Hunts,Domiciliary Care
Cambridgeshire County Council,23-Jul-19,51301063850,"-1,485.00",BETTER HEALTHCARE SERVICES LTD,CARE ESTABLISHMENT,OPMH - Hunts & Fens,Older People Mental Health Hunts,Domiciliary Care
Cambridgeshire County Council,23-Jul-19,51301063810,"-1,485.00",BETTER HEALTHCARE SERVICES LTD,CARE ESTABLISHMENT,OPMH - Hunts & Fens,Older People Mental Health Hunts,Domiciliary Care
Cambridgeshire County Council,23-Jul-19,51301063777,"-1,485.00",BETTER HEALTHCARE SERVICES LTD,CARE ESTABLISHMENT,OPMH - Hunts & Fens,Older People Mental Health Hunts,Domiciliary Care
Cambridgeshire County Council,23-Jul-19,51301063828,"-1,485.00",BETTER HEALTHCARE SERVICES LTD,CARE ESTABLISHMENT,OPMH - Hunts & Fens,Older People Mental Health Hunts,Domiciliary Care
Cambridgeshire County Council,23-Jul-19,51301063778,"-1,485.00",BETTER HEALTHCARE SERVICES LTD,CARE ESTABLISHMENT,OPMH - Hunts & Fens,Older People Mental Health Hunts,Domiciliary Care
Cambridgeshire County Council,23-Jul-19,51301063873,"-1,485.00",BETTER HEALTHCARE SERVICES LTD,CARE ESTABLISHMENT,OPMH - Hunts & Fens,Older People Mental Health Hunts,Domiciliary Care
Cambridgeshire County Council,23-Jul-19,51301063805,"-1,485.00",BETTER HEALTHCARE SERVICES LTD,CARE ESTABLISHMENT,OPMH - Hunts & Fens,Older People Mental Health Hunts,Domiciliary Care
Cambridgeshire County Council,23-Jul-19,51301063857,"-1,485.00",BETTER HEALTHCARE SERVICES LTD,CARE ESTABLISHMENT,OPMH - Hunts & Fens,Older People Mental Health Hunts,Domiciliary Care
Cambridgeshire County Council,12-Jul-19,51301037767,"-1,476.51",CONQUEST CARE HOMES PETERBOROUGH,CARE ESTABLISHMENT,LD - Young Adults Team,LD - Young Adults - Special Needs,Residential Care
Cambridgeshire County Council,12-Jul-19,51301037767,"-1,476.51",CONQUEST CARE HOMES PETERBOROUGH,CARE ESTABLISHMENT,LD - Young Adults Team,LD - Young Adults - Special Needs,Residential Care
Cambridgeshire County Council,12-Jul-19,51301037767,"-1,476.51",CONQUEST CARE HOMES PETERBOROUGH,CARE ESTABLISHMENT,LD - Young Adults Team,LD - Young Adults - Special Needs,Residential Care
Cambridgeshire County Council,12-Jul-19,51301037767,"-1,476.51",CONQUEST CARE HOMES PETERBOROUGH,CARE ESTABLISHMENT,LD - Young Adults Team,LD - Young Adults - Special Needs,Residential Care
Cambridgeshire County Council,12-Jul-19,51301037767,"-1,476.51",CONQUEST CARE HOMES PETERBOROUGH,CARE ESTABLISHMENT,LD - Young Adults Team,LD - Young Adults - Special Needs,Residential Care
Cambridgeshire County Council,12-Jul-19,51301037767,"-1,476.51",CONQUEST CARE HOMES PETERBOROUGH,CARE ESTABLISHMENT,LD - Young Adults Team,LD - Young Adults - Special Needs,Residential Care
Cambridgeshire County Council,12-Jul-19,51301037767,"-1,476.51",CONQUEST CARE HOMES PETERBOROUGH,CARE ESTABLISHMENT,LD - Young Adults Team,LD - Young Adults - Special Needs,Residential Care
Cambridgeshire County Council,12-Jul-19,51301037767,"-1,476.51",CONQUEST CARE HOMES PETERBOROUGH,CARE ESTABLISHMENT,LD - Young Adults Team,LD - Young Adults - Special Needs,Residential Care
Cambridgeshire County Council,12-Jul-19,51301037767,"-1,476.51",CONQUEST CARE HOMES PETERBOROUGH,CARE ESTABLISHMENT,LD - Young Adults Team,LD - Young Adults - Special Needs,Residential Care
Cambridgeshire County Council,12-Jul-19,51301037767,"-1,476.51",CONQUEST CARE HOMES PETERBOROUGH,CARE ESTABLISHMENT,LD - Young Adults Team,LD - Young Adults - Special Needs,Residential Care
Cambridgeshire County Council,12-Jul-19,51301037767,"-1,476.51",CONQUEST CARE HOMES PETERBOROUGH,CARE ESTABLISHMENT,LD - Young Adults Team,LD - Young Adults - Special Needs,Residential Care
Cambridgeshire County Council,12-Jul-19,51301037767,"-1,476.51",CONQUEST CARE HOMES PETERBOROUGH,CARE ESTABLISHMENT,LD - Young Adults Team,LD - Young Adults - Special Needs,Residential Care
Cambridgeshire County Council,12-Jul-19,51301037767,"-1,476.51",CONQUEST CARE HOMES PETERBOROUGH,CARE ESTABLISHMENT,LD - Young Adults Team,LD - Young Adults - Special Needs,Residential Care
Cambridgeshire County Council,12-Jul-19,51301037767,"-1,476.51",CONQUEST CARE HOMES PETERBOROUGH,CARE ESTABLISHMENT,LD - Young Adults Team,LD - Young Adults - Special Needs,Residential Care
Cambridgeshire County Council,12-Jul-19,51301037767,"-1,476.51",CONQUEST CARE HOMES PETERBOROUGH,CARE ESTABLISHMENT,LD - Young Adults Team,LD - Young Adults - Special Needs,Residential Care
Cambridgeshire County Council,12-Jul-19,51301037767,"-1,476.51",CONQUEST CARE HOMES PETERBOROUGH,CARE ESTABLISHMENT,LD - Young Adults Team,LD - Young Adults - Special Needs,Residential Care
Cambridgeshire County Council,12-Jul-19,51301037767,"-1,476.51",CONQUEST CARE HOMES PETERBOROUGH,CARE ESTABLISHMENT,LD - Young Adults Team,LD - Young Adults - Special Needs,Residential Care
Cambridgeshire County Council,24-Jul-19,53300019853,"-1,472.60",HMRC - PAYE,OTHER PUBLIC BODIES,Financing items,Additional Pension Contribution,Pay
Cambridgeshire County Council,29-Jul-19,51301064625,"-1,440.00",PROACTIS Group Ltd,COMPANY,Procurement,Strategic Procurement & Contract Managem,Consultancy
Cambridgeshire County Council,23-Jul-19,51301049530,"-1,429.97",73 HIGH ROAD,CARE ESTABLISHMENT,LD - Hunts Locality,LD - Huntigndonshire  - Special Needs,Supported Living
Cambridgeshire County Council,23-Jul-19,51301049526,"-1,429.97",73 HIGH ROAD,CARE ESTABLISHMENT,LD - Hunts Locality,LD - Huntigndonshire  - Special Needs,Supported Living
Cambridgeshire County Council,08-Jul-19,51301022917,"-1,407.41",IMTECH AQUA MAINTENANCE LTD,COMPANY,Energy Efficiency Fund,Energy Efficiency Fund,"New Construction, Conversion and Renovation"
Cambridgeshire County Council,01-Jul-19,51301021618,"-1,374.00",CENTRAL ENGLAND CO-OPERATIVE FUNERALS,TRADE SUPPLIER,Coroners,Coroners General,Professional Fees and Hired Services
Cambridgeshire County Council,02-Jul-19,51301021370,"-1,327.10",WCL UK LTD,TRADE SUPPLIER,ICT Service,ICT Service Sales,Materials for resale
Cambridgeshire County Council,12-Jul-19,51301024838,"-1,317.11",ALDERTON HOUSE,CARE ESTABLISHMENT,LD - East Locality,LD - East Cambs - Care,Residential Care
Cambridgeshire County Council,12-Jul-19,51301033926,"-1,317.11",ALDERTON HOUSE,CARE ESTABLISHMENT,LD - East Locality,LD - East Cambs - Care,Residential Care
Cambridgeshire County Council,12-Jul-19,51301033916,"-1,317.11",ALDERTON HOUSE,CARE ESTABLISHMENT,LD - East Locality,LD - East Cambs - Care,Residential Care
Cambridgeshire County Council,12-Jul-19,51301015244,"-1,317.11",ALDERTON HOUSE,CARE ESTABLISHMENT,LD - East Locality,LD - East Cambs - Care,Residential Care
Cambridgeshire County Council,12-Jul-19,51301024763,"-1,317.11",ALDERTON HOUSE,CARE ESTABLISHMENT,LD - East Locality,LD - East Cambs - Care,Residential Care
Cambridgeshire County Council,12-Jul-19,51301015282,"-1,317.11",ALDERTON HOUSE,CARE ESTABLISHMENT,LD - East Locality,LD - East Cambs - Care,Residential Care
Cambridgeshire County Council,12-Jul-19,51301033947,"-1,317.11",ALDERTON HOUSE,CARE ESTABLISHMENT,LD - East Locality,LD - East Cambs - Care,Residential Care
Cambridgeshire County Council,12-Jul-19,51301033974,"-1,317.11",ALDERTON HOUSE,CARE ESTABLISHMENT,LD - East Locality,LD - East Cambs - Care,Residential Care
Cambridgeshire County Council,12-Jul-19,51301024793,"-1,317.11",ALDERTON HOUSE,CARE ESTABLISHMENT,LD - East Locality,LD - East Cambs - Care,Residential Care
Cambridgeshire County Council,12-Jul-19,51301015397,"-1,317.11",ALDERTON HOUSE,CARE ESTABLISHMENT,LD - East Locality,LD - East Cambs - Care,Residential Care
Cambridgeshire County Council,12-Jul-19,51301015287,"-1,317.11",ALDERTON HOUSE,CARE ESTABLISHMENT,LD - East Locality,LD - East Cambs - Care,Residential Care
Cambridgeshire County Council,12-Jul-19,51301033938,"-1,317.11",ALDERTON HOUSE,CARE ESTABLISHMENT,LD - East Locality,LD - East Cambs - Care,Residential Care
Cambridgeshire County Council,12-Jul-19,51301033937,"-1,317.11",ALDERTON HOUSE,CARE ESTABLISHMENT,LD - East Locality,LD - East Cambs - Care,Residential Care
Cambridgeshire County Council,12-Jul-19,51301033956,"-1,317.11",ALDERTON HOUSE,CARE ESTABLISHMENT,LD - East Locality,LD - East Cambs - Care,Residential Care
Cambridgeshire County Council,12-Jul-19,51301033853,"-1,317.11",ALDERTON HOUSE,CARE ESTABLISHMENT,LD - East Locality,LD - East Cambs - Care,Residential Care
Cambridgeshire County Council,12-Jul-19,51301024827,"-1,317.11",ALDERTON HOUSE,CARE ESTABLISHMENT,LD - East Locality,LD - East Cambs - Care,Residential Care
Cambridgeshire County Council,12-Jul-19,51301015243,"-1,317.11",ALDERTON HOUSE,CARE ESTABLISHMENT,LD - East Locality,LD - East Cambs - Care,Residential Care
Cambridgeshire County Council,12-Jul-19,51301033955,"-1,317.11",ALDERTON HOUSE,CARE ESTABLISHMENT,LD - East Locality,LD - East Cambs - Care,Residential Care
Cambridgeshire County Council,12-Jul-19,51301024823,"-1,317.11",ALDERTON HOUSE,CARE ESTABLISHMENT,LD - East Locality,LD - East Cambs - Care,Residential Care
Cambridgeshire County Council,12-Jul-19,51301015330,"-1,317.11",ALDERTON HOUSE,CARE ESTABLISHMENT,LD - East Locality,LD - East Cambs - Care,Residential Care
Cambridgeshire County Council,12-Jul-19,51301033901,"-1,317.11",ALDERTON HOUSE,CARE ESTABLISHMENT,LD - East Locality,LD - East Cambs - Special Needs,Residential Care
Cambridgeshire County Council,12-Jul-19,51301033911,"-1,317.11",ALDERTON HOUSE,CARE ESTABLISHMENT,LD - East Locality,LD - East Cambs - Special Needs,Residential Care
Cambridgeshire County Council,12-Jul-19,51301015358,"-1,317.11",ALDERTON HOUSE,CARE ESTABLISHMENT,LD - East Locality,LD - East Cambs - Special Needs,Residential Care
Cambridgeshire County Council,12-Jul-19,51301024803,"-1,317.11",ALDERTON HOUSE,CARE ESTABLISHMENT,LD - East Locality,LD - East Cambs - Special Needs,Residential Care
Cambridgeshire County Council,12-Jul-19,51301033930,"-1,317.11",ALDERTON HOUSE,CARE ESTABLISHMENT,LD - East Locality,LD - East Cambs - Special Needs,Residential Care
Cambridgeshire County Council,12-Jul-19,51301015299,"-1,317.11",ALDERTON HOUSE,CARE ESTABLISHMENT,LD - East Locality,LD - East Cambs - Special Needs,Residential Care
Cambridgeshire County Council,12-Jul-19,51301033859,"-1,317.11",ALDERTON HOUSE,CARE ESTABLISHMENT,LD - East Locality,LD - East Cambs - Care,Residential Care
Cambridgeshire County Council,12-Jul-19,51301024821,"-1,317.11",ALDERTON HOUSE,CARE ESTABLISHMENT,LD - East Locality,LD - East Cambs - Care,Residential Care
Cambridgeshire County Council,12-Jul-19,51301015326,"-1,317.11",ALDERTON HOUSE,CARE ESTABLISHMENT,LD - East Locality,LD - East Cambs - Care,Residential Care
Cambridgeshire County Council,12-Jul-19,51301033919,"-1,317.11",ALDERTON HOUSE,CARE ESTABLISHMENT,LD - East Locality,LD - East Cambs - Care,Residential Care
Cambridgeshire County Council,12-Jul-19,51301015367,"-1,317.11",ALDERTON HOUSE,CARE ESTABLISHMENT,LD - East Locality,LD - East Cambs - Care,Residential Care
Cambridgeshire County Council,12-Jul-19,51301033961,"-1,317.11",ALDERTON HOUSE,CARE ESTABLISHMENT,LD - East Locality,LD - East Cambs - Care,Residential Care
Cambridgeshire County Council,12-Jul-19,51301024824,"-1,317.11",ALDERTON HOUSE,CARE ESTABLISHMENT,LD - East Locality,LD - East Cambs - Care,Residential Care
Cambridgeshire County Council,12-Jul-19,51301024771,"-1,317.11",ALDERTON HOUSE,CARE ESTABLISHMENT,LD - East Locality,LD - East Cambs - Care,Residential Care
Cambridgeshire County Council,12-Jul-19,51301033939,"-1,317.11",ALDERTON HOUSE,CARE ESTABLISHMENT,LD - East Locality,LD - East Cambs - Care,Residential Care
Cambridgeshire County Council,12-Jul-19,51301033927,"-1,317.11",ALDERTON HOUSE,CARE ESTABLISHMENT,LD - East Locality,LD - East Cambs - Care,Residential Care
Cambridgeshire County Council,12-Jul-19,51301024802,"-1,317.11",ALDERTON HOUSE,CARE ESTABLISHMENT,LD - East Locality,LD - East Cambs - Care,Residential Care
Cambridgeshire County Council,12-Jul-19,51301015254,"-1,317.11",ALDERTON HOUSE,CARE ESTABLISHMENT,LD - East Locality,LD - East Cambs - Care,Residential Care
Cambridgeshire County Council,12-Jul-19,51301024862,"-1,317.11",ALDERTON HOUSE,CARE ESTABLISHMENT,LD - East Locality,LD - East Cambs - Care,Residential Care
Cambridgeshire County Council,12-Jul-19,51301024765,"-1,317.11",ALDERTON HOUSE,CARE ESTABLISHMENT,LD - East Locality,LD - East Cambs - Care,Residential Care
Cambridgeshire County Council,12-Jul-19,51301024869,"-1,317.11",ALDERTON HOUSE,CARE ESTABLISHMENT,LD - East Locality,LD - East Cambs - Care,Residential Care
Cambridgeshire County Council,12-Jul-19,51301015314,"-1,317.11",ALDERTON HOUSE,CARE ESTABLISHMENT,LD - East Locality,LD - East Cambs - Care,Residential Care
Cambridgeshire County Council,12-Jul-19,51301015401,"-1,317.11",ALDERTON HOUSE,CARE ESTABLISHMENT,LD - East Locality,LD - East Cambs - Care,Residential Care
Cambridgeshire County Council,12-Jul-19,51301024775,"-1,317.11",ALDERTON HOUSE,CARE ESTABLISHMENT,LD - East Locality,LD - East Cambs - Care,Residential Care
Cambridgeshire County Council,12-Jul-19,51301015332,"-1,317.11",ALDERTON HOUSE,CARE ESTABLISHMENT,LD - East Locality,LD - East Cambs - Care,Residential Care
Cambridgeshire County Council,12-Jul-19,51301033855,"-1,317.11",ALDERTON HOUSE,CARE ESTABLISHMENT,LD - East Locality,LD - East Cambs - Care,Residential Care
Cambridgeshire County Council,12-Jul-19,51301015394,"-1,317.11",ALDERTON HOUSE,CARE ESTABLISHMENT,LD - East Locality,LD - East Cambs - Care,Residential Care
Cambridgeshire County Council,12-Jul-19,51301015250,"-1,317.11",ALDERTON HOUSE,CARE ESTABLISHMENT,LD - East Locality,LD - East Cambs - Care,Residential Care
Cambridgeshire County Council,12-Jul-19,51301015352,"-1,317.11",ALDERTON HOUSE,CARE ESTABLISHMENT,LD - East Locality,LD - East Cambs - Care,Residential Care
Cambridgeshire County Council,12-Jul-19,51301024822,"-1,317.11",ALDERTON HOUSE,CARE ESTABLISHMENT,LD - East Locality,LD - East Cambs - Care,Residential Care
Cambridgeshire County Council,12-Jul-19,51301033921,"-1,317.11",ALDERTON HOUSE,CARE ESTABLISHMENT,LD - East Locality,LD - East Cambs - Care,Residential Care
Cambridgeshire County Council,12-Jul-19,51301033884,"-1,317.11",ALDERTON HOUSE,CARE ESTABLISHMENT,LD - East Locality,LD - East Cambs - Care,Residential Care
Cambridgeshire County Council,12-Jul-19,51301024833,"-1,317.11",ALDERTON HOUSE,CARE ESTABLISHMENT,LD - East Locality,LD - East Cambs - Care,Residential Care
Cambridgeshire County Council,12-Jul-19,51301015308,"-1,317.11",ALDERTON HOUSE,CARE ESTABLISHMENT,LD - East Locality,LD - East Cambs - Care,Residential Care
Cambridgeshire County Council,12-Jul-19,51301033931,"-1,317.11",ALDERTON HOUSE,CARE ESTABLISHMENT,LD - East Locality,LD - East Cambs - Care,Residential Care
Cambridgeshire County Council,12-Jul-19,51301024847,"-1,317.11",ALDERTON HOUSE,CARE ESTABLISHMENT,LD - East Locality,LD - East Cambs - Care,Residential Care
Cambridgeshire County Council,12-Jul-19,51301024801,"-1,317.11",ALDERTON HOUSE,CARE ESTABLISHMENT,LD - East Locality,LD - East Cambs - Care,Residential Care
Cambridgeshire County Council,12-Jul-19,51301033899,"-1,317.11",ALDERTON HOUSE,CARE ESTABLISHMENT,LD - East Locality,LD - East Cambs - Care,Residential Care
Cambridgeshire County Council,12-Jul-19,51301015273,"-1,317.11",ALDERTON HOUSE,CARE ESTABLISHMENT,LD - East Locality,LD - East Cambs - Care,Residential Care
Cambridgeshire County Council,12-Jul-19,51301015364,"-1,317.11",ALDERTON HOUSE,CARE ESTABLISHMENT,LD - East Locality,LD - East Cambs - Care,Residential Care
Cambridgeshire County Council,12-Jul-19,51301015339,"-1,317.11",ALDERTON HOUSE,CARE ESTABLISHMENT,LD - East Locality,LD - East Cambs - Care,Residential Care
Cambridgeshire County Council,12-Jul-19,51301015245,"-1,317.11",ALDERTON HOUSE,CARE ESTABLISHMENT,LD - East Locality,LD - East Cambs - Care,Residential Care
Cambridgeshire County Council,12-Jul-19,51301024807,"-1,317.11",ALDERTON HOUSE,CARE ESTABLISHMENT,LD - East Locality,LD - East Cambs - Care,Residential Care
Cambridgeshire County Council,12-Jul-19,51301024860,"-1,317.11",ALDERTON HOUSE,CARE ESTABLISHMENT,LD - East Locality,LD - East Cambs - Care,Residential Care
Cambridgeshire County Council,12-Jul-19,51301033890,"-1,317.11",ALDERTON HOUSE,CARE ESTABLISHMENT,LD - East Locality,LD - East Cambs - Care,Residential Care
Cambridgeshire County Council,12-Jul-19,51301033871,"-1,317.11",ALDERTON HOUSE,CARE ESTABLISHMENT,LD - East Locality,LD - East Cambs - Care,Residential Care
Cambridgeshire County Council,12-Jul-19,51301033958,"-1,317.11",ALDERTON HOUSE,CARE ESTABLISHMENT,LD - East Locality,LD - East Cambs - Care,Residential Care
Cambridgeshire County Council,12-Jul-19,51301015365,"-1,317.11",ALDERTON HOUSE,CARE ESTABLISHMENT,LD - East Locality,LD - East Cambs - Care,Residential Care
Cambridgeshire County Council,12-Jul-19,51301015260,"-1,317.11",ALDERTON HOUSE,CARE ESTABLISHMENT,LD - East Locality,LD - East Cambs - Care,Residential Care
Cambridgeshire County Council,12-Jul-19,51301015392,"-1,317.11",ALDERTON HOUSE,CARE ESTABLISHMENT,LD - East Locality,LD - East Cambs - Care,Residential Care
Cambridgeshire County Council,12-Jul-19,51301024850,"-1,317.11",ALDERTON HOUSE,CARE ESTABLISHMENT,LD - East Locality,LD - East Cambs - Care,Residential Care
Cambridgeshire County Council,12-Jul-19,51301024829,"-1,317.11",ALDERTON HOUSE,CARE ESTABLISHMENT,LD - East Locality,LD - East Cambs - Care,Residential Care
Cambridgeshire County Council,12-Jul-19,51301024877,"-1,317.11",ALDERTON HOUSE,CARE ESTABLISHMENT,LD - East Locality,LD - East Cambs - Care,Residential Care
Cambridgeshire County Council,12-Jul-19,51301033917,"-1,317.11",ALDERTON HOUSE,CARE ESTABLISHMENT,LD - East Locality,LD - East Cambs - Care,Residential Care
Cambridgeshire County Council,12-Jul-19,51301033948,"-1,317.11",ALDERTON HOUSE,CARE ESTABLISHMENT,LD - East Locality,LD - East Cambs - Care,Residential Care
Cambridgeshire County Council,12-Jul-19,51301033908,"-1,317.11",ALDERTON HOUSE,CARE ESTABLISHMENT,LD - East Locality,LD - East Cambs - Care,Residential Care
Cambridgeshire County Council,12-Jul-19,51301015309,"-1,317.11",ALDERTON HOUSE,CARE ESTABLISHMENT,LD - East Locality,LD - East Cambs - Care,Residential Care
Cambridgeshire County Council,12-Jul-19,51301015368,"-1,317.11",ALDERTON HOUSE,CARE ESTABLISHMENT,LD - East Locality,LD - East Cambs - Care,Residential Care
Cambridgeshire County Council,12-Jul-19,51301033887,"-1,317.11",ALDERTON HOUSE,CARE ESTABLISHMENT,LD - East Locality,LD - East Cambs - Care,Residential Care
Cambridgeshire County Council,12-Jul-19,51301033898,"-1,317.11",ALDERTON HOUSE,CARE ESTABLISHMENT,LD - East Locality,LD - East Cambs - Care,Residential Care
Cambridgeshire County Council,12-Jul-19,51301024867,"-1,317.11",ALDERTON HOUSE,CARE ESTABLISHMENT,LD - East Locality,LD - East Cambs - Care,Residential Care
Cambridgeshire County Council,12-Jul-19,51301024871,"-1,317.11",ALDERTON HOUSE,CARE ESTABLISHMENT,LD - East Locality,LD - East Cambs - Care,Residential Care
Cambridgeshire County Council,12-Jul-19,51301033953,"-1,317.11",ALDERTON HOUSE,CARE ESTABLISHMENT,LD - East Locality,LD - East Cambs - Care,Residential Care
Cambridgeshire County Council,12-Jul-19,51301033907,"-1,317.11",ALDERTON HOUSE,CARE ESTABLISHMENT,LD - East Locality,LD - East Cambs - Care,Residential Care
Cambridgeshire County Council,12-Jul-19,51301015348,"-1,317.11",ALDERTON HOUSE,CARE ESTABLISHMENT,LD - East Locality,LD - East Cambs - Special Needs,Residential Care
Cambridgeshire County Council,12-Jul-19,51301024841,"-1,317.11",ALDERTON HOUSE,CARE ESTABLISHMENT,LD - East Locality,LD - East Cambs - Special Needs,Residential Care
Cambridgeshire County Council,12-Jul-19,51301024846,"-1,317.11",ALDERTON HOUSE,CARE ESTABLISHMENT,LD - East Locality,LD - East Cambs - Special Needs,Residential Care
Cambridgeshire County Council,12-Jul-19,51301024854,"-1,317.11",ALDERTON HOUSE,CARE ESTABLISHMENT,LD - East Locality,LD - East Cambs - Special Needs,Residential Care
Cambridgeshire County Council,12-Jul-19,51301024883,"-1,317.11",ALDERTON HOUSE,CARE ESTABLISHMENT,LD - East Locality,LD - East Cambs - Special Needs,Residential Care
Cambridgeshire County Council,12-Jul-19,51301033895,"-1,317.11",ALDERTON HOUSE,CARE ESTABLISHMENT,LD - East Locality,LD - East Cambs - Special Needs,Residential Care
Cambridgeshire County Council,12-Jul-19,51301024816,"-1,317.11",ALDERTON HOUSE,CARE ESTABLISHMENT,LD - East Locality,LD - East Cambs - Special Needs,Residential Care
Cambridgeshire County Council,12-Jul-19,51301015336,"-1,317.11",ALDERTON HOUSE,CARE ESTABLISHMENT,LD - East Locality,LD - East Cambs - Special Needs,Residential Care
Cambridgeshire County Council,12-Jul-19,51301033886,"-1,317.11",ALDERTON HOUSE,CARE ESTABLISHMENT,LD - East Locality,LD - East Cambs - Special Needs,Residential Care
Cambridgeshire County Council,12-Jul-19,51301015334,"-1,317.11",ALDERTON HOUSE,CARE ESTABLISHMENT,LD - East Locality,LD - East Cambs - Special Needs,Residential Care
Cambridgeshire County Council,12-Jul-19,51301015317,"-1,317.11",ALDERTON HOUSE,CARE ESTABLISHMENT,LD - East Locality,LD - East Cambs - Special Needs,Residential Care
Cambridgeshire County Council,12-Jul-19,51301024782,"-1,317.11",ALDERTON HOUSE,CARE ESTABLISHMENT,LD - East Locality,LD - East Cambs - Special Needs,Residential Care
Cambridgeshire County Council,12-Jul-19,51301033940,"-1,317.11",ALDERTON HOUSE,CARE ESTABLISHMENT,LD - East Locality,LD - East Cambs - Special Needs,Residential Care
Cambridgeshire County Council,12-Jul-19,51301033949,"-1,317.11",ALDERTON HOUSE,CARE ESTABLISHMENT,LD - East Locality,LD - East Cambs - Special Needs,Residential Care
Cambridgeshire County Council,12-Jul-19,51301024818,"-1,317.11",ALDERTON HOUSE,CARE ESTABLISHMENT,LD - East Locality,LD - East Cambs - Special Needs,Residential Care
Cambridgeshire County Council,12-Jul-19,51301024853,"-1,317.11",ALDERTON HOUSE,CARE ESTABLISHMENT,LD - East Locality,LD - East Cambs - Special Needs,Residential Care
Cambridgeshire County Council,12-Jul-19,51301033924,"-1,317.11",ALDERTON HOUSE,CARE ESTABLISHMENT,LD - East Locality,LD - East Cambs - Special Needs,Residential Care
Cambridgeshire County Council,12-Jul-19,51301033880,"-1,317.11",ALDERTON HOUSE,CARE ESTABLISHMENT,LD - East Locality,LD - East Cambs - Special Needs,Residential Care
Cambridgeshire County Council,12-Jul-19,51301015271,"-1,317.11",ALDERTON HOUSE,CARE ESTABLISHMENT,LD - East Locality,LD - East Cambs - Special Needs,Residential Care
Cambridgeshire County Council,12-Jul-19,51301015286,"-1,317.11",ALDERTON HOUSE,CARE ESTABLISHMENT,LD - East Locality,LD - East Cambs - Special Needs,Residential Care
Cambridgeshire County Council,12-Jul-19,51301015294,"-1,317.11",ALDERTON HOUSE,CARE ESTABLISHMENT,LD - East Locality,LD - East Cambs - Special Needs,Residential Care
Cambridgeshire County Council,12-Jul-19,51301015340,"-1,317.11",ALDERTON HOUSE,CARE ESTABLISHMENT,LD - East Locality,LD - East Cambs - Special Needs,Residential Care
Cambridgeshire County Council,12-Jul-19,51301015372,"-1,317.11",ALDERTON HOUSE,CARE ESTABLISHMENT,LD - East Locality,LD - East Cambs - Special Needs,Residential Care
Cambridgeshire County Council,12-Jul-19,51301024764,"-1,317.11",ALDERTON HOUSE,CARE ESTABLISHMENT,LD - East Locality,LD - East Cambs - Special Needs,Residential Care
Cambridgeshire County Council,12-Jul-19,51301024769,"-1,317.11",ALDERTON HOUSE,CARE ESTABLISHMENT,LD - East Locality,LD - East Cambs - Special Needs,Residential Care
Cambridgeshire County Council,12-Jul-19,51301024840,"-1,317.11",ALDERTON HOUSE,CARE ESTABLISHMENT,LD - East Locality,LD - East Cambs - Special Needs,Residential Care
Cambridgeshire County Council,12-Jul-19,51301015327,"-1,317.11",ALDERTON HOUSE,CARE ESTABLISHMENT,LD - East Locality,LD - East Cambs - Special Needs,Residential Care
Cambridgeshire County Council,12-Jul-19,51301024760,"-1,317.11",ALDERTON HOUSE,CARE ESTABLISHMENT,LD - East Locality,LD - East Cambs - Special Needs,Residential Care
Cambridgeshire County Council,12-Jul-19,51301024778,"-1,317.11",ALDERTON HOUSE,CARE ESTABLISHMENT,LD - East Locality,LD - East Cambs - Special Needs,Residential Care
Cambridgeshire County Council,12-Jul-19,51301033905,"-1,317.11",ALDERTON HOUSE,CARE ESTABLISHMENT,LD - East Locality,LD - East Cambs - Special Needs,Residential Care
Cambridgeshire County Council,12-Jul-19,51301015296,"-1,317.11",ALDERTON HOUSE,CARE ESTABLISHMENT,LD - East Locality,LD - East Cambs - Special Needs,Residential Care
Cambridgeshire County Council,12-Jul-19,51301024872,"-1,317.11",ALDERTON HOUSE,CARE ESTABLISHMENT,LD - East Locality,LD - East Cambs - Special Needs,Residential Care
Cambridgeshire County Council,12-Jul-19,51301033852,"-1,317.11",ALDERTON HOUSE,CARE ESTABLISHMENT,LD - East Locality,LD - East Cambs - Special Needs,Residential Care
Cambridgeshire County Council,12-Jul-19,51301024787,"-1,317.11",ALDERTON HOUSE,CARE ESTABLISHMENT,LD - East Locality,LD - East Cambs - Special Needs,Residential Care
Cambridgeshire County Council,12-Jul-19,51301033860,"-1,317.11",ALDERTON HOUSE,CARE ESTABLISHMENT,LD - East Locality,LD - East Cambs - Special Needs,Residential Care
Cambridgeshire County Council,12-Jul-19,51301033861,"-1,317.11",ALDERTON HOUSE,CARE ESTABLISHMENT,LD - East Locality,LD - East Cambs - Special Needs,Residential Care
Cambridgeshire County Council,12-Jul-19,51301033965,"-1,317.11",ALDERTON HOUSE,CARE ESTABLISHMENT,LD - East Locality,LD - East Cambs - Special Needs,Residential Care
Cambridgeshire County Council,12-Jul-19,51301015279,"-1,317.11",ALDERTON HOUSE,CARE ESTABLISHMENT,LD - East Locality,LD - East Cambs - Special Needs,Residential Care
Cambridgeshire County Council,12-Jul-19,51301015316,"-1,317.11",ALDERTON HOUSE,CARE ESTABLISHMENT,LD - East Locality,LD - East Cambs - Special Needs,Residential Care
Cambridgeshire County Council,12-Jul-19,51301024878,"-1,317.11",ALDERTON HOUSE,CARE ESTABLISHMENT,LD - East Locality,LD - East Cambs - Special Needs,Residential Care
Cambridgeshire County Council,12-Jul-19,51301033866,"-1,317.11",ALDERTON HOUSE,CARE ESTABLISHMENT,LD - East Locality,LD - East Cambs - Special Needs,Residential Care
Cambridgeshire County Council,12-Jul-19,51301024842,"-1,317.11",ALDERTON HOUSE,CARE ESTABLISHMENT,LD - East Locality,LD - East Cambs - Special Needs,Residential Care
Cambridgeshire County Council,12-Jul-19,51301024881,"-1,317.11",ALDERTON HOUSE,CARE ESTABLISHMENT,LD - East Locality,LD - East Cambs - Special Needs,Residential Care
Cambridgeshire County Council,12-Jul-19,51301015344,"-1,317.11",ALDERTON HOUSE,CARE ESTABLISHMENT,LD - East Locality,LD - East Cambs - Special Needs,Residential Care
Cambridgeshire County Council,12-Jul-19,51301024865,"-1,317.11",ALDERTON HOUSE,CARE ESTABLISHMENT,LD - East Locality,LD - East Cambs - Special Needs,Residential Care
Cambridgeshire County Council,12-Jul-19,51301033856,"-1,317.11",ALDERTON HOUSE,CARE ESTABLISHMENT,LD - East Locality,LD - East Cambs - Special Needs,Residential Care
Cambridgeshire County Council,12-Jul-19,51301033918,"-1,317.11",ALDERTON HOUSE,CARE ESTABLISHMENT,LD - East Locality,LD - East Cambs - Special Needs,Residential Care
Cambridgeshire County Council,12-Jul-19,51301015251,"-1,317.11",ALDERTON HOUSE,CARE ESTABLISHMENT,LD - East Locality,LD - East Cambs - Special Needs,Residential Care
Cambridgeshire County Council,12-Jul-19,51301033910,"-1,317.11",ALDERTON HOUSE,CARE ESTABLISHMENT,LD - East Locality,LD - East Cambs - Special Needs,Residential Care
Cambridgeshire County Council,12-Jul-19,51301033960,"-1,317.11",ALDERTON HOUSE,CARE ESTABLISHMENT,LD - East Locality,LD - East Cambs - Special Needs,Residential Care
Cambridgeshire County Council,12-Jul-19,51301015272,"-1,317.11",ALDERTON HOUSE,CARE ESTABLISHMENT,LD - East Locality,LD - East Cambs - Special Needs,Residential Care
Cambridgeshire County Council,12-Jul-19,51301015341,"-1,317.11",ALDERTON HOUSE,CARE ESTABLISHMENT,LD - East Locality,LD - East Cambs - Special Needs,Residential Care
Cambridgeshire County Council,12-Jul-19,51301024873,"-1,317.11",ALDERTON HOUSE,CARE ESTABLISHMENT,LD - East Locality,LD - East Cambs - Special Needs,Residential Care
Cambridgeshire County Council,12-Jul-19,51301024789,"-1,317.11",ALDERTON HOUSE,CARE ESTABLISHMENT,LD - East Locality,LD - East Cambs - Special Needs,Residential Care
Cambridgeshire County Council,12-Jul-19,51301033885,"-1,317.11",ALDERTON HOUSE,CARE ESTABLISHMENT,LD - East Locality,LD - East Cambs - Special Needs,Residential Care
Cambridgeshire County Council,12-Jul-19,51301024831,"-1,317.11",ALDERTON HOUSE,CARE ESTABLISHMENT,LD - East Locality,LD - East Cambs - Special Needs,Residential Care
Cambridgeshire County Council,12-Jul-19,51301033935,"-1,317.11",ALDERTON HOUSE,CARE ESTABLISHMENT,LD - East Locality,LD - East Cambs - Special Needs,Residential Care
Cambridgeshire County Council,12-Jul-19,51301015376,"-1,317.11",ALDERTON HOUSE,CARE ESTABLISHMENT,LD - East Locality,LD - East Cambs - Special Needs,Residential Care
Cambridgeshire County Council,12-Jul-19,51301024858,"-1,317.11",ALDERTON HOUSE,CARE ESTABLISHMENT,LD - East Locality,LD - East Cambs - Special Needs,Residential Care
Cambridgeshire County Council,12-Jul-19,51301015347,"-1,317.11",ALDERTON HOUSE,CARE ESTABLISHMENT,LD - East Locality,LD - East Cambs - Special Needs,Residential Care
Cambridgeshire County Council,12-Jul-19,51301015313,"-1,317.11",ALDERTON HOUSE,CARE ESTABLISHMENT,LD - East Locality,LD - East Cambs - Special Needs,Residential Care
Cambridgeshire County Council,12-Jul-19,51301015371,"-1,317.11",ALDERTON HOUSE,CARE ESTABLISHMENT,LD - East Locality,LD - East Cambs - Special Needs,Residential Care
Cambridgeshire County Council,12-Jul-19,51301024851,"-1,317.11",ALDERTON HOUSE,CARE ESTABLISHMENT,LD - East Locality,LD - East Cambs - Special Needs,Residential Care
Cambridgeshire County Council,12-Jul-19,51301024882,"-1,317.11",ALDERTON HOUSE,CARE ESTABLISHMENT,LD - East Locality,LD - East Cambs - Special Needs,Residential Care
Cambridgeshire County Council,12-Jul-19,51301015396,"-1,317.11",ALDERTON HOUSE,CARE ESTABLISHMENT,LD - East Locality,LD - East Cambs - Special Needs,Residential Care
Cambridgeshire County Council,12-Jul-19,51301024852,"-1,317.11",ALDERTON HOUSE,CARE ESTABLISHMENT,LD - East Locality,LD - East Cambs - Special Needs,Residential Care
Cambridgeshire County Council,12-Jul-19,51301033973,"-1,317.11",ALDERTON HOUSE,CARE ESTABLISHMENT,LD - East Locality,LD - East Cambs - Special Needs,Residential Care
Cambridgeshire County Council,12-Jul-19,51301033874,"-1,317.11",ALDERTON HOUSE,CARE ESTABLISHMENT,LD - East Locality,LD - East Cambs - Special Needs,Residential Care
Cambridgeshire County Council,12-Jul-19,51301033944,"-1,317.11",ALDERTON HOUSE,CARE ESTABLISHMENT,LD - East Locality,LD - East Cambs - Special Needs,Residential Care
Cambridgeshire County Council,12-Jul-19,51301024777,"-1,317.11",ALDERTON HOUSE,CARE ESTABLISHMENT,LD - East Locality,LD - East Cambs - Special Needs,Residential Care
Cambridgeshire County Council,12-Jul-19,51301015281,"-1,317.11",ALDERTON HOUSE,CARE ESTABLISHMENT,LD - East Locality,LD - East Cambs - Special Needs,Residential Care
Cambridgeshire County Council,12-Jul-19,51301015295,"-1,317.11",ALDERTON HOUSE,CARE ESTABLISHMENT,LD - East Locality,LD - East Cambs - Special Needs,Residential Care
Cambridgeshire County Council,12-Jul-19,51301015351,"-1,317.11",ALDERTON HOUSE,CARE ESTABLISHMENT,LD - East Locality,LD - East Cambs - Special Needs,Residential Care
Cambridgeshire County Council,12-Jul-19,51301024761,"-1,317.11",ALDERTON HOUSE,CARE ESTABLISHMENT,LD - East Locality,LD - East Cambs - Special Needs,Residential Care
Cambridgeshire County Council,12-Jul-19,51301015370,"-1,317.11",ALDERTON HOUSE,CARE ESTABLISHMENT,LD - East Locality,LD - East Cambs - Special Needs,Residential Care
Cambridgeshire County Council,23-Jul-19,51301048194,"-1,317.11",ALDERTON HOUSE,CARE ESTABLISHMENT,LD - East Locality,LD - East Cambs - Care,Residential Care
Cambridgeshire County Council,23-Jul-19,51301048187,"-1,317.11",ALDERTON HOUSE,CARE ESTABLISHMENT,LD - East Locality,LD - East Cambs - Care,Residential Care
Cambridgeshire County Council,23-Jul-19,51301048209,"-1,317.11",ALDERTON HOUSE,CARE ESTABLISHMENT,LD - East Locality,LD - East Cambs - Care,Residential Care
Cambridgeshire County Council,23-Jul-19,51301048151,"-1,317.11",ALDERTON HOUSE,CARE ESTABLISHMENT,LD - East Locality,LD - East Cambs - Care,Residential Care
Cambridgeshire County Council,23-Jul-19,51301048290,"-1,317.11",ALDERTON HOUSE,CARE ESTABLISHMENT,LD - East Locality,LD - East Cambs - Special Needs,Residential Care
Cambridgeshire County Council,23-Jul-19,51301048258,"-1,317.11",ALDERTON HOUSE,CARE ESTABLISHMENT,LD - East Locality,LD - East Cambs - Special Needs,Residential Care
Cambridgeshire County Council,23-Jul-19,51301048171,"-1,317.11",ALDERTON HOUSE,CARE ESTABLISHMENT,LD - East Locality,LD - East Cambs - Special Needs,Residential Care
Cambridgeshire County Council,23-Jul-19,51301048225,"-1,317.11",ALDERTON HOUSE,CARE ESTABLISHMENT,LD - East Locality,LD - East Cambs - Care,Residential Care
Cambridgeshire County Council,23-Jul-19,51301048165,"-1,317.11",ALDERTON HOUSE,CARE ESTABLISHMENT,LD - East Locality,LD - East Cambs - Care,Residential Care
Cambridgeshire County Council,23-Jul-19,51301048153,"-1,317.11",ALDERTON HOUSE,CARE ESTABLISHMENT,LD - East Locality,LD - East Cambs - Care,Residential Care
Cambridgeshire County Council,23-Jul-19,51301048254,"-1,317.11",ALDERTON HOUSE,CARE ESTABLISHMENT,LD - East Locality,LD - East Cambs - Care,Residential Care
Cambridgeshire County Council,23-Jul-19,51301048199,"-1,317.11",ALDERTON HOUSE,CARE ESTABLISHMENT,LD - East Locality,LD - East Cambs - Care,Residential Care
Cambridgeshire County Council,23-Jul-19,51301048228,"-1,317.11",ALDERTON HOUSE,CARE ESTABLISHMENT,LD - East Locality,LD - East Cambs - Care,Residential Care
Cambridgeshire County Council,23-Jul-19,51301048152,"-1,317.11",ALDERTON HOUSE,CARE ESTABLISHMENT,LD - East Locality,LD - East Cambs - Care,Residential Care
Cambridgeshire County Council,23-Jul-19,51301048264,"-1,317.11",ALDERTON HOUSE,CARE ESTABLISHMENT,LD - East Locality,LD - East Cambs - Care,Residential Care
Cambridgeshire County Council,23-Jul-19,51301048227,"-1,317.11",ALDERTON HOUSE,CARE ESTABLISHMENT,LD - East Locality,LD - East Cambs - Care,Residential Care
Cambridgeshire County Council,23-Jul-19,51301048302,"-1,317.11",ALDERTON HOUSE,CARE ESTABLISHMENT,LD - East Locality,LD - East Cambs - Care,Residential Care
Cambridgeshire County Council,23-Jul-19,51301048303,"-1,317.11",ALDERTON HOUSE,CARE ESTABLISHMENT,LD - East Locality,LD - East Cambs - Care,Residential Care
Cambridgeshire County Council,23-Jul-19,51301048226,"-1,317.11",ALDERTON HOUSE,CARE ESTABLISHMENT,LD - East Locality,LD - East Cambs - Care,Residential Care
Cambridgeshire County Council,23-Jul-19,51301048212,"-1,317.11",ALDERTON HOUSE,CARE ESTABLISHMENT,LD - East Locality,LD - East Cambs - Care,Residential Care
Cambridgeshire County Council,23-Jul-19,51301048164,"-1,317.11",ALDERTON HOUSE,CARE ESTABLISHMENT,LD - East Locality,LD - East Cambs - Care,Residential Care
Cambridgeshire County Council,23-Jul-19,51301048251,"-1,317.11",ALDERTON HOUSE,CARE ESTABLISHMENT,LD - East Locality,LD - East Cambs - Care,Residential Care
Cambridgeshire County Council,23-Jul-19,51301048181,"-1,317.11",ALDERTON HOUSE,CARE ESTABLISHMENT,LD - East Locality,LD - East Cambs - Care,Residential Care
Cambridgeshire County Council,23-Jul-19,51301048195,"-1,317.11",ALDERTON HOUSE,CARE ESTABLISHMENT,LD - East Locality,LD - East Cambs - Care,Residential Care
Cambridgeshire County Council,23-Jul-19,51301048186,"-1,317.11",ALDERTON HOUSE,CARE ESTABLISHMENT,LD - East Locality,LD - East Cambs - Care,Residential Care
Cambridgeshire County Council,23-Jul-19,51301048223,"-1,317.11",ALDERTON HOUSE,CARE ESTABLISHMENT,LD - East Locality,LD - East Cambs - Care,Residential Care
Cambridgeshire County Council,23-Jul-19,51301048297,"-1,317.11",ALDERTON HOUSE,CARE ESTABLISHMENT,LD - East Locality,LD - East Cambs - Care,Residential Care
Cambridgeshire County Council,23-Jul-19,51301048221,"-1,317.11",ALDERTON HOUSE,CARE ESTABLISHMENT,LD - East Locality,LD - East Cambs - Care,Residential Care
Cambridgeshire County Council,23-Jul-19,51301048239,"-1,317.11",ALDERTON HOUSE,CARE ESTABLISHMENT,LD - East Locality,LD - East Cambs - Care,Residential Care
Cambridgeshire County Council,23-Jul-19,51301048213,"-1,317.11",ALDERTON HOUSE,CARE ESTABLISHMENT,LD - East Locality,LD - East Cambs - Special Needs,Residential Care
Cambridgeshire County Council,23-Jul-19,51301048184,"-1,317.11",ALDERTON HOUSE,CARE ESTABLISHMENT,LD - East Locality,LD - East Cambs - Special Needs,Residential Care
Cambridgeshire County Council,23-Jul-19,51301048265,"-1,317.11",ALDERTON HOUSE,CARE ESTABLISHMENT,LD - East Locality,LD - East Cambs - Special Needs,Residential Care
Cambridgeshire County Council,23-Jul-19,51301048274,"-1,317.11",ALDERTON HOUSE,CARE ESTABLISHMENT,LD - East Locality,LD - East Cambs - Special Needs,Residential Care
Cambridgeshire County Council,23-Jul-19,51301048284,"-1,317.11",ALDERTON HOUSE,CARE ESTABLISHMENT,LD - East Locality,LD - East Cambs - Special Needs,Residential Care
Cambridgeshire County Council,23-Jul-19,51301048289,"-1,317.11",ALDERTON HOUSE,CARE ESTABLISHMENT,LD - East Locality,LD - East Cambs - Special Needs,Residential Care
Cambridgeshire County Council,23-Jul-19,51301048278,"-1,317.11",ALDERTON HOUSE,CARE ESTABLISHMENT,LD - East Locality,LD - East Cambs - Special Needs,Residential Care
Cambridgeshire County Council,23-Jul-19,51301048241,"-1,317.11",ALDERTON HOUSE,CARE ESTABLISHMENT,LD - East Locality,LD - East Cambs - Special Needs,Residential Care
Cambridgeshire County Council,23-Jul-19,51301048266,"-1,317.11",ALDERTON HOUSE,CARE ESTABLISHMENT,LD - East Locality,LD - East Cambs - Special Needs,Residential Care
Cambridgeshire County Council,23-Jul-19,51301048163,"-1,317.11",ALDERTON HOUSE,CARE ESTABLISHMENT,LD - East Locality,LD - East Cambs - Special Needs,Residential Care
Cambridgeshire County Council,23-Jul-19,51301048287,"-1,317.11",ALDERTON HOUSE,CARE ESTABLISHMENT,LD - East Locality,LD - East Cambs - Special Needs,Residential Care
Cambridgeshire County Council,23-Jul-19,51301048240,"-1,317.11",ALDERTON HOUSE,CARE ESTABLISHMENT,LD - East Locality,LD - East Cambs - Special Needs,Residential Care
Cambridgeshire County Council,23-Jul-19,51301048175,"-1,317.11",ALDERTON HOUSE,CARE ESTABLISHMENT,LD - East Locality,LD - East Cambs - Special Needs,Residential Care
Cambridgeshire County Council,23-Jul-19,51301048273,"-1,317.11",ALDERTON HOUSE,CARE ESTABLISHMENT,LD - East Locality,LD - East Cambs - Special Needs,Residential Care
Cambridgeshire County Council,23-Jul-19,51301048263,"-1,317.11",ALDERTON HOUSE,CARE ESTABLISHMENT,LD - East Locality,LD - East Cambs - Special Needs,Residential Care
Cambridgeshire County Council,23-Jul-19,51301048253,"-1,317.11",ALDERTON HOUSE,CARE ESTABLISHMENT,LD - East Locality,LD - East Cambs - Special Needs,Residential Care
Cambridgeshire County Council,23-Jul-19,51301048237,"-1,317.11",ALDERTON HOUSE,CARE ESTABLISHMENT,LD - East Locality,LD - East Cambs - Special Needs,Residential Care
Cambridgeshire County Council,23-Jul-19,51301048276,"-1,317.11",ALDERTON HOUSE,CARE ESTABLISHMENT,LD - East Locality,LD - East Cambs - Special Needs,Residential Care
Cambridgeshire County Council,23-Jul-19,51301048148,"-1,317.11",ALDERTON HOUSE,CARE ESTABLISHMENT,LD - East Locality,LD - East Cambs - Special Needs,Residential Care
Cambridgeshire County Council,23-Jul-19,51301048222,"-1,317.11",ALDERTON HOUSE,CARE ESTABLISHMENT,LD - East Locality,LD - East Cambs - Special Needs,Residential Care
Cambridgeshire County Council,23-Jul-19,51301048288,"-1,317.11",ALDERTON HOUSE,CARE ESTABLISHMENT,LD - East Locality,LD - East Cambs - Special Needs,Residential Care
Cambridgeshire County Council,23-Jul-19,51301048157,"-1,317.11",ALDERTON HOUSE,CARE ESTABLISHMENT,LD - East Locality,LD - East Cambs - Special Needs,Residential Care
Cambridgeshire County Council,23-Jul-19,51301048172,"-1,317.11",ALDERTON HOUSE,CARE ESTABLISHMENT,LD - East Locality,LD - East Cambs - Special Needs,Residential Care
Cambridgeshire County Council,23-Jul-19,51301048190,"-1,317.11",ALDERTON HOUSE,CARE ESTABLISHMENT,LD - East Locality,LD - East Cambs - Special Needs,Residential Care
Cambridgeshire County Council,11-Jul-19,51301030507,"-1,282.49",KEY2 FUTURES LTD,TRADE SUPPLIER,LAC Placements,Placements - supported accommodation,Agency Placements - In County
Cambridgeshire County Council,23-Jul-19,51301063809,"-1,272.86",BETTER HEALTHCARE SERVICES LTD,CARE ESTABLISHMENT,OPMH - Hunts & Fens,Older People Mental Health Hunts,Domiciliary Care
Cambridgeshire County Council,23-Jul-19,51301034283,"-1,266.59",2 CHEVERIL LANE (VOYAGE),CARE ESTABLISHMENT,LD - Hunts Locality,LD - Huntigndonshire  - Special Needs,Supported Living
Cambridgeshire County Council,23-Jul-19,51301034265,"-1,266.59",2 CHEVERIL LANE (VOYAGE),CARE ESTABLISHMENT,LD - Hunts Locality,LD - Huntigndonshire  - Special Needs,Supported Living
Cambridgeshire County Council,23-Jul-19,51301025214,"-1,266.59",2 CHEVERIL LANE (VOYAGE),CARE ESTABLISHMENT,LD - Hunts Locality,LD - Huntigndonshire  - Special Needs,Supported Living
Cambridgeshire County Council,23-Jul-19,51301034282,"-1,266.59",2 CHEVERIL LANE (VOYAGE),CARE ESTABLISHMENT,LD - Hunts Locality,LD - Huntigndonshire  - Special Needs,Supported Living
Cambridgeshire County Council,23-Jul-19,51301049695,"-1,266.59",2 CHEVERIL LANE (VOYAGE),CARE ESTABLISHMENT,LD - Hunts Locality,LD - Huntigndonshire  - Special Needs,Supported Living
Cambridgeshire County Council,23-Jul-19,51301025220,"-1,266.59",2 CHEVERIL LANE (VOYAGE),CARE ESTABLISHMENT,LD - Hunts Locality,LD - Huntigndonshire  - Special Needs,Supported Living
Cambridgeshire County Council,23-Jul-19,51301049696,"-1,266.59",2 CHEVERIL LANE (VOYAGE),CARE ESTABLISHMENT,LD - Hunts Locality,LD - Huntigndonshire  - Special Needs,Supported Living
Cambridgeshire County Council,23-Jul-19,51301049692,"-1,266.59",2 CHEVERIL LANE (VOYAGE),CARE ESTABLISHMENT,LD - Hunts Locality,LD - Huntigndonshire  - Special Needs,Supported Living
Cambridgeshire County Council,23-Jul-19,51301034267,"-1,266.59",2 CHEVERIL LANE (VOYAGE),CARE ESTABLISHMENT,LD - Hunts Locality,LD - Huntigndonshire  - Special Needs,Supported Living
Cambridgeshire County Council,23-Jul-19,51301015892,"-1,266.59",2 CHEVERIL LANE (VOYAGE),CARE ESTABLISHMENT,LD - Hunts Locality,LD - Huntigndonshire  - Special Needs,Supported Living
Cambridgeshire County Council,23-Jul-19,51301049699,"-1,266.59",2 CHEVERIL LANE (VOYAGE),CARE ESTABLISHMENT,LD - Hunts Locality,LD - Huntigndonshire  - Special Needs,Supported Living
Cambridgeshire County Council,23-Jul-19,51301025215,"-1,266.59",2 CHEVERIL LANE (VOYAGE),CARE ESTABLISHMENT,LD - Hunts Locality,LD - Huntigndonshire  - Special Needs,Supported Living
Cambridgeshire County Council,23-Jul-19,51301015872,"-1,266.59",2 CHEVERIL LANE (VOYAGE),CARE ESTABLISHMENT,LD - Hunts Locality,LD - Huntigndonshire  - Special Needs,Supported Living
Cambridgeshire County Council,23-Jul-19,51301025222,"-1,266.59",2 CHEVERIL LANE (VOYAGE),CARE ESTABLISHMENT,LD - Hunts Locality,LD - Huntigndonshire  - Care,Supported Living
Cambridgeshire County Council,23-Jul-19,51301025218,"-1,266.59",2 CHEVERIL LANE (VOYAGE),CARE ESTABLISHMENT,LD - Hunts Locality,LD - Huntigndonshire  - Care,Supported Living
Cambridgeshire County Council,23-Jul-19,51301049702,"-1,266.59",2 CHEVERIL LANE (VOYAGE),CARE ESTABLISHMENT,LD - Hunts Locality,LD - Huntigndonshire  - Care,Supported Living
Cambridgeshire County Council,23-Jul-19,51301015881,"-1,266.59",2 CHEVERIL LANE (VOYAGE),CARE ESTABLISHMENT,LD - Hunts Locality,LD - Huntigndonshire  - Care,Supported Living
Cambridgeshire County Council,23-Jul-19,51301049686,"-1,266.59",2 CHEVERIL LANE (VOYAGE),CARE ESTABLISHMENT,LD - Hunts Locality,LD - Huntigndonshire  - Care,Supported Living
Cambridgeshire County Council,23-Jul-19,51301034273,"-1,266.59",2 CHEVERIL LANE (VOYAGE),CARE ESTABLISHMENT,LD - Hunts Locality,LD - Huntigndonshire  - Care,Supported Living
Cambridgeshire County Council,23-Jul-19,51301015894,"-1,266.59",2 CHEVERIL LANE (VOYAGE),CARE ESTABLISHMENT,LD - Hunts Locality,LD - Huntigndonshire  - Care,Supported Living
Cambridgeshire County Council,23-Jul-19,51301034284,"-1,266.59",2 CHEVERIL LANE (VOYAGE),CARE ESTABLISHMENT,LD - Hunts Locality,LD - Huntigndonshire  - Care,Supported Living
Cambridgeshire County Council,23-Jul-19,51301034275,"-1,266.59",2 CHEVERIL LANE (VOYAGE),CARE ESTABLISHMENT,LD - Hunts Locality,LD - Huntigndonshire  - Care,Supported Living
Cambridgeshire County Council,23-Jul-19,51301015873,"-1,266.59",2 CHEVERIL LANE (VOYAGE),CARE ESTABLISHMENT,LD - Hunts Locality,LD - Huntigndonshire  - Care,Supported Living
Cambridgeshire County Council,23-Jul-19,51301034268,"-1,266.59",2 CHEVERIL LANE (VOYAGE),CARE ESTABLISHMENT,LD - Hunts Locality,LD - Huntigndonshire  - Special Needs,Supported Living
Cambridgeshire County Council,23-Jul-19,51301049690,"-1,266.59",2 CHEVERIL LANE (VOYAGE),CARE ESTABLISHMENT,LD - Hunts Locality,LD - Huntigndonshire  - Care,Supported Living
Cambridgeshire County Council,23-Jul-19,51301049691,"-1,266.59",2 CHEVERIL LANE (VOYAGE),CARE ESTABLISHMENT,LD - Hunts Locality,LD - Huntigndonshire  - Care,Supported Living
Cambridgeshire County Council,23-Jul-19,51301015889,"-1,266.59",2 CHEVERIL LANE (VOYAGE),CARE ESTABLISHMENT,LD - Hunts Locality,LD - Huntigndonshire  - Care,Supported Living
Cambridgeshire County Council,23-Jul-19,51301015895,"-1,266.59",2 CHEVERIL LANE (VOYAGE),CARE ESTABLISHMENT,LD - Hunts Locality,LD - Huntigndonshire  - Care,Supported Living
Cambridgeshire County Council,23-Jul-19,51301025206,"-1,266.59",2 CHEVERIL LANE (VOYAGE),CARE ESTABLISHMENT,LD - Hunts Locality,LD - Huntigndonshire  - Care,Supported Living
Cambridgeshire County Council,23-Jul-19,51301025210,"-1,266.59",2 CHEVERIL LANE (VOYAGE),CARE ESTABLISHMENT,LD - Hunts Locality,LD - Huntigndonshire  - Care,Supported Living
Cambridgeshire County Council,23-Jul-19,51301049682,"-1,266.59",2 CHEVERIL LANE (VOYAGE),CARE ESTABLISHMENT,LD - Hunts Locality,LD - Huntigndonshire  - Care,Supported Living
Cambridgeshire County Council,23-Jul-19,51301015874,"-1,266.59",2 CHEVERIL LANE (VOYAGE),CARE ESTABLISHMENT,LD - Hunts Locality,LD - Huntigndonshire  - Care,Supported Living
Cambridgeshire County Council,23-Jul-19,51301034276,"-1,266.59",2 CHEVERIL LANE (VOYAGE),CARE ESTABLISHMENT,LD - Hunts Locality,LD - Huntigndonshire  - Care,Supported Living
Cambridgeshire County Council,23-Jul-19,51301025217,"-1,266.59",2 CHEVERIL LANE (VOYAGE),CARE ESTABLISHMENT,LD - Hunts Locality,LD - Huntigndonshire  - Special Needs,Supported Living
Cambridgeshire County Council,23-Jul-19,51301025223,"-1,266.59",2 CHEVERIL LANE (VOYAGE),CARE ESTABLISHMENT,LD - Hunts Locality,LD - Huntigndonshire  - Care,Supported Living
Cambridgeshire County Council,23-Jul-19,51301015891,"-1,266.59",2 CHEVERIL LANE (VOYAGE),CARE ESTABLISHMENT,LD - Hunts Locality,LD - Huntigndonshire  - Care,Supported Living
Cambridgeshire County Council,23-Jul-19,51301017026,"-1,257.37",MENCAP PETERBOROUGH,CARE ESTABLISHMENT,Autism and Adult Support,Autism and Adult Support - Care,Domiciliary Care
Cambridgeshire County Council,23-Jul-19,51301017031,"-1,257.37",MENCAP PETERBOROUGH,CARE ESTABLISHMENT,Autism and Adult Support,Autism and Adult Support - Care,Domiciliary Care
Cambridgeshire County Council,17-Jul-19,51301039309,"-1,241.58",THE MARBROOK CENTRE,CARE ESTABLISHMENT,OPMH - Hunts & Fens,Older People Mental Health Hunts,Nursing Care
Cambridgeshire County Council,17-Jul-19,51301039309,"-1,241.58",THE MARBROOK CENTRE,CARE ESTABLISHMENT,OPMH - Hunts & Fens,Older People Mental Health Hunts,Nursing Care
Cambridgeshire County Council,17-Jul-19,51301039309,"-1,241.58",THE MARBROOK CENTRE,CARE ESTABLISHMENT,OPMH - Hunts & Fens,Older People Mental Health Hunts,Nursing Care
Cambridgeshire County Council,17-Jul-19,51301039309,"-1,241.58",THE MARBROOK CENTRE,CARE ESTABLISHMENT,OPMH - Hunts & Fens,Older People Mental Health Hunts,Nursing Care
Cambridgeshire County Council,17-Jul-19,51301039309,"-1,241.58",THE MARBROOK CENTRE,CARE ESTABLISHMENT,OPMH - Hunts & Fens,Older People Mental Health Hunts,Nursing Care
Cambridgeshire County Council,17-Jul-19,51301039309,"-1,241.58",THE MARBROOK CENTRE,CARE ESTABLISHMENT,OPMH - Hunts & Fens,Older People Mental Health Hunts,Nursing Care
Cambridgeshire County Council,17-Jul-19,51301039309,"-1,241.58",THE MARBROOK CENTRE,CARE ESTABLISHMENT,OPMH - Hunts & Fens,Older People Mental Health Hunts,Nursing Care
Cambridgeshire County Council,17-Jul-19,51301039309,"-1,241.58",THE MARBROOK CENTRE,CARE ESTABLISHMENT,OPMH - Hunts & Fens,Older People Mental Health Hunts,Nursing Care
Cambridgeshire County Council,17-Jul-19,51301039309,"-1,241.58",THE MARBROOK CENTRE,CARE ESTABLISHMENT,OPMH - Hunts & Fens,Older People Mental Health Hunts,Nursing Care
Cambridgeshire County Council,17-Jul-19,51301039309,"-1,241.58",THE MARBROOK CENTRE,CARE ESTABLISHMENT,OPMH - Hunts & Fens,Older People Mental Health Hunts,Nursing Care
Cambridgeshire County Council,17-Jul-19,51301039309,"-1,241.58",THE MARBROOK CENTRE,CARE ESTABLISHMENT,OPMH - Hunts & Fens,Older People Mental Health Hunts,Nursing Care
Cambridgeshire County Council,17-Jul-19,51301039309,"-1,241.58",THE MARBROOK CENTRE,CARE ESTABLISHMENT,OPMH - Hunts & Fens,Older People Mental Health Hunts,Nursing Care
Cambridgeshire County Council,17-Jul-19,51301039309,"-1,241.58",THE MARBROOK CENTRE,CARE ESTABLISHMENT,OPMH - Hunts & Fens,Older People Mental Health Hunts,Nursing Care
Cambridgeshire County Council,17-Jul-19,51301039309,"-1,241.58",THE MARBROOK CENTRE,CARE ESTABLISHMENT,OPMH - Hunts & Fens,Older People Mental Health Hunts,Nursing Care
Cambridgeshire County Council,17-Jul-19,51301039309,"-1,241.58",THE MARBROOK CENTRE,CARE ESTABLISHMENT,OPMH - Hunts & Fens,Older People Mental Health Hunts,Nursing Care
Cambridgeshire County Council,12-Jul-19,51301037780,"-1,200.00",BRAMLEY COURT,CARE ESTABLISHMENT,OP - City & South Locality,Older People - City & South,Nursing Care
Cambridgeshire County Council,12-Jul-19,51301037780,"-1,200.00",BRAMLEY COURT,CARE ESTABLISHMENT,OP - City & South Locality,Older People - City & South,Nursing Care
Cambridgeshire County Council,12-Jul-19,51301037780,"-1,200.00",BRAMLEY COURT,CARE ESTABLISHMENT,OP - City & South Locality,Older People - City & South,Nursing Care
Cambridgeshire County Council,12-Jul-19,51301037780,"-1,200.00",BRAMLEY COURT,CARE ESTABLISHMENT,OP - City & South Locality,Older People - City & South,Nursing Care
Cambridgeshire County Council,12-Jul-19,51301037780,"-1,200.00",BRAMLEY COURT,CARE ESTABLISHMENT,OP - City & South Locality,Older People - City & South,Nursing Care
Cambridgeshire County Council,12-Jul-19,51301037780,"-1,200.00",BRAMLEY COURT,CARE ESTABLISHMENT,OP - City & South Locality,Older People - City & South,Nursing Care
Cambridgeshire County Council,12-Jul-19,51301037780,"-1,200.00",BRAMLEY COURT,CARE ESTABLISHMENT,OP - City & South Locality,Older People - City & South,Nursing Care
Cambridgeshire County Council,12-Jul-19,51301037780,"-1,200.00",BRAMLEY COURT,CARE ESTABLISHMENT,OP - City & South Locality,Older People - City & South,Nursing Care
Cambridgeshire County Council,12-Jul-19,51301037780,"-1,200.00",BRAMLEY COURT,CARE ESTABLISHMENT,OP - City & South Locality,Older People - City & South,Nursing Care
Cambridgeshire County Council,12-Jul-19,51301037780,"-1,200.00",BRAMLEY COURT,CARE ESTABLISHMENT,OP - City & South Locality,Older People - City & South,Nursing Care
Cambridgeshire County Council,12-Jul-19,51301037780,"-1,200.00",BRAMLEY COURT,CARE ESTABLISHMENT,OP - City & South Locality,Older People - City & South,Nursing Care
Cambridgeshire County Council,12-Jul-19,51301037780,"-1,200.00",BRAMLEY COURT,CARE ESTABLISHMENT,OP - City & South Locality,Older People - City & South,Nursing Care
Cambridgeshire County Council,12-Jul-19,51301037780,"-1,200.00",BRAMLEY COURT,CARE ESTABLISHMENT,OP - City & South Locality,Older People - City & South,Nursing Care
Cambridgeshire County Council,12-Jul-19,51301037780,"-1,200.00",BRAMLEY COURT,CARE ESTABLISHMENT,OP - City & South Locality,Older People - City & South,Nursing Care
Cambridgeshire County Council,12-Jul-19,51301037780,"-1,200.00",BRAMLEY COURT,CARE ESTABLISHMENT,OP - City & South Locality,Older People - City & South,Nursing Care
Cambridgeshire County Council,12-Jul-19,51301037780,"-1,200.00",BRAMLEY COURT,CARE ESTABLISHMENT,OP - City & South Locality,Older People - City & South,Nursing Care
Cambridgeshire County Council,12-Jul-19,51301037780,"-1,200.00",BRAMLEY COURT,CARE ESTABLISHMENT,OP - City & South Locality,Older People - City & South,Nursing Care
Cambridgeshire County Council,12-Jul-19,51301037780,"-1,200.00",BRAMLEY COURT,CARE ESTABLISHMENT,OP - City & South Locality,Older People - City & South,Nursing Care
Cambridgeshire County Council,12-Jul-19,51301037780,"-1,200.00",BRAMLEY COURT,CARE ESTABLISHMENT,OP - City & South Locality,Older People - City & South,Nursing Care
Cambridgeshire County Council,12-Jul-19,51301037780,"-1,200.00",BRAMLEY COURT,CARE ESTABLISHMENT,OP - City & South Locality,Older People - City & South,Nursing Care
Cambridgeshire County Council,12-Jul-19,51301037780,"-1,200.00",BRAMLEY COURT,CARE ESTABLISHMENT,OP - City & South Locality,Older People - City & South,Nursing Care
Cambridgeshire County Council,12-Jul-19,51301037780,"-1,200.00",BRAMLEY COURT,CARE ESTABLISHMENT,OP - City & South Locality,Older People - City & South,Nursing Care
Cambridgeshire County Council,12-Jul-19,51301037780,"-1,200.00",BRAMLEY COURT,CARE ESTABLISHMENT,OP - City & South Locality,Older People - City & South,Nursing Care
Cambridgeshire County Council,12-Jul-19,51301037780,"-1,200.00",BRAMLEY COURT,CARE ESTABLISHMENT,OP - City & South Locality,Older People - City & South,Nursing Care
Cambridgeshire County Council,12-Jul-19,51301037780,"-1,200.00",BRAMLEY COURT,CARE ESTABLISHMENT,OP - City & South Locality,Older People - City & South,Nursing Care
Cambridgeshire County Council,12-Jul-19,51301037780,"-1,200.00",BRAMLEY COURT,CARE ESTABLISHMENT,OP - City & South Locality,Older People - City & South,Nursing Care
Cambridgeshire County Council,12-Jul-19,51301037780,"-1,200.00",BRAMLEY COURT,CARE ESTABLISHMENT,OP - City & South Locality,Older People - City & South,Nursing Care
Cambridgeshire County Council,04-Jul-19,51301020892,"-1,198.04",CARETECH COMMUNITY SERVICES,CARE ESTABLISHMENT,LD - South Locality,LD - South Cambs - Special Needs,Residential Care
Cambridgeshire County Council,04-Jul-19,51301020879,"-1,198.04",CARETECH COMMUNITY SERVICES,CARE ESTABLISHMENT,LD - South Locality,LD - South Cambs - Special Needs,Residential Care
Cambridgeshire County Council,04-Jul-19,51301020846,"-1,198.04",CARETECH COMMUNITY SERVICES,CARE ESTABLISHMENT,LD - South Locality,LD - South Cambs - Special Needs,Residential Care
Cambridgeshire County Council,04-Jul-19,51301029496,"-1,198.04",CARETECH COMMUNITY SERVICES,CARE ESTABLISHMENT,LD - South Locality,LD - South Cambs - Special Needs,Residential Care
Cambridgeshire County Council,04-Jul-19,51301029466,"-1,198.04",CARETECH COMMUNITY SERVICES,CARE ESTABLISHMENT,LD - South Locality,LD - South Cambs - Special Needs,Residential Care
Cambridgeshire County Council,04-Jul-19,51301020887,"-1,198.04",CARETECH COMMUNITY SERVICES,CARE ESTABLISHMENT,LD - South Locality,LD - South Cambs - Special Needs,Residential Care
Cambridgeshire County Council,04-Jul-19,51301020870,"-1,198.04",CARETECH COMMUNITY SERVICES,CARE ESTABLISHMENT,LD - South Locality,LD - South Cambs - Special Needs,Residential Care
Cambridgeshire County Council,04-Jul-19,51301020857,"-1,198.04",CARETECH COMMUNITY SERVICES,CARE ESTABLISHMENT,LD - South Locality,LD - South Cambs - Special Needs,Residential Care
Cambridgeshire County Council,04-Jul-19,51301020847,"-1,198.04",CARETECH COMMUNITY SERVICES,CARE ESTABLISHMENT,LD - South Locality,LD - South Cambs - Special Needs,Residential Care
Cambridgeshire County Council,04-Jul-19,51301020865,"-1,198.04",CARETECH COMMUNITY SERVICES,CARE ESTABLISHMENT,LD - South Locality,LD - South Cambs - Special Needs,Residential Care
Cambridgeshire County Council,04-Jul-19,51301020853,"-1,198.04",CARETECH COMMUNITY SERVICES,CARE ESTABLISHMENT,LD - South Locality,LD - South Cambs - Special Needs,Residential Care
Cambridgeshire County Council,04-Jul-19,51301020859,"-1,198.04",CARETECH COMMUNITY SERVICES,CARE ESTABLISHMENT,LD - South Locality,LD - South Cambs - Special Needs,Residential Care
Cambridgeshire County Council,04-Jul-19,51301029497,"-1,198.04",CARETECH COMMUNITY SERVICES,CARE ESTABLISHMENT,LD - South Locality,LD - South Cambs - Special Needs,Residential Care
Cambridgeshire County Council,04-Jul-19,51301020884,"-1,198.04",CARETECH COMMUNITY SERVICES,CARE ESTABLISHMENT,LD - South Locality,LD - South Cambs - Special Needs,Residential Care
Cambridgeshire County Council,04-Jul-19,51301020894,"-1,198.04",CARETECH COMMUNITY SERVICES,CARE ESTABLISHMENT,LD - South Locality,LD - South Cambs - Special Needs,Residential Care
Cambridgeshire County Council,04-Jul-19,51301020896,"-1,198.04",CARETECH COMMUNITY SERVICES,CARE ESTABLISHMENT,LD - South Locality,LD - South Cambs - Special Needs,Residential Care
Cambridgeshire County Council,04-Jul-19,51301020851,"-1,198.04",CARETECH COMMUNITY SERVICES,CARE ESTABLISHMENT,LD - South Locality,LD - South Cambs - Special Needs,Residential Care
Cambridgeshire County Council,04-Jul-19,51301029462,"-1,198.04",CARETECH COMMUNITY SERVICES,CARE ESTABLISHMENT,LD - South Locality,LD - South Cambs - Special Needs,Residential Care
Cambridgeshire County Council,04-Jul-19,51301020891,"-1,198.04",CARETECH COMMUNITY SERVICES,CARE ESTABLISHMENT,LD - South Locality,LD - South Cambs - Special Needs,Residential Care
Cambridgeshire County Council,04-Jul-19,51301029484,"-1,198.04",CARETECH COMMUNITY SERVICES,CARE ESTABLISHMENT,LD - South Locality,LD - South Cambs - Special Needs,Residential Care
Cambridgeshire County Council,04-Jul-19,51301029488,"-1,198.04",CARETECH COMMUNITY SERVICES,CARE ESTABLISHMENT,LD - South Locality,LD - South Cambs - Special Needs,Residential Care
Cambridgeshire County Council,04-Jul-19,51301020888,"-1,198.04",CARETECH COMMUNITY SERVICES,CARE ESTABLISHMENT,LD - South Locality,LD - South Cambs - Special Needs,Residential Care
Cambridgeshire County Council,04-Jul-19,51301029482,"-1,198.04",CARETECH COMMUNITY SERVICES,CARE ESTABLISHMENT,LD - South Locality,LD - South Cambs - Care,Residential Care
Cambridgeshire County Council,04-Jul-19,51301020895,"-1,198.04",CARETECH COMMUNITY SERVICES,CARE ESTABLISHMENT,LD - South Locality,LD - South Cambs - Care,Residential Care
Cambridgeshire County Council,04-Jul-19,51301029456,"-1,198.04",CARETECH COMMUNITY SERVICES,CARE ESTABLISHMENT,LD - South Locality,LD - South Cambs - Care,Residential Care
Cambridgeshire County Council,04-Jul-19,51301020861,"-1,198.04",CARETECH COMMUNITY SERVICES,CARE ESTABLISHMENT,LD - South Locality,LD - South Cambs - Care,Residential Care
Cambridgeshire County Council,04-Jul-19,51301029458,"-1,198.04",CARETECH COMMUNITY SERVICES,CARE ESTABLISHMENT,LD - South Locality,LD - South Cambs - Care,Residential Care
Cambridgeshire County Council,04-Jul-19,51301029486,"-1,198.04",CARETECH COMMUNITY SERVICES,CARE ESTABLISHMENT,LD - South Locality,LD - South Cambs - Special Needs,Residential Care
Cambridgeshire County Council,04-Jul-19,51301020889,"-1,198.04",CARETECH COMMUNITY SERVICES,CARE ESTABLISHMENT,LD - South Locality,LD - South Cambs - Special Needs,Residential Care
Cambridgeshire County Council,04-Jul-19,51301029491,"-1,198.04",CARETECH COMMUNITY SERVICES,CARE ESTABLISHMENT,LD - South Locality,LD - South Cambs - Special Needs,Residential Care
Cambridgeshire County Council,04-Jul-19,51301020886,"-1,198.04",CARETECH COMMUNITY SERVICES,CARE ESTABLISHMENT,LD - South Locality,LD - South Cambs - Special Needs,Residential Care
Cambridgeshire County Council,04-Jul-19,51301020868,"-1,198.04",CARETECH COMMUNITY SERVICES,CARE ESTABLISHMENT,LD - South Locality,LD - South Cambs - Special Needs,Residential Care
Cambridgeshire County Council,04-Jul-19,51301029455,"-1,198.04",CARETECH COMMUNITY SERVICES,CARE ESTABLISHMENT,LD - South Locality,LD - South Cambs - Special Needs,Residential Care
Cambridgeshire County Council,04-Jul-19,51301020863,"-1,198.04",CARETECH COMMUNITY SERVICES,CARE ESTABLISHMENT,LD - South Locality,LD - South Cambs - Special Needs,Residential Care
Cambridgeshire County Council,04-Jul-19,51301029483,"-1,198.04",CARETECH COMMUNITY SERVICES,CARE ESTABLISHMENT,LD - South Locality,LD - South Cambs - Special Needs,Residential Care
Cambridgeshire County Council,04-Jul-19,51301029498,"-1,198.04",CARETECH COMMUNITY SERVICES,CARE ESTABLISHMENT,LD - South Locality,LD - South Cambs - Care,Residential Care
Cambridgeshire County Council,04-Jul-19,51301029470,"-1,198.04",CARETECH COMMUNITY SERVICES,CARE ESTABLISHMENT,LD - South Locality,LD - South Cambs - Care,Residential Care
Cambridgeshire County Council,04-Jul-19,51301029477,"-1,198.04",CARETECH COMMUNITY SERVICES,CARE ESTABLISHMENT,LD - South Locality,LD - South Cambs - Care,Residential Care
Cambridgeshire County Council,04-Jul-19,51301029503,"-1,198.04",CARETECH COMMUNITY SERVICES,CARE ESTABLISHMENT,LD - South Locality,LD - South Cambs - Care,Residential Care
Cambridgeshire County Council,04-Jul-19,51301020849,"-1,198.04",CARETECH COMMUNITY SERVICES,CARE ESTABLISHMENT,LD - South Locality,LD - South Cambs - Care,Residential Care
Cambridgeshire County Council,04-Jul-19,51301029469,"-1,198.04",CARETECH COMMUNITY SERVICES,CARE ESTABLISHMENT,LD - South Locality,LD - South Cambs - Care,Residential Care
Cambridgeshire County Council,04-Jul-19,51301029479,"-1,198.04",CARETECH COMMUNITY SERVICES,CARE ESTABLISHMENT,LD - South Locality,LD - South Cambs - Care,Residential Care
Cambridgeshire County Council,04-Jul-19,51301029494,"-1,198.04",CARETECH COMMUNITY SERVICES,CARE ESTABLISHMENT,LD - South Locality,LD - South Cambs - Care,Residential Care
Cambridgeshire County Council,04-Jul-19,51301020842,"-1,198.04",CARETECH COMMUNITY SERVICES,CARE ESTABLISHMENT,LD - South Locality,LD - South Cambs - Care,Residential Care
Cambridgeshire County Council,04-Jul-19,51301029500,"-1,198.04",CARETECH COMMUNITY SERVICES,CARE ESTABLISHMENT,LD - South Locality,LD - South Cambs - Care,Residential Care
Cambridgeshire County Council,04-Jul-19,51301020856,"-1,198.04",CARETECH COMMUNITY SERVICES,CARE ESTABLISHMENT,LD - South Locality,LD - South Cambs - Care,Residential Care
Cambridgeshire County Council,04-Jul-19,51301029454,"-1,198.04",CARETECH COMMUNITY SERVICES,CARE ESTABLISHMENT,LD - South Locality,LD - South Cambs - Care,Residential Care
Cambridgeshire County Council,04-Jul-19,51301020858,"-1,198.04",CARETECH COMMUNITY SERVICES,CARE ESTABLISHMENT,LD - South Locality,LD - South Cambs - Care,Residential Care
Cambridgeshire County Council,04-Jul-19,51301029457,"-1,198.04",CARETECH COMMUNITY SERVICES,CARE ESTABLISHMENT,LD - South Locality,LD - South Cambs - Care,Residential Care
Cambridgeshire County Council,04-Jul-19,51301029487,"-1,198.04",CARETECH COMMUNITY SERVICES,CARE ESTABLISHMENT,LD - South Locality,LD - South Cambs - Care,Residential Care
Cambridgeshire County Council,04-Jul-19,51301029465,"-1,198.04",CARETECH COMMUNITY SERVICES,CARE ESTABLISHMENT,LD - South Locality,LD - South Cambs - Care,Residential Care
Cambridgeshire County Council,04-Jul-19,51301029495,"-1,198.04",CARETECH COMMUNITY SERVICES,CARE ESTABLISHMENT,LD - South Locality,LD - South Cambs - Care,Residential Care
Cambridgeshire County Council,04-Jul-19,51301020869,"-1,198.04",CARETECH COMMUNITY SERVICES,CARE ESTABLISHMENT,LD - South Locality,LD - South Cambs - Care,Residential Care
Cambridgeshire County Council,04-Jul-19,51301029453,"-1,198.04",CARETECH COMMUNITY SERVICES,CARE ESTABLISHMENT,LD - South Locality,LD - South Cambs - Care,Residential Care
Cambridgeshire County Council,12-Jul-19,51301036936,"-1,198.04",CARETECH COMMUNITY SERVICES,CARE ESTABLISHMENT,LD - South Locality,LD - South Cambs - Special Needs,Residential Care
Cambridgeshire County Council,12-Jul-19,51301036920,"-1,198.04",CARETECH COMMUNITY SERVICES,CARE ESTABLISHMENT,LD - South Locality,LD - South Cambs - Special Needs,Residential Care
Cambridgeshire County Council,12-Jul-19,51301036944,"-1,198.04",CARETECH COMMUNITY SERVICES,CARE ESTABLISHMENT,LD - South Locality,LD - South Cambs - Special Needs,Residential Care
Cambridgeshire County Council,12-Jul-19,51301036941,"-1,198.04",CARETECH COMMUNITY SERVICES,CARE ESTABLISHMENT,LD - South Locality,LD - South Cambs - Special Needs,Residential Care
Cambridgeshire County Council,12-Jul-19,51301036929,"-1,198.04",CARETECH COMMUNITY SERVICES,CARE ESTABLISHMENT,LD - South Locality,LD - South Cambs - Special Needs,Residential Care
Cambridgeshire County Council,12-Jul-19,51301036904,"-1,198.04",CARETECH COMMUNITY SERVICES,CARE ESTABLISHMENT,LD - South Locality,LD - South Cambs - Special Needs,Residential Care
Cambridgeshire County Council,12-Jul-19,51301036914,"-1,198.04",CARETECH COMMUNITY SERVICES,CARE ESTABLISHMENT,LD - South Locality,LD - South Cambs - Special Needs,Residential Care
Cambridgeshire County Council,12-Jul-19,51301036952,"-1,198.04",CARETECH COMMUNITY SERVICES,CARE ESTABLISHMENT,LD - South Locality,LD - South Cambs - Special Needs,Residential Care
Cambridgeshire County Council,12-Jul-19,51301036943,"-1,198.04",CARETECH COMMUNITY SERVICES,CARE ESTABLISHMENT,LD - South Locality,LD - South Cambs - Care,Residential Care
Cambridgeshire County Council,12-Jul-19,51301036926,"-1,198.04",CARETECH COMMUNITY SERVICES,CARE ESTABLISHMENT,LD - South Locality,LD - South Cambs - Care,Residential Care
Cambridgeshire County Council,12-Jul-19,51301036933,"-1,198.04",CARETECH COMMUNITY SERVICES,CARE ESTABLISHMENT,LD - South Locality,LD - South Cambs - Special Needs,Residential Care
Cambridgeshire County Council,12-Jul-19,51301036918,"-1,198.04",CARETECH COMMUNITY SERVICES,CARE ESTABLISHMENT,LD - South Locality,LD - South Cambs - Special Needs,Residential Care
Cambridgeshire County Council,12-Jul-19,51301036899,"-1,198.04",CARETECH COMMUNITY SERVICES,CARE ESTABLISHMENT,LD - South Locality,LD - South Cambs - Special Needs,Residential Care
Cambridgeshire County Council,12-Jul-19,51301036919,"-1,198.04",CARETECH COMMUNITY SERVICES,CARE ESTABLISHMENT,LD - South Locality,LD - South Cambs - Special Needs,Residential Care
Cambridgeshire County Council,12-Jul-19,51301036942,"-1,198.04",CARETECH COMMUNITY SERVICES,CARE ESTABLISHMENT,LD - South Locality,LD - South Cambs - Care,Residential Care
Cambridgeshire County Council,12-Jul-19,51301036949,"-1,198.04",CARETECH COMMUNITY SERVICES,CARE ESTABLISHMENT,LD - South Locality,LD - South Cambs - Care,Residential Care
Cambridgeshire County Council,12-Jul-19,51301036937,"-1,198.04",CARETECH COMMUNITY SERVICES,CARE ESTABLISHMENT,LD - South Locality,LD - South Cambs - Care,Residential Care
Cambridgeshire County Council,12-Jul-19,51301036906,"-1,198.04",CARETECH COMMUNITY SERVICES,CARE ESTABLISHMENT,LD - South Locality,LD - South Cambs - Care,Residential Care
Cambridgeshire County Council,12-Jul-19,51301036902,"-1,198.04",CARETECH COMMUNITY SERVICES,CARE ESTABLISHMENT,LD - South Locality,LD - South Cambs - Care,Residential Care
Cambridgeshire County Council,12-Jul-19,51301036901,"-1,198.04",CARETECH COMMUNITY SERVICES,CARE ESTABLISHMENT,LD - South Locality,LD - South Cambs - Care,Residential Care
Cambridgeshire County Council,12-Jul-19,51301036897,"-1,198.04",CARETECH COMMUNITY SERVICES,CARE ESTABLISHMENT,LD - South Locality,LD - South Cambs - Care,Residential Care
Cambridgeshire County Council,12-Jul-19,51301036930,"-1,198.04",CARETECH COMMUNITY SERVICES,CARE ESTABLISHMENT,LD - South Locality,LD - South Cambs - Care,Residential Care
Cambridgeshire County Council,12-Jul-19,51301036909,"-1,198.04",CARETECH COMMUNITY SERVICES,CARE ESTABLISHMENT,LD - South Locality,LD - South Cambs - Care,Residential Care
Cambridgeshire County Council,12-Jul-19,51301036910,"-1,198.04",CARETECH COMMUNITY SERVICES,CARE ESTABLISHMENT,LD - South Locality,LD - South Cambs - Care,Residential Care
Cambridgeshire County Council,12-Jul-19,51301036935,"-1,198.04",CARETECH COMMUNITY SERVICES,CARE ESTABLISHMENT,LD - South Locality,LD - South Cambs - Care,Residential Care
Cambridgeshire County Council,12-Jul-19,51301036946,"-1,198.04",CARETECH COMMUNITY SERVICES,CARE ESTABLISHMENT,LD - South Locality,LD - South Cambs - Care,Residential Care
Cambridgeshire County Council,12-Jul-19,51301036907,"-1,198.04",CARETECH COMMUNITY SERVICES,CARE ESTABLISHMENT,LD - South Locality,LD - South Cambs - Care,Residential Care
Cambridgeshire County Council,23-Jul-19,51301064438,"-1,198.04",CARETECH COMMUNITY SERVICES,CARE ESTABLISHMENT,LD - South Locality,LD - South Cambs - Special Needs,Residential Care
Cambridgeshire County Council,23-Jul-19,51301064414,"-1,198.04",CARETECH COMMUNITY SERVICES,CARE ESTABLISHMENT,LD - South Locality,LD - South Cambs - Special Needs,Residential Care
Cambridgeshire County Council,23-Jul-19,51301064444,"-1,198.04",CARETECH COMMUNITY SERVICES,CARE ESTABLISHMENT,LD - South Locality,LD - South Cambs - Special Needs,Residential Care
Cambridgeshire County Council,23-Jul-19,51301064454,"-1,198.04",CARETECH COMMUNITY SERVICES,CARE ESTABLISHMENT,LD - South Locality,LD - South Cambs - Special Needs,Residential Care
Cambridgeshire County Council,23-Jul-19,51301064401,"-1,198.04",CARETECH COMMUNITY SERVICES,CARE ESTABLISHMENT,LD - South Locality,LD - South Cambs - Special Needs,Residential Care
Cambridgeshire County Council,23-Jul-19,51301064403,"-1,198.04",CARETECH COMMUNITY SERVICES,CARE ESTABLISHMENT,LD - South Locality,LD - South Cambs - Special Needs,Residential Care
Cambridgeshire County Council,23-Jul-19,51301064420,"-1,198.04",CARETECH COMMUNITY SERVICES,CARE ESTABLISHMENT,LD - South Locality,LD - South Cambs - Special Needs,Residential Care
Cambridgeshire County Council,23-Jul-19,51301064433,"-1,198.04",CARETECH COMMUNITY SERVICES,CARE ESTABLISHMENT,LD - South Locality,LD - South Cambs - Care,Residential Care
Cambridgeshire County Council,23-Jul-19,51301064455,"-1,198.04",CARETECH COMMUNITY SERVICES,CARE ESTABLISHMENT,LD - South Locality,LD - South Cambs - Care,Residential Care
Cambridgeshire County Council,23-Jul-19,51301064430,"-1,198.04",CARETECH COMMUNITY SERVICES,CARE ESTABLISHMENT,LD - South Locality,LD - South Cambs - Special Needs,Residential Care
Cambridgeshire County Council,23-Jul-19,51301064446,"-1,198.04",CARETECH COMMUNITY SERVICES,CARE ESTABLISHMENT,LD - South Locality,LD - South Cambs - Special Needs,Residential Care
Cambridgeshire County Council,23-Jul-19,51301064431,"-1,198.04",CARETECH COMMUNITY SERVICES,CARE ESTABLISHMENT,LD - South Locality,LD - South Cambs - Special Needs,Residential Care
Cambridgeshire County Council,23-Jul-19,51301064448,"-1,198.04",CARETECH COMMUNITY SERVICES,CARE ESTABLISHMENT,LD - South Locality,LD - South Cambs - Special Needs,Residential Care
Cambridgeshire County Council,23-Jul-19,51301064399,"-1,198.04",CARETECH COMMUNITY SERVICES,CARE ESTABLISHMENT,LD - South Locality,LD - South Cambs - Special Needs,Residential Care
Cambridgeshire County Council,23-Jul-19,51301064392,"-1,198.04",CARETECH COMMUNITY SERVICES,CARE ESTABLISHMENT,LD - South Locality,LD - South Cambs - Special Needs,Residential Care
Cambridgeshire County Council,23-Jul-19,51301064413,"-1,198.04",CARETECH COMMUNITY SERVICES,CARE ESTABLISHMENT,LD - South Locality,LD - South Cambs - Special Needs,Residential Care
Cambridgeshire County Council,23-Jul-19,51301064407,"-1,198.04",CARETECH COMMUNITY SERVICES,CARE ESTABLISHMENT,LD - South Locality,LD - South Cambs - Special Needs,Residential Care
Cambridgeshire County Council,23-Jul-19,51301064410,"-1,198.04",CARETECH COMMUNITY SERVICES,CARE ESTABLISHMENT,LD - South Locality,LD - South Cambs - Special Needs,Residential Care
Cambridgeshire County Council,23-Jul-19,51301064437,"-1,198.04",CARETECH COMMUNITY SERVICES,CARE ESTABLISHMENT,LD - South Locality,LD - South Cambs - Care,Residential Care
Cambridgeshire County Council,23-Jul-19,51301064393,"-1,198.04",CARETECH COMMUNITY SERVICES,CARE ESTABLISHMENT,LD - South Locality,LD - South Cambs - Care,Residential Care
Cambridgeshire County Council,23-Jul-19,51301064425,"-1,198.04",CARETECH COMMUNITY SERVICES,CARE ESTABLISHMENT,LD - South Locality,LD - South Cambs - Care,Residential Care
Cambridgeshire County Council,23-Jul-19,51301064402,"-1,198.04",CARETECH COMMUNITY SERVICES,CARE ESTABLISHMENT,LD - South Locality,LD - South Cambs - Care,Residential Care
Cambridgeshire County Council,23-Jul-19,51301064435,"-1,198.04",CARETECH COMMUNITY SERVICES,CARE ESTABLISHMENT,LD - South Locality,LD - South Cambs - Care,Residential Care
Cambridgeshire County Council,23-Jul-19,51301064400,"-1,198.04",CARETECH COMMUNITY SERVICES,CARE ESTABLISHMENT,LD - South Locality,LD - South Cambs - Care,Residential Care
Cambridgeshire County Council,23-Jul-19,51301064411,"-1,198.04",CARETECH COMMUNITY SERVICES,CARE ESTABLISHMENT,LD - South Locality,LD - South Cambs - Care,Residential Care
Cambridgeshire County Council,23-Jul-19,51301064418,"-1,198.04",CARETECH COMMUNITY SERVICES,CARE ESTABLISHMENT,LD - South Locality,LD - South Cambs - Care,Residential Care
Cambridgeshire County Council,23-Jul-19,51301064415,"-1,198.04",CARETECH COMMUNITY SERVICES,CARE ESTABLISHMENT,LD - South Locality,LD - South Cambs - Care,Residential Care
Cambridgeshire County Council,23-Jul-19,51301015855,"-1,191.64",73 HIGH ROAD,CARE ESTABLISHMENT,LD - Hunts Locality,LD - Huntigndonshire  - Special Needs,Supported Living
Cambridgeshire County Council,23-Jul-19,51301049494,"-1,191.64",73 HIGH ROAD,CARE ESTABLISHMENT,LD - Fenland Locality,LD - Fenland  - Care,Supported Living
Cambridgeshire County Council,12-Jul-19,51301037588,"-1,181.07",MACINTYRE CARE,CARE ESTABLISHMENT,LD - South Locality,LD - South Cambs - Care,Residential Client Care Contributions
Cambridgeshire County Council,12-Jul-19,51301037588,"-1,181.07",MACINTYRE CARE,CARE ESTABLISHMENT,LD - South Locality,LD - South Cambs - Care,Residential Client Care Contributions
Cambridgeshire County Council,12-Jul-19,51301037588,"-1,181.07",MACINTYRE CARE,CARE ESTABLISHMENT,LD - South Locality,LD - South Cambs - Care,Residential Client Care Contributions
Cambridgeshire County Council,12-Jul-19,51301037588,"-1,181.07",MACINTYRE CARE,CARE ESTABLISHMENT,LD - South Locality,LD - South Cambs - Care,Residential Client Care Contributions
Cambridgeshire County Council,12-Jul-19,51301037588,"-1,181.07",MACINTYRE CARE,CARE ESTABLISHMENT,LD - South Locality,LD - South Cambs - Care,Residential Client Care Contributions
Cambridgeshire County Council,12-Jul-19,51301037588,"-1,181.07",MACINTYRE CARE,CARE ESTABLISHMENT,LD - South Locality,LD - South Cambs - Care,Residential Client Care Contributions
Cambridgeshire County Council,12-Jul-19,51301037588,"-1,181.07",MACINTYRE CARE,CARE ESTABLISHMENT,LD - South Locality,LD - South Cambs - Care,Residential Client Care Contributions
Cambridgeshire County Council,12-Jul-19,51301037588,"-1,181.07",MACINTYRE CARE,CARE ESTABLISHMENT,LD - South Locality,LD - South Cambs - Care,Residential Client Care Contributions
Cambridgeshire County Council,12-Jul-19,51301037588,"-1,181.07",MACINTYRE CARE,CARE ESTABLISHMENT,LD - South Locality,LD - South Cambs - Care,Residential Client Care Contributions
Cambridgeshire County Council,12-Jul-19,51301037588,"-1,181.07",MACINTYRE CARE,CARE ESTABLISHMENT,LD - South Locality,LD - South Cambs - Care,Residential Client Care Contributions
Cambridgeshire County Council,12-Jul-19,51301037588,"-1,181.07",MACINTYRE CARE,CARE ESTABLISHMENT,LD - South Locality,LD - South Cambs - Care,Residential Client Care Contributions
Cambridgeshire County Council,12-Jul-19,51301037588,"-1,181.07",MACINTYRE CARE,CARE ESTABLISHMENT,LD - South Locality,LD - South Cambs - Care,Residential Client Care Contributions
Cambridgeshire County Council,12-Jul-19,51301037588,"-1,181.07",MACINTYRE CARE,CARE ESTABLISHMENT,LD - South Locality,LD - South Cambs - Care,Residential Client Care Contributions
Cambridgeshire County Council,12-Jul-19,51301037588,"-1,181.07",MACINTYRE CARE,CARE ESTABLISHMENT,LD - South Locality,LD - South Cambs - Care,Residential Client Care Contributions
Cambridgeshire County Council,12-Jul-19,51301037588,"-1,181.07",MACINTYRE CARE,CARE ESTABLISHMENT,LD - South Locality,LD - South Cambs - Care,Residential Client Care Contributions
Cambridgeshire County Council,12-Jul-19,51301037588,"-1,181.07",MACINTYRE CARE,CARE ESTABLISHMENT,LD - South Locality,LD - South Cambs - Care,Residential Client Care Contributions
Cambridgeshire County Council,12-Jul-19,51301037588,"-1,181.07",MACINTYRE CARE,CARE ESTABLISHMENT,LD - South Locality,LD - South Cambs - Care,Residential Client Care Contributions
Cambridgeshire County Council,12-Jul-19,51301037588,"-1,181.07",MACINTYRE CARE,CARE ESTABLISHMENT,LD - South Locality,LD - South Cambs - Care,Residential Client Care Contributions
Cambridgeshire County Council,12-Jul-19,51301037588,"-1,181.07",MACINTYRE CARE,CARE ESTABLISHMENT,LD - South Locality,LD - South Cambs - Care,Residential Client Care Contributions
Cambridgeshire County Council,12-Jul-19,51301037588,"-1,181.07",MACINTYRE CARE,CARE ESTABLISHMENT,LD - South Locality,LD - South Cambs - Care,Residential Client Care Contributions
Cambridgeshire County Council,12-Jul-19,51301037588,"-1,181.07",MACINTYRE CARE,CARE ESTABLISHMENT,LD - South Locality,LD - South Cambs - Care,Residential Client Care Contributions
Cambridgeshire County Council,12-Jul-19,51301037588,"-1,181.07",MACINTYRE CARE,CARE ESTABLISHMENT,LD - South Locality,LD - South Cambs - Care,Residential Client Care Contributions
Cambridgeshire County Council,12-Jul-19,51301037588,"-1,181.07",MACINTYRE CARE,CARE ESTABLISHMENT,LD - South Locality,LD - South Cambs - Care,Residential Client Care Contributions
Cambridgeshire County Council,12-Jul-19,51301037588,"-1,181.07",MACINTYRE CARE,CARE ESTABLISHMENT,LD - South Locality,LD - South Cambs - Care,Residential Client Care Contributions
Cambridgeshire County Council,12-Jul-19,51301037588,"-1,181.07",MACINTYRE CARE,CARE ESTABLISHMENT,LD - South Locality,LD - South Cambs - Care,Residential Client Care Contributions
Cambridgeshire County Council,12-Jul-19,51301037588,"-1,181.07",MACINTYRE CARE,CARE ESTABLISHMENT,LD - South Locality,LD - South Cambs - Care,Residential Client Care Contributions
Cambridgeshire County Council,12-Jul-19,51301037588,"-1,181.07",MACINTYRE CARE,CARE ESTABLISHMENT,LD - South Locality,LD - South Cambs - Care,Residential Client Care Contributions
Cambridgeshire County Council,12-Jul-19,51301037588,"-1,181.07",MACINTYRE CARE,CARE ESTABLISHMENT,LD - South Locality,LD - South Cambs - Care,Residential Client Care Contributions
Cambridgeshire County Council,12-Jul-19,51301037588,"-1,181.07",MACINTYRE CARE,CARE ESTABLISHMENT,LD - South Locality,LD - South Cambs - Care,Residential Client Care Contributions
Cambridgeshire County Council,12-Jul-19,51301037588,"-1,181.07",MACINTYRE CARE,CARE ESTABLISHMENT,LD - South Locality,LD - South Cambs - Care,Residential Client Care Contributions
Cambridgeshire County Council,12-Jul-19,51301037588,"-1,181.07",MACINTYRE CARE,CARE ESTABLISHMENT,LD - South Locality,LD - South Cambs - Care,Residential Client Care Contributions
Cambridgeshire County Council,12-Jul-19,51301037588,"-1,181.07",MACINTYRE CARE,CARE ESTABLISHMENT,LD - South Locality,LD - South Cambs - Care,Residential Client Care Contributions
Cambridgeshire County Council,12-Jul-19,51301037588,"-1,181.07",MACINTYRE CARE,CARE ESTABLISHMENT,LD - South Locality,LD - South Cambs - Care,Residential Client Care Contributions
Cambridgeshire County Council,12-Jul-19,51301037588,"-1,181.07",MACINTYRE CARE,CARE ESTABLISHMENT,LD - South Locality,LD - South Cambs - Care,Residential Client Care Contributions
Cambridgeshire County Council,12-Jul-19,51301037588,"-1,181.07",MACINTYRE CARE,CARE ESTABLISHMENT,LD - South Locality,LD - South Cambs - Care,Residential Client Care Contributions
Cambridgeshire County Council,12-Jul-19,51301037588,"-1,181.07",MACINTYRE CARE,CARE ESTABLISHMENT,LD - South Locality,LD - South Cambs - Care,Residential Client Care Contributions
Cambridgeshire County Council,12-Jul-19,51301037588,"-1,181.07",MACINTYRE CARE,CARE ESTABLISHMENT,LD - South Locality,LD - South Cambs - Care,Residential Client Care Contributions
Cambridgeshire County Council,24-Jul-19,53300019853,"-1,168.95",HMRC - PAYE,OTHER PUBLIC BODIES,Financing items,Additional Pension Contribution,Pay
Cambridgeshire County Council,23-Jul-19,51301055410,"-1,160.20",Next Steps Ltd,COMPANY,LD - Young Adults Team,LD - Young Adults - Care,Supported Living
Cambridgeshire County Council,11-Jul-19,51301030508,"-1,158.52",KEY2 FUTURES LTD,TRADE SUPPLIER,LAC Placements,Placements - supported accommodation,Agency Placements - In County
Cambridgeshire County Council,11-Jul-19,51301035715,"-1,130.00",Redacted Personal Data ,SERVICE USER,OP - City & South Locality,Older People - City & South,Direct Payments
Cambridgeshire County Council,11-Jul-19,51301035718,"-1,130.00",Redacted Personal Data ,SERVICE USER,OP - City & South Locality,Older People - City & South,Direct Payments
Cambridgeshire County Council,11-Jul-19,51301035708,"-1,130.00",Redacted Personal Data ,SERVICE USER,OP - City & South Locality,Older People - City & South,Direct Payments
Cambridgeshire County Council,11-Jul-19,51301035713,"-1,130.00",Redacted Personal Data ,SERVICE USER,OP - City & South Locality,Older People - City & South,Direct Payments
Cambridgeshire County Council,11-Jul-19,51301035693,"-1,130.00",Redacted Personal Data ,SERVICE USER,OP - City & South Locality,Older People - City & South,Direct Payments
Cambridgeshire County Council,11-Jul-19,51301035696,"-1,130.00",Redacted Personal Data ,SERVICE USER,OP - City & South Locality,Older People - City & South,Direct Payments
Cambridgeshire County Council,11-Jul-19,51301035717,"-1,130.00",Redacted Personal Data ,SERVICE USER,OP - City & South Locality,Older People - City & South,Direct Payments
Cambridgeshire County Council,11-Jul-19,51301035699,"-1,130.00",Redacted Personal Data ,SERVICE USER,OP - City & South Locality,Older People - City & South,Direct Payments
Cambridgeshire County Council,11-Jul-19,51301035704,"-1,130.00",Redacted Personal Data ,SERVICE USER,OP - City & South Locality,Older People - City & South,Direct Payments
Cambridgeshire County Council,12-Jul-19,51301033950,"-1,128.95",ALDERTON HOUSE,CARE ESTABLISHMENT,LD - East Locality,LD - East Cambs - Care,Residential Care
Cambridgeshire County Council,12-Jul-19,51301015384,"-1,128.95",ALDERTON HOUSE,CARE ESTABLISHMENT,LD - East Locality,LD - East Cambs - Care,Residential Care
Cambridgeshire County Council,12-Jul-19,51301024788,"-1,128.95",ALDERTON HOUSE,CARE ESTABLISHMENT,LD - East Locality,LD - East Cambs - Special Needs,Residential Care
Cambridgeshire County Council,23-Jul-19,51301048267,"-1,128.95",ALDERTON HOUSE,CARE ESTABLISHMENT,LD - East Locality,LD - East Cambs - Care,Residential Care
Cambridgeshire County Council,17-Jul-19,51301039072,"-1,100.00",ASKHAM PLACE PD,CARE ESTABLISHMENT,Physical Disablity,Countywide PD Service - Care,Residential Care
Cambridgeshire County Council,23-Jul-19,51301036787,"-1,091.65",GUYATT HOUSE CARE LTD,CARE ESTABLISHMENT,LD - East Locality,LD - East Cambs - Care,Domiciliary Care
Cambridgeshire County Council,23-Jul-19,51301020607,"-1,091.65",GUYATT HOUSE CARE LTD,CARE ESTABLISHMENT,LD - East Locality,LD - East Cambs - Care,Domiciliary Care
Cambridgeshire County Council,23-Jul-19,51301063340,"-1,091.65",GUYATT HOUSE CARE LTD,CARE ESTABLISHMENT,LD - East Locality,LD - East Cambs - Care,Domiciliary Care
Cambridgeshire County Council,23-Jul-19,51301029053,"-1,091.65",GUYATT HOUSE CARE LTD,CARE ESTABLISHMENT,LD - East Locality,LD - East Cambs - Special Needs,Domiciliary Care
Cambridgeshire County Council,26-Jul-19,51301076192,"-1,091.65",GUYATT HOUSE CARE LTD,CARE ESTABLISHMENT,LD - East Locality,LD - East Cambs - Special Needs,Domiciliary Care
Cambridgeshire County Council,17-Jul-19,51301038572,"-1,079.02",CAMBRIDGE CITY COUNCIL,OTHER PUBLIC BODIES,BM - Corporate Offices,FM Caretaker Housing,Building alterations
Cambridgeshire County Council,04-Jul-19,51301021593,"-1,059.75",BEACH BABIES LIMITED (WILBURTON),NURSERY,Early Years Specialist Support,Procurement - TA Inclusion & Access (EARLY YEARS),Care & Ed Partner Organisations
Cambridgeshire County Council,26-Jul-19,51301075994,"-1,041.96",VOYAGE,CARE ESTABLISHMENT,LD - City Locality,LD - City - Special Needs,Supported Living
Cambridgeshire County Council,26-Jul-19,51301075992,"-1,041.96",VOYAGE,CARE ESTABLISHMENT,LD - City Locality,LD - City - Special Needs,Supported Living
Cambridgeshire County Council,08-Jul-19,51301022919,"-1,035.07",IMTECH AQUA MAINTENANCE LTD,COMPANY,Energy Efficiency Fund,Energy Efficiency Fund,"New Construction, Conversion and Renovation"
Cambridgeshire County Council,04-Jul-19,51301020875,"-1,026.89",CARETECH COMMUNITY SERVICES,CARE ESTABLISHMENT,LD - South Locality,LD - South Cambs - Special Needs,Residential Care
Cambridgeshire County Council,04-Jul-19,51301029502,"-1,026.89",CARETECH COMMUNITY SERVICES,CARE ESTABLISHMENT,LD - South Locality,LD - South Cambs - Special Needs,Residential Care
Cambridgeshire County Council,12-Jul-19,51301036913,"-1,026.89",CARETECH COMMUNITY SERVICES,CARE ESTABLISHMENT,LD - South Locality,LD - South Cambs - Special Needs,Residential Care
Cambridgeshire County Council,23-Jul-19,51301064447,"-1,026.89",CARETECH COMMUNITY SERVICES,CARE ESTABLISHMENT,LD - South Locality,LD - South Cambs - Special Needs,Residential Care
Cambridgeshire County Council,02-Jul-19,51301021382,"-1,008.00",WCL UK LTD,TRADE SUPPLIER,ICT Service,ICT Service Sales,Materials for resale
Cambridgeshire County Council,10-Jul-19,51301029823,"-1,007.94",CASTLE HOMES CARE LTD,CARE ESTABLISHMENT,LAC Placements,Placements - residential homes,Agency Placements - Out of  County
Cambridgeshire County Council,17-Jul-19,51301039329,"-1,000.00",SOHAM LODGE,CARE ESTABLISHMENT,OP - East Cambs Locality,East Cambs - O P Team,Nursing Care
Cambridgeshire County Council,17-Jul-19,51301039329,"-1,000.00",SOHAM LODGE,CARE ESTABLISHMENT,OP - East Cambs Locality,East Cambs - O P Team,Nursing Care
Cambridgeshire County Council,17-Jul-19,51301039329,"-1,000.00",SOHAM LODGE,CARE ESTABLISHMENT,OP - East Cambs Locality,East Cambs - O P Team,Nursing Care
Cambridgeshire County Council,12-Jul-19,51301019430,-997.00,CONIFER LODGE,CARE ESTABLISHMENT,LD - Fenland Locality,LD - Fenland  - Special Needs,Residential Care
Cambridgeshire County Council,12-Jul-19,51301019386,-997.00,CONIFER LODGE,CARE ESTABLISHMENT,LD - Fenland Locality,LD - Fenland  - Special Needs,Residential Care
Cambridgeshire County Council,12-Jul-19,51301019463,-997.00,CONIFER LODGE,CARE ESTABLISHMENT,LD - Fenland Locality,LD - Fenland  - Special Needs,Residential Care
Cambridgeshire County Council,12-Jul-19,51301019366,-997.00,CONIFER LODGE,CARE ESTABLISHMENT,LD - Fenland Locality,LD - Fenland  - Special Needs,Residential Care
Cambridgeshire County Council,12-Jul-19,51301019497,-997.00,CONIFER LODGE,CARE ESTABLISHMENT,LD - Fenland Locality,LD - Fenland  - Special Needs,Residential Care
Cambridgeshire County Council,12-Jul-19,51301019441,-997.00,CONIFER LODGE,CARE ESTABLISHMENT,LD - Fenland Locality,LD - Fenland  - Special Needs,Residential Care
Cambridgeshire County Council,12-Jul-19,51301019499,-997.00,CONIFER LODGE,CARE ESTABLISHMENT,LD - Fenland Locality,LD - Fenland  - Special Needs,Residential Care
Cambridgeshire County Council,12-Jul-19,51301019471,-997.00,CONIFER LODGE,CARE ESTABLISHMENT,LD - Fenland Locality,LD - Fenland  - Special Needs,Residential Care
Cambridgeshire County Council,12-Jul-19,51301019382,-997.00,CONIFER LODGE,CARE ESTABLISHMENT,LD - Fenland Locality,LD - Fenland  - Special Needs,Residential Care
Cambridgeshire County Council,12-Jul-19,51301019388,-997.00,CONIFER LODGE,CARE ESTABLISHMENT,LD - Fenland Locality,LD - Fenland  - Special Needs,Residential Care
Cambridgeshire County Council,12-Jul-19,51301019422,-997.00,CONIFER LODGE,CARE ESTABLISHMENT,LD - Fenland Locality,LD - Fenland  - Special Needs,Residential Care
Cambridgeshire County Council,12-Jul-19,51301019429,-997.00,CONIFER LODGE,CARE ESTABLISHMENT,LD - Fenland Locality,LD - Fenland  - Special Needs,Residential Care
Cambridgeshire County Council,12-Jul-19,51301019367,-997.00,CONIFER LODGE,CARE ESTABLISHMENT,LD - Fenland Locality,LD - Fenland  - Special Needs,Residential Care
Cambridgeshire County Council,12-Jul-19,51301019412,-997.00,CONIFER LODGE,CARE ESTABLISHMENT,LD - Fenland Locality,LD - Fenland  - Special Needs,Residential Care
Cambridgeshire County Council,12-Jul-19,51301019423,-997.00,CONIFER LODGE,CARE ESTABLISHMENT,LD - Fenland Locality,LD - Fenland  - Special Needs,Residential Care
Cambridgeshire County Council,12-Jul-19,51301019456,-997.00,CONIFER LODGE,CARE ESTABLISHMENT,LD - Fenland Locality,LD - Fenland  - Special Needs,Residential Care
Cambridgeshire County Council,12-Jul-19,51301019479,-997.00,CONIFER LODGE,CARE ESTABLISHMENT,LD - Fenland Locality,LD - Fenland  - Special Needs,Residential Care
Cambridgeshire County Council,12-Jul-19,51301019482,-997.00,CONIFER LODGE,CARE ESTABLISHMENT,LD - Fenland Locality,LD - Fenland  - Special Needs,Residential Care
Cambridgeshire County Council,12-Jul-19,51301019483,-997.00,CONIFER LODGE,CARE ESTABLISHMENT,LD - Fenland Locality,LD - Fenland  - Special Needs,Residential Care
Cambridgeshire County Council,12-Jul-19,51301019425,-997.00,CONIFER LODGE,CARE ESTABLISHMENT,LD - Fenland Locality,LD - Fenland  - Special Needs,Residential Care
Cambridgeshire County Council,12-Jul-19,51301019462,-997.00,CONIFER LODGE,CARE ESTABLISHMENT,LD - Fenland Locality,LD - Fenland  - Special Needs,Residential Care
Cambridgeshire County Council,12-Jul-19,51301019487,-997.00,CONIFER LODGE,CARE ESTABLISHMENT,LD - Fenland Locality,LD - Fenland  - Special Needs,Residential Care
Cambridgeshire County Council,12-Jul-19,51301019439,-997.00,CONIFER LODGE,CARE ESTABLISHMENT,LD - Fenland Locality,LD - Fenland  - Special Needs,Residential Care
Cambridgeshire County Council,12-Jul-19,51301019365,-997.00,CONIFER LODGE,CARE ESTABLISHMENT,LD - Fenland Locality,LD - Fenland  - Special Needs,Residential Care
Cambridgeshire County Council,12-Jul-19,51301019500,-997.00,CONIFER LODGE,CARE ESTABLISHMENT,LD - Fenland Locality,LD - Fenland  - Special Needs,Residential Care
Cambridgeshire County Council,12-Jul-19,51301019486,-997.00,CONIFER LODGE,CARE ESTABLISHMENT,LD - Fenland Locality,LD - Fenland  - Special Needs,Residential Care
Cambridgeshire County Council,12-Jul-19,51301019431,-997.00,CONIFER LODGE,CARE ESTABLISHMENT,LD - Fenland Locality,LD - Fenland  - Special Needs,Residential Care
Cambridgeshire County Council,12-Jul-19,51301019426,-997.00,CONIFER LODGE,CARE ESTABLISHMENT,LD - Fenland Locality,LD - Fenland  - Special Needs,Residential Care
Cambridgeshire County Council,12-Jul-19,51301019480,-997.00,CONIFER LODGE,CARE ESTABLISHMENT,LD - Fenland Locality,LD - Fenland  - Special Needs,Residential Care
Cambridgeshire County Council,12-Jul-19,51301019424,-997.00,CONIFER LODGE,CARE ESTABLISHMENT,LD - Fenland Locality,LD - Fenland  - Special Needs,Residential Care
Cambridgeshire County Council,12-Jul-19,51301019372,-997.00,CONIFER LODGE,CARE ESTABLISHMENT,LD - Fenland Locality,LD - Fenland  - Special Needs,Residential Care
Cambridgeshire County Council,12-Jul-19,51301019470,-997.00,CONIFER LODGE,CARE ESTABLISHMENT,LD - Fenland Locality,LD - Fenland  - Special Needs,Residential Care
Cambridgeshire County Council,23-Jul-19,51301017028,-977.95,MENCAP PETERBOROUGH,CARE ESTABLISHMENT,Autism and Adult Support,Autism and Adult Support - Care,Domiciliary Care
Cambridgeshire County Council,08-Jul-19,51301022922,-962.35,IMTECH AQUA MAINTENANCE LTD,COMPANY,Energy Efficiency Fund,Energy Efficiency Fund,"New Construction, Conversion and Renovation"
Cambridgeshire County Council,12-Jul-19,51300823010,-950.00,WOODLANDS CARE CENTRE (LD),CARE ESTABLISHMENT,LD - South Locality,LD - South Cambs - Special Needs,Residential Care
Cambridgeshire County Council,12-Jul-19,51300823008,-950.00,WOODLANDS CARE CENTRE (LD),CARE ESTABLISHMENT,LD - South Locality,LD - South Cambs - Special Needs,Residential Care
Cambridgeshire County Council,12-Jul-19,51300823004,-950.00,WOODLANDS CARE CENTRE (LD),CARE ESTABLISHMENT,LD - South Locality,LD - South Cambs - Special Needs,Residential Care
Cambridgeshire County Council,12-Jul-19,51300823011,-950.00,WOODLANDS CARE CENTRE (LD),CARE ESTABLISHMENT,LD - South Locality,LD - South Cambs - Special Needs,Residential Care
Cambridgeshire County Council,12-Jul-19,51300823005,-950.00,WOODLANDS CARE CENTRE (LD),CARE ESTABLISHMENT,LD - South Locality,LD - South Cambs - Special Needs,Residential Care
Cambridgeshire County Council,12-Jul-19,51300823006,-950.00,WOODLANDS CARE CENTRE (LD),CARE ESTABLISHMENT,LD - South Locality,LD - South Cambs - Special Needs,Residential Care
Cambridgeshire County Council,12-Jul-19,51300823007,-950.00,WOODLANDS CARE CENTRE (LD),CARE ESTABLISHMENT,LD - South Locality,LD - South Cambs - Special Needs,Residential Care
Cambridgeshire County Council,12-Jul-19,51300823013,-950.00,WOODLANDS CARE CENTRE (LD),CARE ESTABLISHMENT,LD - South Locality,LD - South Cambs - Special Needs,Residential Care
Cambridgeshire County Council,17-Jul-19,51300960858,-950.00,ASKHAM HALL,CARE ESTABLISHMENT,OP - City & South Locality,Older People - City & South,Nursing Care
Cambridgeshire County Council,17-Jul-19,51301015935,-950.00,ASKHAM HALL,CARE ESTABLISHMENT,OP - City & South Locality,Older People - City & South,Nursing Care
Cambridgeshire County Council,17-Jul-19,51301025246,-950.00,ASKHAM HALL,CARE ESTABLISHMENT,OP - City & South Locality,Older People - City & South,Nursing Care
Cambridgeshire County Council,17-Jul-19,51300996925,-950.00,ASKHAM HALL,CARE ESTABLISHMENT,OP - City & South Locality,Older People - City & South,Nursing Care
Cambridgeshire County Council,17-Jul-19,51300982470,-950.00,ASKHAM HALL,CARE ESTABLISHMENT,OP - City & South Locality,Older People - City & South,Nursing Care
Cambridgeshire County Council,17-Jul-19,51301025245,-950.00,ASKHAM HALL,CARE ESTABLISHMENT,OP - City & South Locality,Older People - City & South,Nursing Care
Cambridgeshire County Council,17-Jul-19,51300982459,-950.00,ASKHAM HALL,CARE ESTABLISHMENT,OP - City & South Locality,Older People - City & South,Nursing Care
Cambridgeshire County Council,17-Jul-19,51300982466,-950.00,ASKHAM HALL,CARE ESTABLISHMENT,OP - City & South Locality,Older People - City & South,Nursing Care
Cambridgeshire County Council,17-Jul-19,51300960854,-950.00,ASKHAM HALL,CARE ESTABLISHMENT,OP - City & South Locality,Older People - City & South,Nursing Care
Cambridgeshire County Council,17-Jul-19,51301015940,-950.00,ASKHAM HALL,CARE ESTABLISHMENT,OP - City & South Locality,Older People - City & South,Nursing Care
Cambridgeshire County Council,17-Jul-19,51301015931,-950.00,ASKHAM HALL,CARE ESTABLISHMENT,OP - Fenland Locality,Older People - Fenland,Nursing Care
Cambridgeshire County Council,17-Jul-19,51300996931,-950.00,ASKHAM HALL,CARE ESTABLISHMENT,OP - Fenland Locality,Older People - Fenland,Nursing Care
Cambridgeshire County Council,17-Jul-19,51301025249,-950.00,ASKHAM HALL,CARE ESTABLISHMENT,OP - Fenland Locality,Older People - Fenland,Nursing Care
Cambridgeshire County Council,17-Jul-19,51300974373,-950.00,ASKHAM HALL,CARE ESTABLISHMENT,OP - City & South Locality,Older People - City & South,Nursing Care
Cambridgeshire County Council,17-Jul-19,51300960851,-950.00,ASKHAM HALL,CARE ESTABLISHMENT,OP - City & South Locality,Older People - City & South,Nursing Care
Cambridgeshire County Council,17-Jul-19,51301034309,-950.00,ASKHAM HALL,CARE ESTABLISHMENT,OP - City & South Locality,Older People - City & South,Nursing Care
Cambridgeshire County Council,17-Jul-19,51300960853,-950.00,ASKHAM HALL,CARE ESTABLISHMENT,OP - City & South Locality,Older People - City & South,Nursing Care
Cambridgeshire County Council,17-Jul-19,51300996927,-950.00,ASKHAM HALL,CARE ESTABLISHMENT,OP - City & South Locality,Older People - City & South,Nursing Care
Cambridgeshire County Council,17-Jul-19,51300974382,-950.00,ASKHAM HALL,CARE ESTABLISHMENT,OP - City & South Locality,Older People - City & South,Nursing Care
Cambridgeshire County Council,17-Jul-19,51300974379,-950.00,ASKHAM HALL,CARE ESTABLISHMENT,OP - City & South Locality,Older People - City & South,Nursing Care
Cambridgeshire County Council,17-Jul-19,51301025237,-950.00,ASKHAM HALL,CARE ESTABLISHMENT,OP - Fenland Locality,Older People - Fenland,Nursing Care
Cambridgeshire County Council,17-Jul-19,51301015942,-950.00,ASKHAM HALL,CARE ESTABLISHMENT,OP - Fenland Locality,Older People - Fenland,Nursing Care
Cambridgeshire County Council,17-Jul-19,51300982465,-950.00,ASKHAM HALL,CARE ESTABLISHMENT,OP - Fenland Locality,Older People - Fenland,Nursing Care
Cambridgeshire County Council,17-Jul-19,51300960856,-950.00,ASKHAM HALL,CARE ESTABLISHMENT,OP - Fenland Locality,Older People - Fenland,Nursing Care
Cambridgeshire County Council,17-Jul-19,51301034303,-950.00,ASKHAM HALL,CARE ESTABLISHMENT,OP - Fenland Locality,Older People - Fenland,Nursing Care
Cambridgeshire County Council,17-Jul-19,51300960855,-950.00,ASKHAM HALL,CARE ESTABLISHMENT,OP - Fenland Locality,Older People - Fenland,Nursing Care
Cambridgeshire County Council,17-Jul-19,51301034311,-950.00,ASKHAM HALL,CARE ESTABLISHMENT,OP - Fenland Locality,Older People - Fenland,Nursing Care
Cambridgeshire County Council,17-Jul-19,51301025239,-950.00,ASKHAM HALL,CARE ESTABLISHMENT,OP - Fenland Locality,Older People - Fenland,Nursing Care
Cambridgeshire County Council,17-Jul-19,51301034302,-950.00,ASKHAM HALL,CARE ESTABLISHMENT,OP - Fenland Locality,Older People - Fenland,Nursing Care
Cambridgeshire County Council,17-Jul-19,51301015930,-950.00,ASKHAM HALL,CARE ESTABLISHMENT,OP - Fenland Locality,Older People - Fenland,Nursing Care
Cambridgeshire County Council,17-Jul-19,51301034307,-950.00,ASKHAM HALL,CARE ESTABLISHMENT,OP - Fenland Locality,Older People - Fenland,Nursing Care
Cambridgeshire County Council,17-Jul-19,51301034299,-950.00,ASKHAM HALL,CARE ESTABLISHMENT,OP - Fenland Locality,Older People - Fenland,Nursing Care
Cambridgeshire County Council,17-Jul-19,51300982456,-950.00,ASKHAM HALL,CARE ESTABLISHMENT,OP - City & South Locality,Older People - City & South,Nursing Care
Cambridgeshire County Council,17-Jul-19,51301015936,-950.00,ASKHAM HALL,CARE ESTABLISHMENT,OP - City & South Locality,Older People - City & South,Nursing Care
Cambridgeshire County Council,17-Jul-19,51301025235,-950.00,ASKHAM HALL,CARE ESTABLISHMENT,OP - City & South Locality,Older People - City & South,Nursing Care
Cambridgeshire County Council,17-Jul-19,51300974374,-950.00,ASKHAM HALL,CARE ESTABLISHMENT,OP - Fenland Locality,Older People - Fenland,Nursing Care
Cambridgeshire County Council,17-Jul-19,51300996929,-950.00,ASKHAM HALL,CARE ESTABLISHMENT,OP - Fenland Locality,Older People - Fenland,Nursing Care
Cambridgeshire County Council,17-Jul-19,51300996932,-950.00,ASKHAM HALL,CARE ESTABLISHMENT,OP - Fenland Locality,Older People - Fenland,Nursing Care
Cambridgeshire County Council,17-Jul-19,51300974387,-950.00,ASKHAM HALL,CARE ESTABLISHMENT,OP - Fenland Locality,Older People - Fenland,Nursing Care
Cambridgeshire County Council,17-Jul-19,51300982462,-950.00,ASKHAM HALL,CARE ESTABLISHMENT,OP - Fenland Locality,Older People - Fenland,Nursing Care
Cambridgeshire County Council,17-Jul-19,51300974388,-950.00,ASKHAM HALL,CARE ESTABLISHMENT,OP - Fenland Locality,Older People - Fenland,Nursing Care
Cambridgeshire County Council,17-Jul-19,51300996934,-950.00,ASKHAM HALL,CARE ESTABLISHMENT,OP - Fenland Locality,Older People - Fenland,Nursing Care
Cambridgeshire County Council,17-Jul-19,51301039072,-942.86,ASKHAM PLACE PD,CARE ESTABLISHMENT,Physical Disablity,Countywide PD Service - Care,Residential Care
Cambridgeshire County Council,12-Jul-19,51301014396,-935.98,ROSEWOOD  (OP PD MH),CARE ESTABLISHMENT,OP - City & South Locality,Older People - City & South,Residential Care
Cambridgeshire County Council,26-Jul-19,51301073702,-919.15,VOYAGE,CARE ESTABLISHMENT,LD - City Locality,LD - City - Special Needs,Supported Living
Cambridgeshire County Council,12-Jul-19,51300823495,-917.42,BROWN'S FIELD HOUSE (ABBEYFIELD SOCIETY),CARE ESTABLISHMENT,OPMH - Under 65,Older People Mental Health - Under 65's,Residential Care
Cambridgeshire County Council,12-Jul-19,51300823496,-917.42,BROWN'S FIELD HOUSE (ABBEYFIELD SOCIETY),CARE ESTABLISHMENT,OPMH - Under 65,Older People Mental Health - Under 65's,Residential Care
Cambridgeshire County Council,12-Jul-19,51300823491,-917.42,BROWN'S FIELD HOUSE (ABBEYFIELD SOCIETY),CARE ESTABLISHMENT,OPMH - Under 65,Older People Mental Health - Under 65's,Residential Care
Cambridgeshire County Council,12-Jul-19,51300823486,-917.42,BROWN'S FIELD HOUSE (ABBEYFIELD SOCIETY),CARE ESTABLISHMENT,OPMH - Under 65,Older People Mental Health - Under 65's,Residential Care
Cambridgeshire County Council,12-Jul-19,51300823494,-917.42,BROWN'S FIELD HOUSE (ABBEYFIELD SOCIETY),CARE ESTABLISHMENT,OPMH - Under 65,Older People Mental Health - Under 65's,Residential Care
Cambridgeshire County Council,12-Jul-19,51300823497,-917.42,BROWN'S FIELD HOUSE (ABBEYFIELD SOCIETY),CARE ESTABLISHMENT,OPMH - Under 65,Older People Mental Health - Under 65's,Residential Care
Cambridgeshire County Council,12-Jul-19,51300823487,-917.42,BROWN'S FIELD HOUSE (ABBEYFIELD SOCIETY),CARE ESTABLISHMENT,OPMH - Under 65,Older People Mental Health - Under 65's,Residential Care
Cambridgeshire County Council,12-Jul-19,51300823493,-917.42,BROWN'S FIELD HOUSE (ABBEYFIELD SOCIETY),CARE ESTABLISHMENT,OPMH - Under 65,Older People Mental Health - Under 65's,Residential Care
Cambridgeshire County Council,12-Jul-19,51301037841,-915.06,PAULINE BURNETT HOUSE,CARE ESTABLISHMENT,LD - South Locality,LD - South Cambs - Care,Residential Client Care Contributions
Cambridgeshire County Council,12-Jul-19,51301037841,-915.06,PAULINE BURNETT HOUSE,CARE ESTABLISHMENT,LD - South Locality,LD - South Cambs - Care,Residential Client Care Contributions
Cambridgeshire County Council,12-Jul-19,51301037841,-915.06,PAULINE BURNETT HOUSE,CARE ESTABLISHMENT,LD - South Locality,LD - South Cambs - Care,Residential Client Care Contributions
Cambridgeshire County Council,12-Jul-19,51301037841,-915.06,PAULINE BURNETT HOUSE,CARE ESTABLISHMENT,LD - South Locality,LD - South Cambs - Care,Residential Client Care Contributions
Cambridgeshire County Council,17-Jul-19,51301028240,-911.17,THE GROVE CHESHIRE HOME,CARE ESTABLISHMENT,LD - East Locality,LD - East Cambs - Special Needs,Residential Care
Cambridgeshire County Council,17-Jul-19,51301028230,-911.17,THE GROVE CHESHIRE HOME,CARE ESTABLISHMENT,LD - East Locality,LD - East Cambs - Special Needs,Residential Care
Cambridgeshire County Council,17-Jul-19,51301019659,-911.17,THE GROVE CHESHIRE HOME,CARE ESTABLISHMENT,LD - East Locality,LD - East Cambs - Special Needs,Residential Care
Cambridgeshire County Council,17-Jul-19,51301036323,-911.17,THE GROVE CHESHIRE HOME,CARE ESTABLISHMENT,LD - East Locality,LD - East Cambs - Special Needs,Residential Care
Cambridgeshire County Council,17-Jul-19,51301036319,-911.17,THE GROVE CHESHIRE HOME,CARE ESTABLISHMENT,LD - Fenland Locality,LD - Fenland  - Special Needs,Residential Care
Cambridgeshire County Council,17-Jul-19,51301028236,-911.17,THE GROVE CHESHIRE HOME,CARE ESTABLISHMENT,LD - Fenland Locality,LD - Fenland  - Special Needs,Residential Care
Cambridgeshire County Council,17-Jul-19,51301036314,-911.17,THE GROVE CHESHIRE HOME,CARE ESTABLISHMENT,LD - Fenland Locality,LD - Fenland  - Special Needs,Residential Care
Cambridgeshire County Council,17-Jul-19,51301036316,-911.17,THE GROVE CHESHIRE HOME,CARE ESTABLISHMENT,LD - Fenland Locality,LD - Fenland  - Special Needs,Residential Care
Cambridgeshire County Council,17-Jul-19,51301036312,-911.17,THE GROVE CHESHIRE HOME,CARE ESTABLISHMENT,LD - Fenland Locality,LD - Fenland  - Special Needs,Residential Care
Cambridgeshire County Council,17-Jul-19,51301028225,-911.17,THE GROVE CHESHIRE HOME,CARE ESTABLISHMENT,LD - Fenland Locality,LD - Fenland  - Special Needs,Residential Care
Cambridgeshire County Council,17-Jul-19,51301019664,-911.17,THE GROVE CHESHIRE HOME,CARE ESTABLISHMENT,LD - Fenland Locality,LD - Fenland  - Special Needs,Residential Care
Cambridgeshire County Council,17-Jul-19,51301019656,-911.17,THE GROVE CHESHIRE HOME,CARE ESTABLISHMENT,LD - Fenland Locality,LD - Fenland  - Special Needs,Residential Care
Cambridgeshire County Council,17-Jul-19,51301019661,-911.17,THE GROVE CHESHIRE HOME,CARE ESTABLISHMENT,LD - Fenland Locality,LD - Fenland  - Special Needs,Residential Care
Cambridgeshire County Council,17-Jul-19,51301028237,-911.17,THE GROVE CHESHIRE HOME,CARE ESTABLISHMENT,LD - East Locality,LD - East Cambs - Special Needs,Residential Care
Cambridgeshire County Council,17-Jul-19,51301019669,-911.17,THE GROVE CHESHIRE HOME,CARE ESTABLISHMENT,LD - East Locality,LD - East Cambs - Special Needs,Residential Care
Cambridgeshire County Council,17-Jul-19,51301028238,-911.17,THE GROVE CHESHIRE HOME,CARE ESTABLISHMENT,LD - East Locality,LD - East Cambs - Special Needs,Residential Care
Cambridgeshire County Council,17-Jul-19,51301036322,-911.17,THE GROVE CHESHIRE HOME,CARE ESTABLISHMENT,LD - East Locality,LD - East Cambs - Special Needs,Residential Care
Cambridgeshire County Council,17-Jul-19,51301019665,-911.17,THE GROVE CHESHIRE HOME,CARE ESTABLISHMENT,LD - East Locality,LD - East Cambs - Special Needs,Residential Care
Cambridgeshire County Council,17-Jul-19,51301036318,-911.17,THE GROVE CHESHIRE HOME,CARE ESTABLISHMENT,LD - East Locality,LD - East Cambs - Special Needs,Residential Care
Cambridgeshire County Council,17-Jul-19,51301019666,-911.17,THE GROVE CHESHIRE HOME,CARE ESTABLISHMENT,LD - East Locality,LD - East Cambs - Special Needs,Residential Care
Cambridgeshire County Council,17-Jul-19,51301019668,-911.17,THE GROVE CHESHIRE HOME,CARE ESTABLISHMENT,LD - East Locality,LD - East Cambs - Special Needs,Residential Care
Cambridgeshire County Council,17-Jul-19,51301028231,-911.17,THE GROVE CHESHIRE HOME,CARE ESTABLISHMENT,LD - Fenland Locality,LD - Fenland  - Special Needs,Residential Care
Cambridgeshire County Council,17-Jul-19,51301028233,-911.17,THE GROVE CHESHIRE HOME,CARE ESTABLISHMENT,LD - Fenland Locality,LD - Fenland  - Special Needs,Residential Care
Cambridgeshire County Council,17-Jul-19,51301036321,-911.17,THE GROVE CHESHIRE HOME,CARE ESTABLISHMENT,LD - Fenland Locality,LD - Fenland  - Special Needs,Residential Care
Cambridgeshire County Council,23-Jul-19,51301060273,-911.17,THE GROVE CHESHIRE HOME,CARE ESTABLISHMENT,LD - Fenland Locality,LD - Fenland  - Special Needs,Residential Care
Cambridgeshire County Council,23-Jul-19,51301060269,-911.17,THE GROVE CHESHIRE HOME,CARE ESTABLISHMENT,LD - Fenland Locality,LD - Fenland  - Special Needs,Residential Care
Cambridgeshire County Council,23-Jul-19,51301060266,-911.17,THE GROVE CHESHIRE HOME,CARE ESTABLISHMENT,LD - Fenland Locality,LD - Fenland  - Special Needs,Residential Care
Cambridgeshire County Council,23-Jul-19,51301060259,-911.17,THE GROVE CHESHIRE HOME,CARE ESTABLISHMENT,LD - Fenland Locality,LD - Fenland  - Special Needs,Residential Care
Cambridgeshire County Council,23-Jul-19,51301060278,-911.17,THE GROVE CHESHIRE HOME,CARE ESTABLISHMENT,LD - Fenland Locality,LD - Fenland  - Special Needs,Residential Care
Cambridgeshire County Council,23-Jul-19,51301060272,-911.17,THE GROVE CHESHIRE HOME,CARE ESTABLISHMENT,LD - East Locality,LD - East Cambs - Special Needs,Residential Care
Cambridgeshire County Council,23-Jul-19,51301060270,-911.17,THE GROVE CHESHIRE HOME,CARE ESTABLISHMENT,LD - East Locality,LD - East Cambs - Special Needs,Residential Care
Cambridgeshire County Council,23-Jul-19,51301060267,-911.17,THE GROVE CHESHIRE HOME,CARE ESTABLISHMENT,LD - East Locality,LD - East Cambs - Special Needs,Residential Care
Cambridgeshire County Council,12-Jul-19,51301019494,-906.87,CONIFER LODGE,CARE ESTABLISHMENT,LD - Fenland Locality,LD - Fenland  - Special Needs,Residential Care
Cambridgeshire County Council,12-Jul-19,51301019477,-906.87,CONIFER LODGE,CARE ESTABLISHMENT,LD - Fenland Locality,LD - Fenland  - Special Needs,Residential Care
Cambridgeshire County Council,12-Jul-19,51301019444,-906.87,CONIFER LODGE,CARE ESTABLISHMENT,LD - Fenland Locality,LD - Fenland  - Special Needs,Residential Care
Cambridgeshire County Council,12-Jul-19,51301019469,-906.87,CONIFER LODGE,CARE ESTABLISHMENT,LD - Fenland Locality,LD - Fenland  - Special Needs,Residential Care
Cambridgeshire County Council,12-Jul-19,51301019409,-906.87,CONIFER LODGE,CARE ESTABLISHMENT,LD - Fenland Locality,LD - Fenland  - Special Needs,Residential Care
Cambridgeshire County Council,12-Jul-19,51301019491,-906.87,CONIFER LODGE,CARE ESTABLISHMENT,LD - Fenland Locality,LD - Fenland  - Special Needs,Residential Care
Cambridgeshire County Council,12-Jul-19,51301019385,-906.87,CONIFER LODGE,CARE ESTABLISHMENT,LD - Fenland Locality,LD - Fenland  - Special Needs,Residential Care
Cambridgeshire County Council,12-Jul-19,51301019481,-906.87,CONIFER LODGE,CARE ESTABLISHMENT,LD - Fenland Locality,LD - Fenland  - Special Needs,Residential Care
Cambridgeshire County Council,12-Jul-19,51301019492,-906.87,CONIFER LODGE,CARE ESTABLISHMENT,LD - Fenland Locality,LD - Fenland  - Special Needs,Residential Care
Cambridgeshire County Council,12-Jul-19,51301019438,-906.87,CONIFER LODGE,CARE ESTABLISHMENT,LD - Fenland Locality,LD - Fenland  - Special Needs,Residential Care
Cambridgeshire County Council,12-Jul-19,51300973604,-900.00,AVERY HOUSE CARE HOME,CARE ESTABLISHMENT,OP - Hunts Locality,Hunts O P  Team,Residential Care
Cambridgeshire County Council,12-Jul-19,51300981762,-900.00,AVERY HOUSE CARE HOME,CARE ESTABLISHMENT,OP - Hunts Locality,Hunts O P  Team,Residential Care
Cambridgeshire County Council,12-Jul-19,51300981785,-900.00,AVERY HOUSE CARE HOME,CARE ESTABLISHMENT,OP - Hunts Locality,Hunts O P  Team,Nursing Care
Cambridgeshire County Council,12-Jul-19,51300981786,-900.00,AVERY HOUSE CARE HOME,CARE ESTABLISHMENT,OP - Hunts Locality,Hunts O P  Team,Residential Care
Cambridgeshire County Council,12-Jul-19,51300994129,-900.00,AVERY HOUSE CARE HOME,CARE ESTABLISHMENT,OP - Hunts Locality,Hunts O P  Team,Nursing Care
Cambridgeshire County Council,12-Jul-19,51301014932,-900.00,AVERY HOUSE CARE HOME,CARE ESTABLISHMENT,OP - Hunts Locality,Hunts O P  Team,Residential Care
Cambridgeshire County Council,12-Jul-19,51301014945,-900.00,AVERY HOUSE CARE HOME,CARE ESTABLISHMENT,OP - Hunts Locality,Hunts O P  Team,Nursing Care
Cambridgeshire County Council,12-Jul-19,51301024530,-900.00,AVERY HOUSE CARE HOME,CARE ESTABLISHMENT,OP - Hunts Locality,Hunts O P  Team,Nursing Care
Cambridgeshire County Council,12-Jul-19,51300981775,-900.00,AVERY HOUSE CARE HOME,CARE ESTABLISHMENT,OP - Hunts Locality,Hunts O P  Team,Nursing Care
Cambridgeshire County Council,12-Jul-19,51300994124,-900.00,AVERY HOUSE CARE HOME,CARE ESTABLISHMENT,OP - Hunts Locality,Hunts O P  Team,Residential Care
Cambridgeshire County Council,12-Jul-19,51300994126,-900.00,AVERY HOUSE CARE HOME,CARE ESTABLISHMENT,OP - Hunts Locality,Hunts O P  Team,Nursing Care
Cambridgeshire County Council,12-Jul-19,51301024538,-900.00,AVERY HOUSE CARE HOME,CARE ESTABLISHMENT,OP - Hunts Locality,Hunts O P  Team,Nursing Care
Cambridgeshire County Council,12-Jul-19,51301033700,-900.00,AVERY HOUSE CARE HOME,CARE ESTABLISHMENT,OP - Hunts Locality,Hunts O P  Team,Residential Care
Cambridgeshire County Council,12-Jul-19,51300958828,-900.00,AVERY HOUSE CARE HOME,CARE ESTABLISHMENT,OP - Hunts Locality,Hunts O P  Team,Nursing Care
Cambridgeshire County Council,12-Jul-19,51300958793,-900.00,AVERY HOUSE CARE HOME,CARE ESTABLISHMENT,OP - Hunts Locality,Hunts O P  Team,Nursing Care
Cambridgeshire County Council,12-Jul-19,51300973633,-900.00,AVERY HOUSE CARE HOME,CARE ESTABLISHMENT,OP - Hunts Locality,Hunts O P  Team,Nursing Care
Cambridgeshire County Council,12-Jul-19,51300981743,-900.00,AVERY HOUSE CARE HOME,CARE ESTABLISHMENT,OP - Hunts Locality,Hunts O P  Team,Residential Care
Cambridgeshire County Council,12-Jul-19,51300994145,-900.00,AVERY HOUSE CARE HOME,CARE ESTABLISHMENT,OP - Hunts Locality,Hunts O P  Team,Nursing Care
Cambridgeshire County Council,12-Jul-19,51300981789,-900.00,AVERY HOUSE CARE HOME,CARE ESTABLISHMENT,OP - Hunts Locality,Hunts O P  Team,Residential Care
Cambridgeshire County Council,12-Jul-19,51300994107,-900.00,AVERY HOUSE CARE HOME,CARE ESTABLISHMENT,OP - Hunts Locality,Hunts O P  Team,Nursing Care
Cambridgeshire County Council,12-Jul-19,51301014923,-900.00,AVERY HOUSE CARE HOME,CARE ESTABLISHMENT,OP - Hunts Locality,Hunts O P  Team,Nursing Care
Cambridgeshire County Council,12-Jul-19,51301024543,-900.00,AVERY HOUSE CARE HOME,CARE ESTABLISHMENT,OP - Hunts Locality,Hunts O P  Team,Residential Care
Cambridgeshire County Council,12-Jul-19,51301024549,-900.00,AVERY HOUSE CARE HOME,CARE ESTABLISHMENT,OP - Hunts Locality,Hunts O P  Team,Nursing Care
Cambridgeshire County Council,12-Jul-19,51301024551,-900.00,AVERY HOUSE CARE HOME,CARE ESTABLISHMENT,OP - Hunts Locality,Hunts O P  Team,Residential Care
Cambridgeshire County Council,12-Jul-19,51301014970,-900.00,AVERY HOUSE CARE HOME,CARE ESTABLISHMENT,OP - Hunts Locality,Hunts O P  Team,Residential Care
Cambridgeshire County Council,12-Jul-19,51300981791,-900.00,AVERY HOUSE CARE HOME,CARE ESTABLISHMENT,OP - Hunts Locality,Hunts O P  Team,Nursing Care
Cambridgeshire County Council,12-Jul-19,51300994104,-900.00,AVERY HOUSE CARE HOME,CARE ESTABLISHMENT,OP - Hunts Locality,Hunts O P  Team,Residential Care
Cambridgeshire County Council,12-Jul-19,51300994137,-900.00,AVERY HOUSE CARE HOME,CARE ESTABLISHMENT,OP - Hunts Locality,Hunts O P  Team,Nursing Care
Cambridgeshire County Council,12-Jul-19,51301014960,-900.00,AVERY HOUSE CARE HOME,CARE ESTABLISHMENT,OP - Hunts Locality,Hunts O P  Team,Residential Care
Cambridgeshire County Council,12-Jul-19,51301024528,-900.00,AVERY HOUSE CARE HOME,CARE ESTABLISHMENT,OP - Hunts Locality,Hunts O P  Team,Nursing Care
Cambridgeshire County Council,12-Jul-19,51301033668,-900.00,AVERY HOUSE CARE HOME,CARE ESTABLISHMENT,OP - Hunts Locality,Hunts O P  Team,Nursing Care
Cambridgeshire County Council,12-Jul-19,51300973631,-900.00,AVERY HOUSE CARE HOME,CARE ESTABLISHMENT,OP - Hunts Locality,Hunts O P  Team,Residential Care
Cambridgeshire County Council,12-Jul-19,51300973603,-900.00,AVERY HOUSE CARE HOME,CARE ESTABLISHMENT,OP - Hunts Locality,Hunts O P  Team,Residential Care
Cambridgeshire County Council,12-Jul-19,51300973621,-900.00,AVERY HOUSE CARE HOME,CARE ESTABLISHMENT,OP - Hunts Locality,Hunts O P  Team,Residential Care
Cambridgeshire County Council,12-Jul-19,51301033664,-900.00,AVERY HOUSE CARE HOME,CARE ESTABLISHMENT,OP - Hunts Locality,Hunts O P  Team,Residential Care
Cambridgeshire County Council,12-Jul-19,51301033704,-900.00,AVERY HOUSE CARE HOME,CARE ESTABLISHMENT,OP - Hunts Locality,Hunts O P  Team,Nursing Care
Cambridgeshire County Council,12-Jul-19,51300958825,-900.00,AVERY HOUSE CARE HOME,CARE ESTABLISHMENT,OP - Hunts Locality,Hunts O P  Team,Nursing Care
Cambridgeshire County Council,12-Jul-19,51300958801,-900.00,AVERY HOUSE CARE HOME,CARE ESTABLISHMENT,OP - Hunts Locality,Hunts O P  Team,Nursing Care
Cambridgeshire County Council,12-Jul-19,51300973651,-900.00,AVERY HOUSE CARE HOME,CARE ESTABLISHMENT,OP - Hunts Locality,Hunts O P  Team,Residential Care
Cambridgeshire County Council,12-Jul-19,51300973637,-900.00,AVERY HOUSE CARE HOME,CARE ESTABLISHMENT,OP - Hunts Locality,Hunts O P  Team,Residential Care
Cambridgeshire County Council,12-Jul-19,51300981752,-900.00,AVERY HOUSE CARE HOME,CARE ESTABLISHMENT,OP - Hunts Locality,Hunts O P  Team,Residential Care
Cambridgeshire County Council,12-Jul-19,51300981776,-900.00,AVERY HOUSE CARE HOME,CARE ESTABLISHMENT,OP - Hunts Locality,Hunts O P  Team,Residential Care
Cambridgeshire County Council,12-Jul-19,51300994118,-900.00,AVERY HOUSE CARE HOME,CARE ESTABLISHMENT,OP - Hunts Locality,Hunts O P  Team,Residential Care
Cambridgeshire County Council,12-Jul-19,51300994153,-900.00,AVERY HOUSE CARE HOME,CARE ESTABLISHMENT,OP - Hunts Locality,Hunts O P  Team,Nursing Care
Cambridgeshire County Council,12-Jul-19,51301014956,-900.00,AVERY HOUSE CARE HOME,CARE ESTABLISHMENT,OP - Hunts Locality,Hunts O P  Team,Residential Care
Cambridgeshire County Council,12-Jul-19,51301014959,-900.00,AVERY HOUSE CARE HOME,CARE ESTABLISHMENT,OP - Hunts Locality,Hunts O P  Team,Nursing Care
Cambridgeshire County Council,12-Jul-19,51301033665,-900.00,AVERY HOUSE CARE HOME,CARE ESTABLISHMENT,OP - Hunts Locality,Hunts O P  Team,Residential Care
Cambridgeshire County Council,12-Jul-19,51300973611,-900.00,AVERY HOUSE CARE HOME,CARE ESTABLISHMENT,OP - Hunts Locality,Hunts O P  Team,Residential Care
Cambridgeshire County Council,12-Jul-19,51300981788,-900.00,AVERY HOUSE CARE HOME,CARE ESTABLISHMENT,OP - Hunts Locality,Hunts O P  Team,Nursing Care
Cambridgeshire County Council,12-Jul-19,51300994147,-900.00,AVERY HOUSE CARE HOME,CARE ESTABLISHMENT,OP - Hunts Locality,Hunts O P  Team,Residential Care
Cambridgeshire County Council,12-Jul-19,51301014969,-900.00,AVERY HOUSE CARE HOME,CARE ESTABLISHMENT,OP - Hunts Locality,Hunts O P  Team,Residential Care
Cambridgeshire County Council,12-Jul-19,51301024523,-900.00,AVERY HOUSE CARE HOME,CARE ESTABLISHMENT,OP - Hunts Locality,Hunts O P  Team,Residential Care
Cambridgeshire County Council,12-Jul-19,51301033666,-900.00,AVERY HOUSE CARE HOME,CARE ESTABLISHMENT,OP - Hunts Locality,Hunts O P  Team,Residential Care
Cambridgeshire County Council,12-Jul-19,51301033696,-900.00,AVERY HOUSE CARE HOME,CARE ESTABLISHMENT,OP - Hunts Locality,Hunts O P  Team,Nursing Care
Cambridgeshire County Council,12-Jul-19,51301014934,-900.00,AVERY HOUSE CARE HOME,CARE ESTABLISHMENT,OP - Hunts Locality,Hunts O P  Team,Nursing Care
Cambridgeshire County Council,12-Jul-19,51301014938,-900.00,AVERY HOUSE CARE HOME,CARE ESTABLISHMENT,OP - Hunts Locality,Hunts O P  Team,Residential Care
Cambridgeshire County Council,12-Jul-19,51301024512,-900.00,AVERY HOUSE CARE HOME,CARE ESTABLISHMENT,OP - Hunts Locality,Hunts O P  Team,Residential Care
Cambridgeshire County Council,12-Jul-19,51301024516,-900.00,AVERY HOUSE CARE HOME,CARE ESTABLISHMENT,OP - Hunts Locality,Hunts O P  Team,Residential Care
Cambridgeshire County Council,12-Jul-19,51301033658,-900.00,AVERY HOUSE CARE HOME,CARE ESTABLISHMENT,OP - Hunts Locality,Hunts O P  Team,Nursing Care
Cambridgeshire County Council,12-Jul-19,51301033683,-900.00,AVERY HOUSE CARE HOME,CARE ESTABLISHMENT,OP - Hunts Locality,Hunts O P  Team,Residential Care
Cambridgeshire County Council,12-Jul-19,51301033684,-900.00,AVERY HOUSE CARE HOME,CARE ESTABLISHMENT,OP - Hunts Locality,Hunts O P  Team,Residential Care
Cambridgeshire County Council,12-Jul-19,51301033672,-900.00,AVERY HOUSE CARE HOME,CARE ESTABLISHMENT,OP - Hunts Locality,Hunts O P  Team,Nursing Care
Cambridgeshire County Council,12-Jul-19,51300958787,-900.00,AVERY HOUSE CARE HOME,CARE ESTABLISHMENT,OP - Hunts Locality,Hunts O P  Team,Nursing Care
Cambridgeshire County Council,12-Jul-19,51300973612,-900.00,AVERY HOUSE CARE HOME,CARE ESTABLISHMENT,OP - Hunts Locality,Hunts O P  Team,Residential Care
Cambridgeshire County Council,12-Jul-19,51300973602,-900.00,AVERY HOUSE CARE HOME,CARE ESTABLISHMENT,OP - Hunts Locality,Hunts O P  Team,Nursing Care
Cambridgeshire County Council,12-Jul-19,51301014944,-900.00,AVERY HOUSE CARE HOME,CARE ESTABLISHMENT,OP - Hunts Locality,Hunts O P  Team,Residential Care
Cambridgeshire County Council,12-Jul-19,51301014940,-900.00,AVERY HOUSE CARE HOME,CARE ESTABLISHMENT,OP - Hunts Locality,Hunts O P  Team,Nursing Care
Cambridgeshire County Council,12-Jul-19,51301024527,-900.00,AVERY HOUSE CARE HOME,CARE ESTABLISHMENT,OP - Hunts Locality,Hunts O P  Team,Nursing Care
Cambridgeshire County Council,12-Jul-19,51300958819,-900.00,AVERY HOUSE CARE HOME,CARE ESTABLISHMENT,OP - Hunts Locality,Hunts O P  Team,Nursing Care
Cambridgeshire County Council,12-Jul-19,51300973608,-900.00,AVERY HOUSE CARE HOME,CARE ESTABLISHMENT,OP - Hunts Locality,Hunts O P  Team,Residential Care
Cambridgeshire County Council,12-Jul-19,51300981753,-900.00,AVERY HOUSE CARE HOME,CARE ESTABLISHMENT,OP - Hunts Locality,Hunts O P  Team,Nursing Care
Cambridgeshire County Council,12-Jul-19,51301024519,-900.00,AVERY HOUSE CARE HOME,CARE ESTABLISHMENT,OP - Hunts Locality,Hunts O P  Team,Residential Care
Cambridgeshire County Council,12-Jul-19,51301024515,-900.00,AVERY HOUSE CARE HOME,CARE ESTABLISHMENT,OP - Hunts Locality,Hunts O P  Team,Nursing Care
Cambridgeshire County Council,12-Jul-19,51300973652,-900.00,AVERY HOUSE CARE HOME,CARE ESTABLISHMENT,OP - Hunts Locality,Hunts O P  Team,Nursing Care
Cambridgeshire County Council,12-Jul-19,51300958788,-900.00,AVERY HOUSE CARE HOME,CARE ESTABLISHMENT,OP - Hunts Locality,Hunts O P  Team,Residential Care
Cambridgeshire County Council,12-Jul-19,51300958803,-900.00,AVERY HOUSE CARE HOME,CARE ESTABLISHMENT,OP - Hunts Locality,Hunts O P  Team,Nursing Care
Cambridgeshire County Council,12-Jul-19,51300958826,-900.00,AVERY HOUSE CARE HOME,CARE ESTABLISHMENT,OP - Hunts Locality,Hunts O P  Team,Residential Care
Cambridgeshire County Council,12-Jul-19,51300981747,-900.00,AVERY HOUSE CARE HOME,CARE ESTABLISHMENT,OP - Hunts Locality,Hunts O P  Team,Nursing Care
Cambridgeshire County Council,12-Jul-19,51300994113,-900.00,AVERY HOUSE CARE HOME,CARE ESTABLISHMENT,OP - Hunts Locality,Hunts O P  Team,Residential Care
Cambridgeshire County Council,12-Jul-19,51301024555,-900.00,AVERY HOUSE CARE HOME,CARE ESTABLISHMENT,OP - Hunts Locality,Hunts O P  Team,Residential Care
Cambridgeshire County Council,12-Jul-19,51300981744,-900.00,AVERY HOUSE CARE HOME,CARE ESTABLISHMENT,OP - Hunts Locality,Hunts O P  Team,Residential Care
Cambridgeshire County Council,12-Jul-19,51300973605,-900.00,AVERY HOUSE CARE HOME,CARE ESTABLISHMENT,OP - Hunts Locality,Hunts O P  Team,Residential Care
Cambridgeshire County Council,12-Jul-19,51300994138,-900.00,AVERY HOUSE CARE HOME,CARE ESTABLISHMENT,OP - Hunts Locality,Hunts O P  Team,Residential Care
Cambridgeshire County Council,12-Jul-19,51300958834,-900.00,AVERY HOUSE CARE HOME,CARE ESTABLISHMENT,OP - Hunts Locality,Hunts O P  Team,Residential Care
Cambridgeshire County Council,12-Jul-19,51300973601,-900.00,AVERY HOUSE CARE HOME,CARE ESTABLISHMENT,OP - Hunts Locality,Hunts O P  Team,Residential Care
Cambridgeshire County Council,12-Jul-19,51300973650,-900.00,AVERY HOUSE CARE HOME,CARE ESTABLISHMENT,OP - Hunts Locality,Hunts O P  Team,Nursing Care
Cambridgeshire County Council,12-Jul-19,51300958798,-900.00,AVERY HOUSE CARE HOME,CARE ESTABLISHMENT,OP - Hunts Locality,Hunts O P  Team,Nursing Care
Cambridgeshire County Council,12-Jul-19,51301033707,-900.00,AVERY HOUSE CARE HOME,CARE ESTABLISHMENT,OP - Hunts Locality,Hunts O P  Team,Residential Care
Cambridgeshire County Council,12-Jul-19,51300958802,-900.00,AVERY HOUSE CARE HOME,CARE ESTABLISHMENT,OP - Hunts Locality,Hunts O P  Team,Nursing Care
Cambridgeshire County Council,12-Jul-19,51300958800,-900.00,AVERY HOUSE CARE HOME,CARE ESTABLISHMENT,OP - Hunts Locality,Hunts O P  Team,Residential Care
Cambridgeshire County Council,12-Jul-19,51300973618,-900.00,AVERY HOUSE CARE HOME,CARE ESTABLISHMENT,OP - Hunts Locality,Hunts O P  Team,Nursing Care
Cambridgeshire County Council,12-Jul-19,51300958811,-900.00,AVERY HOUSE CARE HOME,CARE ESTABLISHMENT,OP - Hunts Locality,Hunts O P  Team,Nursing Care
Cambridgeshire County Council,12-Jul-19,51300994114,-900.00,AVERY HOUSE CARE HOME,CARE ESTABLISHMENT,OP - Hunts Locality,Hunts O P  Team,Residential Care
Cambridgeshire County Council,12-Jul-19,51300981779,-900.00,AVERY HOUSE CARE HOME,CARE ESTABLISHMENT,OP - Hunts Locality,Hunts O P  Team,Nursing Care
Cambridgeshire County Council,12-Jul-19,51300958827,-900.00,AVERY HOUSE CARE HOME,CARE ESTABLISHMENT,OP - Hunts Locality,Hunts O P  Team,Residential Care
Cambridgeshire County Council,12-Jul-19,51301033687,-900.00,AVERY HOUSE CARE HOME,CARE ESTABLISHMENT,OP - Hunts Locality,Hunts O P  Team,Nursing Care
Cambridgeshire County Council,12-Jul-19,51300994155,-900.00,AVERY HOUSE CARE HOME,CARE ESTABLISHMENT,OP - Hunts Locality,Hunts O P  Team,Residential Care
Cambridgeshire County Council,12-Jul-19,51300981778,-900.00,AVERY HOUSE CARE HOME,CARE ESTABLISHMENT,OP - Hunts Locality,Hunts O P  Team,Residential Care
Cambridgeshire County Council,12-Jul-19,51301024529,-900.00,AVERY HOUSE CARE HOME,CARE ESTABLISHMENT,OP - Hunts Locality,Hunts O P  Team,Nursing Care
Cambridgeshire County Council,12-Jul-19,51300981759,-900.00,AVERY HOUSE CARE HOME,CARE ESTABLISHMENT,OP - Hunts Locality,Hunts O P  Team,Nursing Care
Cambridgeshire County Council,12-Jul-19,51300994150,-900.00,AVERY HOUSE CARE HOME,CARE ESTABLISHMENT,OP - Hunts Locality,Hunts O P  Team,Residential Care
Cambridgeshire County Council,12-Jul-19,51301033667,-900.00,AVERY HOUSE CARE HOME,CARE ESTABLISHMENT,OP - Hunts Locality,Hunts O P  Team,Residential Care
Cambridgeshire County Council,12-Jul-19,51300981749,-900.00,AVERY HOUSE CARE HOME,CARE ESTABLISHMENT,OP - Hunts Locality,Hunts O P  Team,Residential Care
Cambridgeshire County Council,12-Jul-19,51301014955,-900.00,AVERY HOUSE CARE HOME,CARE ESTABLISHMENT,OP - Hunts Locality,Hunts O P  Team,Nursing Care
Cambridgeshire County Council,12-Jul-19,51301024544,-900.00,AVERY HOUSE CARE HOME,CARE ESTABLISHMENT,OP - Hunts Locality,Hunts O P  Team,Nursing Care
Cambridgeshire County Council,12-Jul-19,51301024545,-900.00,AVERY HOUSE CARE HOME,CARE ESTABLISHMENT,OP - Hunts Locality,Hunts O P  Team,Nursing Care
Cambridgeshire County Council,12-Jul-19,51301024525,-900.00,AVERY HOUSE CARE HOME,CARE ESTABLISHMENT,OP - Hunts Locality,Hunts O P  Team,Residential Care
Cambridgeshire County Council,12-Jul-19,51300958791,-900.00,AVERY HOUSE CARE HOME,CARE ESTABLISHMENT,OP - Hunts Locality,Hunts O P  Team,Residential Care
Cambridgeshire County Council,12-Jul-19,51300994122,-900.00,AVERY HOUSE CARE HOME,CARE ESTABLISHMENT,OP - Hunts Locality,Hunts O P  Team,Residential Care
Cambridgeshire County Council,12-Jul-19,51301033681,-900.00,AVERY HOUSE CARE HOME,CARE ESTABLISHMENT,OP - Hunts Locality,Hunts O P  Team,Nursing Care
Cambridgeshire County Council,12-Jul-19,51300958794,-900.00,AVERY HOUSE CARE HOME,CARE ESTABLISHMENT,OP - Hunts Locality,Hunts O P  Team,Residential Care
Cambridgeshire County Council,12-Jul-19,51300973644,-900.00,AVERY HOUSE CARE HOME,CARE ESTABLISHMENT,OP - Hunts Locality,Hunts O P  Team,Nursing Care
Cambridgeshire County Council,12-Jul-19,51300973627,-900.00,AVERY HOUSE CARE HOME,CARE ESTABLISHMENT,OP - Hunts Locality,Hunts O P  Team,Residential Care
Cambridgeshire County Council,12-Jul-19,51300981755,-900.00,AVERY HOUSE CARE HOME,CARE ESTABLISHMENT,OP - Hunts Locality,Hunts O P  Team,Residential Care
Cambridgeshire County Council,12-Jul-19,51300981793,-900.00,AVERY HOUSE CARE HOME,CARE ESTABLISHMENT,OP - Hunts Locality,Hunts O P  Team,Nursing Care
Cambridgeshire County Council,12-Jul-19,51300994151,-900.00,AVERY HOUSE CARE HOME,CARE ESTABLISHMENT,OP - Hunts Locality,Hunts O P  Team,Nursing Care
Cambridgeshire County Council,12-Jul-19,51301024517,-900.00,AVERY HOUSE CARE HOME,CARE ESTABLISHMENT,OP - Hunts Locality,Hunts O P  Team,Residential Care
Cambridgeshire County Council,12-Jul-19,51301024542,-900.00,AVERY HOUSE CARE HOME,CARE ESTABLISHMENT,OP - Hunts Locality,Hunts O P  Team,Nursing Care
Cambridgeshire County Council,12-Jul-19,51301033703,-900.00,AVERY HOUSE CARE HOME,CARE ESTABLISHMENT,OP - Hunts Locality,Hunts O P  Team,Nursing Care
Cambridgeshire County Council,12-Jul-19,51300958831,-900.00,AVERY HOUSE CARE HOME,CARE ESTABLISHMENT,OP - Hunts Locality,Hunts O P  Team,Nursing Care
Cambridgeshire County Council,12-Jul-19,51300973636,-900.00,AVERY HOUSE CARE HOME,CARE ESTABLISHMENT,OP - Hunts Locality,Hunts O P  Team,Nursing Care
Cambridgeshire County Council,12-Jul-19,51300973642,-900.00,AVERY HOUSE CARE HOME,CARE ESTABLISHMENT,OP - Hunts Locality,Hunts O P  Team,Nursing Care
Cambridgeshire County Council,12-Jul-19,51300973623,-900.00,AVERY HOUSE CARE HOME,CARE ESTABLISHMENT,OP - Hunts Locality,Hunts O P  Team,Residential Care
Cambridgeshire County Council,12-Jul-19,51300981773,-900.00,AVERY HOUSE CARE HOME,CARE ESTABLISHMENT,OP - Hunts Locality,Hunts O P  Team,Residential Care
Cambridgeshire County Council,12-Jul-19,51301033702,-900.00,AVERY HOUSE CARE HOME,CARE ESTABLISHMENT,OP - Hunts Locality,Hunts O P  Team,Residential Care
Cambridgeshire County Council,12-Jul-19,51301033659,-900.00,AVERY HOUSE CARE HOME,CARE ESTABLISHMENT,OP - Hunts Locality,Hunts O P  Team,Residential Care
Cambridgeshire County Council,12-Jul-19,51301014935,-900.00,AVERY HOUSE CARE HOME,CARE ESTABLISHMENT,OP - Hunts Locality,Hunts O P  Team,Nursing Care
Cambridgeshire County Council,12-Jul-19,51301014931,-900.00,AVERY HOUSE CARE HOME,CARE ESTABLISHMENT,OP - Hunts Locality,Hunts O P  Team,Nursing Care
Cambridgeshire County Council,12-Jul-19,51301033677,-900.00,AVERY HOUSE CARE HOME,CARE ESTABLISHMENT,OP - Hunts Locality,Hunts O P  Team,Residential Care
Cambridgeshire County Council,12-Jul-19,51301033692,-900.00,AVERY HOUSE CARE HOME,CARE ESTABLISHMENT,OP - Hunts Locality,Hunts O P  Team,Residential Care
Cambridgeshire County Council,12-Jul-19,51300958806,-900.00,AVERY HOUSE CARE HOME,CARE ESTABLISHMENT,OP - Hunts Locality,Hunts O P  Team,Residential Care
Cambridgeshire County Council,12-Jul-19,51300994125,-900.00,AVERY HOUSE CARE HOME,CARE ESTABLISHMENT,OP - Hunts Locality,Hunts O P  Team,Residential Care
Cambridgeshire County Council,12-Jul-19,51300981756,-900.00,AVERY HOUSE CARE HOME,CARE ESTABLISHMENT,OP - Hunts Locality,Hunts O P  Team,Nursing Care
Cambridgeshire County Council,12-Jul-19,51301033673,-900.00,AVERY HOUSE CARE HOME,CARE ESTABLISHMENT,OP - Hunts Locality,Hunts O P  Team,Nursing Care
Cambridgeshire County Council,12-Jul-19,51300958783,-900.00,AVERY HOUSE CARE HOME,CARE ESTABLISHMENT,OP - Hunts Locality,Hunts O P  Team,Residential Care
Cambridgeshire County Council,12-Jul-19,51301014963,-900.00,AVERY HOUSE CARE HOME,CARE ESTABLISHMENT,OP - Hunts Locality,Hunts O P  Team,Residential Care
Cambridgeshire County Council,12-Jul-19,51301014922,-900.00,AVERY HOUSE CARE HOME,CARE ESTABLISHMENT,OP - Hunts Locality,Hunts O P  Team,Residential Care
Cambridgeshire County Council,12-Jul-19,51301024522,-900.00,AVERY HOUSE CARE HOME,CARE ESTABLISHMENT,OP - Hunts Locality,Hunts O P  Team,Nursing Care
Cambridgeshire County Council,12-Jul-19,51301033701,-900.00,AVERY HOUSE CARE HOME,CARE ESTABLISHMENT,OP - Hunts Locality,Hunts O P  Team,Nursing Care
Cambridgeshire County Council,12-Jul-19,51301014943,-900.00,AVERY HOUSE CARE HOME,CARE ESTABLISHMENT,OP - Hunts Locality,Hunts O P  Team,Residential Care
Cambridgeshire County Council,12-Jul-19,51300958807,-900.00,AVERY HOUSE CARE HOME,CARE ESTABLISHMENT,OP - Hunts Locality,Hunts O P  Team,Residential Care
Cambridgeshire County Council,12-Jul-19,51300981760,-900.00,AVERY HOUSE CARE HOME,CARE ESTABLISHMENT,OP - Hunts Locality,Hunts O P  Team,Residential Care
Cambridgeshire County Council,12-Jul-19,51300973624,-900.00,AVERY HOUSE CARE HOME,CARE ESTABLISHMENT,OP - Hunts Locality,Hunts O P  Team,Nursing Care
Cambridgeshire County Council,12-Jul-19,51300994116,-900.00,AVERY HOUSE CARE HOME,CARE ESTABLISHMENT,OP - Hunts Locality,Hunts O P  Team,Residential Care
Cambridgeshire County Council,12-Jul-19,51300973635,-900.00,AVERY HOUSE CARE HOME,CARE ESTABLISHMENT,OP - Hunts Locality,Hunts O P  Team,Residential Care
Cambridgeshire County Council,12-Jul-19,51300994111,-900.00,AVERY HOUSE CARE HOME,CARE ESTABLISHMENT,OP - Hunts Locality,Hunts O P  Team,Residential Care
Cambridgeshire County Council,12-Jul-19,51300994148,-900.00,AVERY HOUSE CARE HOME,CARE ESTABLISHMENT,OP - Hunts Locality,Hunts O P  Team,Residential Care
Cambridgeshire County Council,12-Jul-19,51301024557,-900.00,AVERY HOUSE CARE HOME,CARE ESTABLISHMENT,OP - Hunts Locality,Hunts O P  Team,Nursing Care
Cambridgeshire County Council,12-Jul-19,51300958797,-900.00,AVERY HOUSE CARE HOME,CARE ESTABLISHMENT,OP - Hunts Locality,Hunts O P  Team,Residential Care
Cambridgeshire County Council,12-Jul-19,51300973634,-900.00,AVERY HOUSE CARE HOME,CARE ESTABLISHMENT,OP - Hunts Locality,Hunts O P  Team,Nursing Care
Cambridgeshire County Council,12-Jul-19,51300973628,-900.00,AVERY HOUSE CARE HOME,CARE ESTABLISHMENT,OP - Hunts Locality,Hunts O P  Team,Residential Care
Cambridgeshire County Council,12-Jul-19,51300994120,-900.00,AVERY HOUSE CARE HOME,CARE ESTABLISHMENT,OP - Hunts Locality,Hunts O P  Team,Residential Care
Cambridgeshire County Council,12-Jul-19,51300981770,-900.00,AVERY HOUSE CARE HOME,CARE ESTABLISHMENT,OP - Hunts Locality,Hunts O P  Team,Residential Care
Cambridgeshire County Council,12-Jul-19,51301014954,-900.00,AVERY HOUSE CARE HOME,CARE ESTABLISHMENT,OP - Hunts Locality,Hunts O P  Team,Residential Care
Cambridgeshire County Council,12-Jul-19,51301014930,-900.00,AVERY HOUSE CARE HOME,CARE ESTABLISHMENT,OP - Hunts Locality,Hunts O P  Team,Nursing Care
Cambridgeshire County Council,12-Jul-19,51300958824,-900.00,AVERY HOUSE CARE HOME,CARE ESTABLISHMENT,OP - Hunts Locality,Hunts O P  Team,Residential Care
Cambridgeshire County Council,12-Jul-19,51300958817,-900.00,AVERY HOUSE CARE HOME,CARE ESTABLISHMENT,OP - Hunts Locality,Hunts O P  Team,Nursing Care
Cambridgeshire County Council,12-Jul-19,51301014936,-900.00,AVERY HOUSE CARE HOME,CARE ESTABLISHMENT,OP - Hunts Locality,Hunts O P  Team,Residential Care
Cambridgeshire County Council,12-Jul-19,51301014924,-900.00,AVERY HOUSE CARE HOME,CARE ESTABLISHMENT,OP - Hunts Locality,Hunts O P  Team,Residential Care
Cambridgeshire County Council,12-Jul-19,51301024550,-900.00,AVERY HOUSE CARE HOME,CARE ESTABLISHMENT,OP - Hunts Locality,Hunts O P  Team,Residential Care
Cambridgeshire County Council,12-Jul-19,51301024541,-900.00,AVERY HOUSE CARE HOME,CARE ESTABLISHMENT,OP - Hunts Locality,Hunts O P  Team,Residential Care
Cambridgeshire County Council,12-Jul-19,51300994142,-900.00,AVERY HOUSE CARE HOME,CARE ESTABLISHMENT,OP - Hunts Locality,Hunts O P  Team,Nursing Care
Cambridgeshire County Council,12-Jul-19,51301024547,-900.00,AVERY HOUSE CARE HOME,CARE ESTABLISHMENT,OP - Hunts Locality,Hunts O P  Team,Residential Care
Cambridgeshire County Council,12-Jul-19,51301033662,-900.00,AVERY HOUSE CARE HOME,CARE ESTABLISHMENT,OP - Hunts Locality,Hunts O P  Team,Nursing Care
Cambridgeshire County Council,12-Jul-19,51300958815,-900.00,AVERY HOUSE CARE HOME,CARE ESTABLISHMENT,OP - Hunts Locality,Hunts O P  Team,Nursing Care
Cambridgeshire County Council,12-Jul-19,51300981758,-900.00,AVERY HOUSE CARE HOME,CARE ESTABLISHMENT,OP - Hunts Locality,Hunts O P  Team,Nursing Care
Cambridgeshire County Council,12-Jul-19,51300994106,-900.00,AVERY HOUSE CARE HOME,CARE ESTABLISHMENT,OP - Hunts Locality,Hunts O P  Team,Residential Care
Cambridgeshire County Council,12-Jul-19,51300981763,-900.00,AVERY HOUSE CARE HOME,CARE ESTABLISHMENT,OP - Hunts Locality,Hunts O P  Team,Residential Care
Cambridgeshire County Council,12-Jul-19,51301033705,-900.00,AVERY HOUSE CARE HOME,CARE ESTABLISHMENT,OP - Hunts Locality,Hunts O P  Team,Nursing Care
Cambridgeshire County Council,12-Jul-19,51301014962,-900.00,AVERY HOUSE CARE HOME,CARE ESTABLISHMENT,OP - Hunts Locality,Hunts O P  Team,Residential Care
Cambridgeshire County Council,12-Jul-19,51301014926,-900.00,AVERY HOUSE CARE HOME,CARE ESTABLISHMENT,OP - Hunts Locality,Hunts O P  Team,Nursing Care
Cambridgeshire County Council,12-Jul-19,51301014953,-900.00,AVERY HOUSE CARE HOME,CARE ESTABLISHMENT,OP - Hunts Locality,Hunts O P  Team,Nursing Care
Cambridgeshire County Council,12-Jul-19,51301033660,-900.00,AVERY HOUSE CARE HOME,CARE ESTABLISHMENT,OP - Hunts Locality,Hunts O P  Team,Nursing Care
Cambridgeshire County Council,12-Jul-19,51300994128,-900.00,AVERY HOUSE CARE HOME,CARE ESTABLISHMENT,OP - Hunts Locality,Hunts O P  Team,Residential Care
Cambridgeshire County Council,12-Jul-19,51301024507,-900.00,AVERY HOUSE CARE HOME,CARE ESTABLISHMENT,OP - Hunts Locality,Hunts O P  Team,Residential Care
Cambridgeshire County Council,23-Jul-19,51301047207,-900.00,AVERY HOUSE CARE HOME,CARE ESTABLISHMENT,OP - Hunts Locality,Hunts O P  Team,Nursing Care
Cambridgeshire County Council,23-Jul-19,51301047199,-900.00,AVERY HOUSE CARE HOME,CARE ESTABLISHMENT,OP - Hunts Locality,Hunts O P  Team,Nursing Care
Cambridgeshire County Council,23-Jul-19,51301047194,-900.00,AVERY HOUSE CARE HOME,CARE ESTABLISHMENT,OP - Hunts Locality,Hunts O P  Team,Residential Care
Cambridgeshire County Council,23-Jul-19,51301047211,-900.00,AVERY HOUSE CARE HOME,CARE ESTABLISHMENT,OP - Hunts Locality,Hunts O P  Team,Residential Care
Cambridgeshire County Council,23-Jul-19,51301047204,-900.00,AVERY HOUSE CARE HOME,CARE ESTABLISHMENT,OP - Hunts Locality,Hunts O P  Team,Residential Care
Cambridgeshire County Council,23-Jul-19,51301047220,-900.00,AVERY HOUSE CARE HOME,CARE ESTABLISHMENT,OP - Hunts Locality,Hunts O P  Team,Residential Care
Cambridgeshire County Council,23-Jul-19,51301047236,-900.00,AVERY HOUSE CARE HOME,CARE ESTABLISHMENT,OP - Hunts Locality,Hunts O P  Team,Residential Care
Cambridgeshire County Council,23-Jul-19,51301047210,-900.00,AVERY HOUSE CARE HOME,CARE ESTABLISHMENT,OP - Hunts Locality,Hunts O P  Team,Nursing Care
Cambridgeshire County Council,23-Jul-19,51301047240,-900.00,AVERY HOUSE CARE HOME,CARE ESTABLISHMENT,OP - Hunts Locality,Hunts O P  Team,Residential Care
Cambridgeshire County Council,23-Jul-19,51301047214,-900.00,AVERY HOUSE CARE HOME,CARE ESTABLISHMENT,OP - Hunts Locality,Hunts O P  Team,Nursing Care
Cambridgeshire County Council,23-Jul-19,51301047219,-900.00,AVERY HOUSE CARE HOME,CARE ESTABLISHMENT,OP - Hunts Locality,Hunts O P  Team,Nursing Care
Cambridgeshire County Council,23-Jul-19,51301047193,-900.00,AVERY HOUSE CARE HOME,CARE ESTABLISHMENT,OP - Hunts Locality,Hunts O P  Team,Residential Care
Cambridgeshire County Council,23-Jul-19,51301047190,-900.00,AVERY HOUSE CARE HOME,CARE ESTABLISHMENT,OP - Hunts Locality,Hunts O P  Team,Nursing Care
Cambridgeshire County Council,23-Jul-19,51301047239,-900.00,AVERY HOUSE CARE HOME,CARE ESTABLISHMENT,OP - Hunts Locality,Hunts O P  Team,Residential Care
Cambridgeshire County Council,23-Jul-19,51301047218,-900.00,AVERY HOUSE CARE HOME,CARE ESTABLISHMENT,OP - Hunts Locality,Hunts O P  Team,Residential Care
Cambridgeshire County Council,23-Jul-19,51301047197,-900.00,AVERY HOUSE CARE HOME,CARE ESTABLISHMENT,OP - Hunts Locality,Hunts O P  Team,Residential Care
Cambridgeshire County Council,23-Jul-19,51301047222,-900.00,AVERY HOUSE CARE HOME,CARE ESTABLISHMENT,OP - Hunts Locality,Hunts O P  Team,Residential Care
Cambridgeshire County Council,23-Jul-19,51301047237,-900.00,AVERY HOUSE CARE HOME,CARE ESTABLISHMENT,OP - Hunts Locality,Hunts O P  Team,Residential Care
Cambridgeshire County Council,23-Jul-19,51301047217,-900.00,AVERY HOUSE CARE HOME,CARE ESTABLISHMENT,OP - Hunts Locality,Hunts O P  Team,Residential Care
Cambridgeshire County Council,23-Jul-19,51301047195,-900.00,AVERY HOUSE CARE HOME,CARE ESTABLISHMENT,OP - Hunts Locality,Hunts O P  Team,Residential Care
Cambridgeshire County Council,23-Jul-19,51301047205,-900.00,AVERY HOUSE CARE HOME,CARE ESTABLISHMENT,OP - Hunts Locality,Hunts O P  Team,Residential Care
Cambridgeshire County Council,23-Jul-19,51301047233,-900.00,AVERY HOUSE CARE HOME,CARE ESTABLISHMENT,OP - Hunts Locality,Hunts O P  Team,Residential Care
Cambridgeshire County Council,23-Jul-19,51301047234,-900.00,AVERY HOUSE CARE HOME,CARE ESTABLISHMENT,OP - Hunts Locality,Hunts O P  Team,Nursing Care
Cambridgeshire County Council,23-Jul-19,51301047230,-900.00,AVERY HOUSE CARE HOME,CARE ESTABLISHMENT,OP - Hunts Locality,Hunts O P  Team,Residential Care
Cambridgeshire County Council,23-Jul-19,51301047224,-900.00,AVERY HOUSE CARE HOME,CARE ESTABLISHMENT,OP - Hunts Locality,Hunts O P  Team,Residential Care
Cambridgeshire County Council,26-Jul-19,51301075993,-893.11,VOYAGE,CARE ESTABLISHMENT,LD - City Locality,LD - City - Special Needs,Supported Living
Cambridgeshire County Council,12-Jul-19,51301019232,-885.06,BROAD OAKS (MENCAP),CARE ESTABLISHMENT,Physical Disablity,Countywide PD Service - Care,Residential Care
Cambridgeshire County Council,17-Jul-19,51301039329,-857.14,SOHAM LODGE,CARE ESTABLISHMENT,OP - East Cambs Locality,East Cambs - O P Team,Nursing Care
Cambridgeshire County Council,23-Jul-19,51301024641,-856.80,MEADOWS HOMECARE SERVICES,CARE ESTABLISHMENT,Physical Disablity,Countywide PD Service - Care,Domiciliary Care
Cambridgeshire County Council,26-Jul-19,51301072511,-856.80,MEADOWS HOMECARE SERVICES,CARE ESTABLISHMENT,Physical Disablity,Countywide PD Service - Care,Domiciliary Care
Cambridgeshire County Council,12-Jul-19,51301019403,-854.57,CONIFER LODGE,CARE ESTABLISHMENT,LD - Fenland Locality,LD - Fenland  - Special Needs,Residential Care
Cambridgeshire County Council,17-Jul-19,51301039539,-850.00,HOME CLOSE LTD,CARE ESTABLISHMENT,OP - City & South Locality,Older People - City & South,Nursing Care
Cambridgeshire County Council,17-Jul-19,51301039539,-850.00,HOME CLOSE LTD,CARE ESTABLISHMENT,OP - City & South Locality,Older People - City & South,Nursing Care
Cambridgeshire County Council,17-Jul-19,51301039539,-850.00,HOME CLOSE LTD,CARE ESTABLISHMENT,OP - City & South Locality,Older People - City & South,Nursing Care
Cambridgeshire County Council,17-Jul-19,51301039539,-850.00,HOME CLOSE LTD,CARE ESTABLISHMENT,OP - City & South Locality,Older People - City & South,Nursing Care
Cambridgeshire County Council,17-Jul-19,51300823118,-850.00,Little Sisters of the Poor - St Anne's Home,COMPANY,OP - East Cambs Locality,East Cambs - O P Team,Residential Care
Cambridgeshire County Council,17-Jul-19,51300823117,-850.00,Little Sisters of the Poor - St Anne's Home,COMPANY,OP - East Cambs Locality,East Cambs - O P Team,Residential Care
Cambridgeshire County Council,23-Jul-19,51301025491,-850.00,BETTER HEALTHCARE SERVICES LTD,CARE ESTABLISHMENT,Physical Disablity,Countywide PD Service - Care,Domiciliary Care
Cambridgeshire County Council,23-Jul-19,51301025501,-850.00,BETTER HEALTHCARE SERVICES LTD,CARE ESTABLISHMENT,Physical Disablity,Countywide PD Service - Care,Domiciliary Care
Cambridgeshire County Council,23-Jul-19,51301025493,-850.00,BETTER HEALTHCARE SERVICES LTD,CARE ESTABLISHMENT,Physical Disablity,Countywide PD Service - Care,Domiciliary Care
Cambridgeshire County Council,23-Jul-19,51301025484,-850.00,BETTER HEALTHCARE SERVICES LTD,CARE ESTABLISHMENT,Physical Disablity,Countywide PD Service - Care,Domiciliary Care
Cambridgeshire County Council,23-Jul-19,51301025492,-850.00,BETTER HEALTHCARE SERVICES LTD,CARE ESTABLISHMENT,Physical Disablity,Countywide PD Service - Care,Domiciliary Care
Cambridgeshire County Council,23-Jul-19,51301025475,-850.00,BETTER HEALTHCARE SERVICES LTD,CARE ESTABLISHMENT,Physical Disablity,Countywide PD Service - Care,Domiciliary Care
Cambridgeshire County Council,23-Jul-19,51301025478,-850.00,BETTER HEALTHCARE SERVICES LTD,CARE ESTABLISHMENT,Physical Disablity,Countywide PD Service - Care,Domiciliary Care
Cambridgeshire County Council,23-Jul-19,51301025513,-850.00,BETTER HEALTHCARE SERVICES LTD,CARE ESTABLISHMENT,Physical Disablity,Countywide PD Service - Care,Domiciliary Care
Cambridgeshire County Council,23-Jul-19,51301025498,-850.00,BETTER HEALTHCARE SERVICES LTD,CARE ESTABLISHMENT,Physical Disablity,Countywide PD Service - Care,Domiciliary Care
Cambridgeshire County Council,23-Jul-19,51301025481,-850.00,BETTER HEALTHCARE SERVICES LTD,CARE ESTABLISHMENT,Physical Disablity,Countywide PD Service - Care,Domiciliary Care
Cambridgeshire County Council,23-Jul-19,51301035059,-850.00,BETTER HEALTHCARE SERVICES LTD,CARE ESTABLISHMENT,Physical Disablity,Countywide PD Service - Care,Domiciliary Care
Cambridgeshire County Council,23-Jul-19,51301025507,-850.00,BETTER HEALTHCARE SERVICES LTD,CARE ESTABLISHMENT,Physical Disablity,Countywide PD Service - Care,Domiciliary Care
Cambridgeshire County Council,23-Jul-19,51301025514,-850.00,BETTER HEALTHCARE SERVICES LTD,CARE ESTABLISHMENT,Physical Disablity,Countywide PD Service - Care,Domiciliary Care
Cambridgeshire County Council,23-Jul-19,51301025483,-850.00,BETTER HEALTHCARE SERVICES LTD,CARE ESTABLISHMENT,Physical Disablity,Countywide PD Service - Care,Domiciliary Care
Cambridgeshire County Council,23-Jul-19,51301025480,-850.00,BETTER HEALTHCARE SERVICES LTD,CARE ESTABLISHMENT,Physical Disablity,Countywide PD Service - Care,Domiciliary Care
Cambridgeshire County Council,23-Jul-19,51301063776,-848.57,BETTER HEALTHCARE SERVICES LTD,CARE ESTABLISHMENT,OPMH - Hunts & Fens,Older People Mental Health Hunts,Domiciliary Care
Cambridgeshire County Council,12-Jul-19,51301037767,-843.72,CONQUEST CARE HOMES PETERBOROUGH,CARE ESTABLISHMENT,LD - Young Adults Team,LD - Young Adults - Special Needs,Residential Care
Cambridgeshire County Council,24-Jul-19,53300019853,-830.00,HMRC - PAYE,OTHER PUBLIC BODIES,Financing items,Additional Pension Contribution,Pay
Cambridgeshire County Council,11-Jul-19,51301036054,-825.90,AUTISM ANGLIA,CARE ESTABLISHMENT,LD - East Locality,LD - East Cambs - Care,Residential Care
Cambridgeshire County Council,11-Jul-19,51301036045,-825.90,AUTISM ANGLIA,CARE ESTABLISHMENT,LD - East Locality,LD - East Cambs - Care,Residential Care
Cambridgeshire County Council,11-Jul-19,51301036050,-825.90,AUTISM ANGLIA,CARE ESTABLISHMENT,LD - East Locality,LD - East Cambs - Care,Residential Care
Cambridgeshire County Council,11-Jul-19,51301036051,-825.90,AUTISM ANGLIA,CARE ESTABLISHMENT,LD - East Locality,LD - East Cambs - Care,Residential Care
Cambridgeshire County Council,11-Jul-19,51301036062,-825.90,AUTISM ANGLIA,CARE ESTABLISHMENT,LD - East Locality,LD - East Cambs - Care,Residential Care
Cambridgeshire County Council,11-Jul-19,51301036063,-825.90,AUTISM ANGLIA,CARE ESTABLISHMENT,LD - East Locality,LD - East Cambs - Care,Residential Care
Cambridgeshire County Council,11-Jul-19,51301036038,-825.90,AUTISM ANGLIA,CARE ESTABLISHMENT,LD - East Locality,LD - East Cambs - Care,Residential Care
Cambridgeshire County Council,11-Jul-19,51301036040,-825.90,AUTISM ANGLIA,CARE ESTABLISHMENT,LD - East Locality,LD - East Cambs - Care,Residential Care
Cambridgeshire County Council,11-Jul-19,51301036055,-825.90,AUTISM ANGLIA,CARE ESTABLISHMENT,LD - East Locality,LD - East Cambs - Care,Residential Care
Cambridgeshire County Council,11-Jul-19,51301036052,-825.90,AUTISM ANGLIA,CARE ESTABLISHMENT,LD - East Locality,LD - East Cambs - Care,Residential Care
Cambridgeshire County Council,11-Jul-19,51301036048,-825.90,AUTISM ANGLIA,CARE ESTABLISHMENT,LD - East Locality,LD - East Cambs - Care,Residential Care
Cambridgeshire County Council,11-Jul-19,51301036057,-825.90,AUTISM ANGLIA,CARE ESTABLISHMENT,LD - East Locality,LD - East Cambs - Care,Residential Care
Cambridgeshire County Council,11-Jul-19,51301036060,-825.90,AUTISM ANGLIA,CARE ESTABLISHMENT,LD - East Locality,LD - East Cambs - Care,Residential Care
Cambridgeshire County Council,11-Jul-19,51301036033,-825.90,AUTISM ANGLIA,CARE ESTABLISHMENT,LD - East Locality,LD - East Cambs - Care,Residential Care
Cambridgeshire County Council,12-Jul-19,51300823012,-814.29,WOODLANDS CARE CENTRE (LD),CARE ESTABLISHMENT,LD - South Locality,LD - South Cambs - Special Needs,Residential Care
Cambridgeshire County Council,17-Jul-19,51301039297,-808.46,ETHELDRED HOUSE,CARE ESTABLISHMENT,OPMH - City & South,Older People Mental Health City & South,Nursing Care
Cambridgeshire County Council,17-Jul-19,51301039297,-808.46,ETHELDRED HOUSE,CARE ESTABLISHMENT,OPMH - City & South,Older People Mental Health City & South,Nursing Care
Cambridgeshire County Council,17-Jul-19,51301039297,-808.46,ETHELDRED HOUSE,CARE ESTABLISHMENT,OPMH - City & South,Older People Mental Health City & South,Nursing Care
Cambridgeshire County Council,17-Jul-19,51301039297,-808.46,ETHELDRED HOUSE,CARE ESTABLISHMENT,OPMH - City & South,Older People Mental Health City & South,Nursing Care
Cambridgeshire County Council,17-Jul-19,51301039297,-808.46,ETHELDRED HOUSE,CARE ESTABLISHMENT,OPMH - City & South,Older People Mental Health City & South,Nursing Care
Cambridgeshire County Council,17-Jul-19,51301039297,-808.46,ETHELDRED HOUSE,CARE ESTABLISHMENT,OPMH - City & South,Older People Mental Health City & South,Nursing Care
Cambridgeshire County Council,17-Jul-19,51301039297,-808.46,ETHELDRED HOUSE,CARE ESTABLISHMENT,OPMH - City & South,Older People Mental Health City & South,Nursing Care
Cambridgeshire County Council,17-Jul-19,51301039297,-808.46,ETHELDRED HOUSE,CARE ESTABLISHMENT,OPMH - City & South,Older People Mental Health City & South,Nursing Care
Cambridgeshire County Council,17-Jul-19,51301039297,-808.46,ETHELDRED HOUSE,CARE ESTABLISHMENT,OPMH - City & South,Older People Mental Health City & South,Nursing Care
Cambridgeshire County Council,17-Jul-19,51301039297,-808.46,ETHELDRED HOUSE,CARE ESTABLISHMENT,OPMH - City & South,Older People Mental Health City & South,Nursing Care
Cambridgeshire County Council,17-Jul-19,51301039297,-808.46,ETHELDRED HOUSE,CARE ESTABLISHMENT,OPMH - City & South,Older People Mental Health City & South,Nursing Care
Cambridgeshire County Council,17-Jul-19,51301039297,-808.46,ETHELDRED HOUSE,CARE ESTABLISHMENT,OPMH - City & South,Older People Mental Health City & South,Nursing Care
Cambridgeshire County Council,17-Jul-19,51301039297,-808.46,ETHELDRED HOUSE,CARE ESTABLISHMENT,OPMH - City & South,Older People Mental Health City & South,Nursing Care
Cambridgeshire County Council,17-Jul-19,51301039297,-808.46,ETHELDRED HOUSE,CARE ESTABLISHMENT,OPMH - City & South,Older People Mental Health City & South,Nursing Care
Cambridgeshire County Council,17-Jul-19,51301039297,-808.46,ETHELDRED HOUSE,CARE ESTABLISHMENT,OPMH - City & South,Older People Mental Health City & South,Nursing Care
Cambridgeshire County Council,17-Jul-19,51301039297,-808.46,ETHELDRED HOUSE,CARE ESTABLISHMENT,OPMH - City & South,Older People Mental Health City & South,Nursing Care
Cambridgeshire County Council,17-Jul-19,51301039297,-808.46,ETHELDRED HOUSE,CARE ESTABLISHMENT,OPMH - City & South,Older People Mental Health City & South,Nursing Care
Cambridgeshire County Council,17-Jul-19,51301039297,-808.46,ETHELDRED HOUSE,CARE ESTABLISHMENT,OPMH - City & South,Older People Mental Health City & South,Nursing Care
Cambridgeshire County Council,17-Jul-19,51301039591,-807.00,METHODIST HOMES FOR THE AGED (MHA),CARE ESTABLISHMENT,OP - City & South Locality,Older People - City & South,Residential Care
Cambridgeshire County Council,17-Jul-19,51301039591,-807.00,METHODIST HOMES FOR THE AGED (MHA),CARE ESTABLISHMENT,OP - City & South Locality,Older People - City & South,Residential Care
Cambridgeshire County Council,17-Jul-19,51301039591,-807.00,METHODIST HOMES FOR THE AGED (MHA),CARE ESTABLISHMENT,OP - City & South Locality,Older People - City & South,Residential Care
Cambridgeshire County Council,17-Jul-19,51301039591,-807.00,METHODIST HOMES FOR THE AGED (MHA),CARE ESTABLISHMENT,OP - City & South Locality,Older People - City & South,Residential Care
Cambridgeshire County Council,17-Jul-19,51301039591,-807.00,METHODIST HOMES FOR THE AGED (MHA),CARE ESTABLISHMENT,OP - City & South Locality,Older People - City & South,Residential Care
Cambridgeshire County Council,17-Jul-19,51301039591,-807.00,METHODIST HOMES FOR THE AGED (MHA),CARE ESTABLISHMENT,OP - City & South Locality,Older People - City & South,Residential Care
Cambridgeshire County Council,17-Jul-19,51301039591,-807.00,METHODIST HOMES FOR THE AGED (MHA),CARE ESTABLISHMENT,OP - City & South Locality,Older People - City & South,Residential Care
Cambridgeshire County Council,17-Jul-19,51301039591,-807.00,METHODIST HOMES FOR THE AGED (MHA),CARE ESTABLISHMENT,OP - City & South Locality,Older People - City & South,Residential Care
Cambridgeshire County Council,17-Jul-19,51301039591,-807.00,METHODIST HOMES FOR THE AGED (MHA),CARE ESTABLISHMENT,OP - City & South Locality,Older People - City & South,Residential Care
Cambridgeshire County Council,17-Jul-19,51301039591,-807.00,METHODIST HOMES FOR THE AGED (MHA),CARE ESTABLISHMENT,OP - City & South Locality,Older People - City & South,Residential Care
Cambridgeshire County Council,17-Jul-19,51301039591,-807.00,METHODIST HOMES FOR THE AGED (MHA),CARE ESTABLISHMENT,OP - City & South Locality,Older People - City & South,Residential Care
Cambridgeshire County Council,17-Jul-19,51301039591,-807.00,METHODIST HOMES FOR THE AGED (MHA),CARE ESTABLISHMENT,OP - City & South Locality,Older People - City & South,Residential Care
Cambridgeshire County Council,17-Jul-19,51301039591,-807.00,METHODIST HOMES FOR THE AGED (MHA),CARE ESTABLISHMENT,OP - City & South Locality,Older People - City & South,Residential Care
Cambridgeshire County Council,17-Jul-19,51301039591,-807.00,METHODIST HOMES FOR THE AGED (MHA),CARE ESTABLISHMENT,OP - City & South Locality,Older People - City & South,Residential Care
Cambridgeshire County Council,17-Jul-19,51301039591,-807.00,METHODIST HOMES FOR THE AGED (MHA),CARE ESTABLISHMENT,OP - City & South Locality,Older People - City & South,Residential Care
Cambridgeshire County Council,17-Jul-19,51301039591,-807.00,METHODIST HOMES FOR THE AGED (MHA),CARE ESTABLISHMENT,OP - City & South Locality,Older People - City & South,Residential Care
Cambridgeshire County Council,17-Jul-19,51301039591,-807.00,METHODIST HOMES FOR THE AGED (MHA),CARE ESTABLISHMENT,OP - City & South Locality,Older People - City & South,Residential Care
Cambridgeshire County Council,17-Jul-19,51301039591,-807.00,METHODIST HOMES FOR THE AGED (MHA),CARE ESTABLISHMENT,OP - City & South Locality,Older People - City & South,Residential Care
Cambridgeshire County Council,17-Jul-19,51301039591,-807.00,METHODIST HOMES FOR THE AGED (MHA),CARE ESTABLISHMENT,OP - City & South Locality,Older People - City & South,Residential Care
Cambridgeshire County Council,26-Jul-19,51301066791,-805.00,A CLASS CARE LTD,CARE ESTABLISHMENT,Neighbourhood Cares Soham,Neighbourhood Cares Soham,Domiciliary Care
Cambridgeshire County Council,26-Jul-19,51301066799,-805.00,A CLASS CARE LTD,CARE ESTABLISHMENT,Neighbourhood Cares Soham,Neighbourhood Cares Soham,Domiciliary Care
Cambridgeshire County Council,26-Jul-19,51301066792,-805.00,A CLASS CARE LTD,CARE ESTABLISHMENT,Neighbourhood Cares Soham,Neighbourhood Cares Soham,Domiciliary Care
Cambridgeshire County Council,26-Jul-19,51301066788,-805.00,A CLASS CARE LTD,CARE ESTABLISHMENT,Neighbourhood Cares Soham,Neighbourhood Cares Soham,Domiciliary Care
Cambridgeshire County Council,26-Jul-19,51301066786,-805.00,A CLASS CARE LTD,CARE ESTABLISHMENT,Neighbourhood Cares Soham,Neighbourhood Cares Soham,Domiciliary Care
Cambridgeshire County Council,23-Jul-19,51301063467,-802.00,FOUR OAKS HEALTHCARE LIMITED,CARE ESTABLISHMENT,OP - City & South Locality,Older People - City & South,Domiciliary Care
Cambridgeshire County Council,04-Jul-19,51301025152,-795.26,THE EDMUND TRUST,CARE ESTABLISHMENT,LD - South Locality,LD - South Cambs - Care,Supported Living
Cambridgeshire County Council,04-Jul-19,51301025151,-795.26,THE EDMUND TRUST,CARE ESTABLISHMENT,LD - City Locality,LD - City - Care,Supported Living
Cambridgeshire County Council,04-Jul-19,51301025142,-795.26,THE EDMUND TRUST,CARE ESTABLISHMENT,LD - City Locality,LD - City - Care,Supported Living
Cambridgeshire County Council,12-Jul-19,51301034232,-795.26,THE EDMUND TRUST,CARE ESTABLISHMENT,LD - South Locality,LD - South Cambs - Care,Supported Living
Cambridgeshire County Council,12-Jul-19,51301034234,-795.26,THE EDMUND TRUST,CARE ESTABLISHMENT,LD - South Locality,LD - South Cambs - Care,Supported Living
Cambridgeshire County Council,12-Jul-19,51301034237,-795.26,THE EDMUND TRUST,CARE ESTABLISHMENT,LD - City Locality,LD - City - Care,Supported Living
Cambridgeshire County Council,23-Jul-19,51301049028,-795.26,THE EDMUND TRUST,CARE ESTABLISHMENT,LD - South Locality,LD - South Cambs - Care,Supported Living
Cambridgeshire County Council,23-Jul-19,51301049041,-795.26,THE EDMUND TRUST,CARE ESTABLISHMENT,LD - South Locality,LD - South Cambs - Care,Supported Living
Cambridgeshire County Council,23-Jul-19,51301049032,-795.26,THE EDMUND TRUST,CARE ESTABLISHMENT,LD - City Locality,LD - City - Care,Supported Living
Cambridgeshire County Council,26-Jul-19,51301069083,-795.26,THE EDMUND TRUST,CARE ESTABLISHMENT,LD - City Locality,LD - City - Care,Supported Living
Cambridgeshire County Council,26-Jul-19,51301069082,-795.26,THE EDMUND TRUST,CARE ESTABLISHMENT,LD - City Locality,LD - City - Care,Supported Living
Cambridgeshire County Council,26-Jul-19,51301069080,-795.26,THE EDMUND TRUST,CARE ESTABLISHMENT,LD - City Locality,LD - City - Care,Supported Living
Cambridgeshire County Council,17-Jul-19,51300960859,-791.54,ASKHAM HALL,CARE ESTABLISHMENT,OP - Fenland Locality,Older People - Fenland,Nursing Care
Cambridgeshire County Council,17-Jul-19,51301015938,-791.54,ASKHAM HALL,CARE ESTABLISHMENT,OP - Fenland Locality,Older People - Fenland,Nursing Care
Cambridgeshire County Council,17-Jul-19,51301034306,-791.54,ASKHAM HALL,CARE ESTABLISHMENT,OP - Fenland Locality,Older People - Fenland,Nursing Care
Cambridgeshire County Council,17-Jul-19,51300974380,-791.54,ASKHAM HALL,CARE ESTABLISHMENT,OP - Fenland Locality,Older People - Fenland,Nursing Care
Cambridgeshire County Council,17-Jul-19,51300982463,-791.54,ASKHAM HALL,CARE ESTABLISHMENT,OP - Fenland Locality,Older People - Fenland,Nursing Care
Cambridgeshire County Council,17-Jul-19,51301025244,-791.54,ASKHAM HALL,CARE ESTABLISHMENT,OP - City & South Locality,Older People - City & South,Nursing Care
Cambridgeshire County Council,17-Jul-19,51300996926,-791.54,ASKHAM HALL,CARE ESTABLISHMENT,OP - City & South Locality,Older People - City & South,Nursing Care
Cambridgeshire County Council,24-Jul-19,53300019853,-790.21,HMRC - PAYE,OTHER PUBLIC BODIES,Financing items,Additional Pension Contribution,Pay
Cambridgeshire County Council,12-Jul-19,51300823488,-786.36,BROWN'S FIELD HOUSE (ABBEYFIELD SOCIETY),CARE ESTABLISHMENT,OPMH - Under 65,Older People Mental Health - Under 65's,Residential Care
Cambridgeshire County Council,23-Jul-19,51301055381,-773.47,Next Steps Ltd,COMPANY,LD - Young Adults Team,LD - Young Adults - Care,Supported Living
Cambridgeshire County Council,23-Jul-19,51301036758,-760.00,MK WORLDWIDE LTD (T/A LEAD CARE),CARE ESTABLISHMENT,Physical Disablity,Countywide PD Service - Care,Domiciliary Care
Cambridgeshire County Council,12-Jul-19,51301037681,-751.06,CONQUEST CARE HOMES PETERBOROUGH,CARE ESTABLISHMENT,AMH - Hunts & Fens,E Cambs & Fenland Mental Health Team,Residential Client Care Contributions
Cambridgeshire County Council,12-Jul-19,51301037681,-751.06,CONQUEST CARE HOMES PETERBOROUGH,CARE ESTABLISHMENT,AMH - Hunts & Fens,E Cambs & Fenland Mental Health Team,Residential Client Care Contributions
Cambridgeshire County Council,12-Jul-19,51301037681,-751.06,CONQUEST CARE HOMES PETERBOROUGH,CARE ESTABLISHMENT,AMH - Hunts & Fens,E Cambs & Fenland Mental Health Team,Residential Client Care Contributions
Cambridgeshire County Council,12-Jul-19,51301037681,-751.06,CONQUEST CARE HOMES PETERBOROUGH,CARE ESTABLISHMENT,AMH - Hunts & Fens,E Cambs & Fenland Mental Health Team,Residential Client Care Contributions
Cambridgeshire County Council,12-Jul-19,51301037681,-751.06,CONQUEST CARE HOMES PETERBOROUGH,CARE ESTABLISHMENT,AMH - Hunts & Fens,E Cambs & Fenland Mental Health Team,Residential Client Care Contributions
Cambridgeshire County Council,12-Jul-19,51301037681,-751.06,CONQUEST CARE HOMES PETERBOROUGH,CARE ESTABLISHMENT,AMH - Hunts & Fens,E Cambs & Fenland Mental Health Team,Residential Client Care Contributions
Cambridgeshire County Council,12-Jul-19,51301037681,-751.06,CONQUEST CARE HOMES PETERBOROUGH,CARE ESTABLISHMENT,AMH - Hunts & Fens,E Cambs & Fenland Mental Health Team,Residential Client Care Contributions
Cambridgeshire County Council,12-Jul-19,51301037681,-751.06,CONQUEST CARE HOMES PETERBOROUGH,CARE ESTABLISHMENT,AMH - Hunts & Fens,E Cambs & Fenland Mental Health Team,Residential Client Care Contributions
Cambridgeshire County Council,12-Jul-19,51301037681,-751.06,CONQUEST CARE HOMES PETERBOROUGH,CARE ESTABLISHMENT,AMH - Hunts & Fens,E Cambs & Fenland Mental Health Team,Residential Client Care Contributions
Cambridgeshire County Council,12-Jul-19,51301037681,-751.06,CONQUEST CARE HOMES PETERBOROUGH,CARE ESTABLISHMENT,AMH - Hunts & Fens,E Cambs & Fenland Mental Health Team,Residential Client Care Contributions
Cambridgeshire County Council,12-Jul-19,51301037681,-751.06,CONQUEST CARE HOMES PETERBOROUGH,CARE ESTABLISHMENT,AMH - Hunts & Fens,E Cambs & Fenland Mental Health Team,Residential Client Care Contributions
Cambridgeshire County Council,12-Jul-19,51301037681,-751.06,CONQUEST CARE HOMES PETERBOROUGH,CARE ESTABLISHMENT,AMH - Hunts & Fens,E Cambs & Fenland Mental Health Team,Residential Client Care Contributions
Cambridgeshire County Council,12-Jul-19,51301037681,-751.06,CONQUEST CARE HOMES PETERBOROUGH,CARE ESTABLISHMENT,AMH - Hunts & Fens,E Cambs & Fenland Mental Health Team,Residential Client Care Contributions
